Workbook

Sheet SolCotizacion
B1: IAD COVID-19 (Por favor verifique que la versión del simulador utilizada sea la misma a la publicada en el Minisitio del IAD COVID19)
B3: Versión 14 | C3: 2021-07-26
B4: Información de la Entidad Compradora
B6: Nombre de la Entidad | D6: Universidad Distrital Francisco Jose de Caldas | H6: NIT | I6: 899.999.230-7
B8: Dirección de la Entidad | D8: Carrera 7 No. 40 B 53 | H8: Correo de contacto | I8: vicerrecadmin@udistrital.edu.co
B10: Ciudad | D10: Bogota D.C. | H10: Teléfono de contacto | I10: 323 93 00 Ext: 1804-1816
B12: Nombre funcionario comprador | D12: Eduard Arnulfo Pinilla Rivera
B16: Solicitud
B19: Cantidad de filas:
B20: 1
B22: Artículo | G22: Entrega | K22: Cantidad
B23: Item | C23: Código | D23: Categoría | E23: Producto | F23: Especificación Técnica | G23: Distribución | H23: Departamento | I23: Municipio | J23: Direccón de Entrega | K23: cantidad
B24: 1 | C24: EPP-38 | D24: =VLOOKUP($C24,Catalogo!$D:$I,3,0) -> ELEMENTOS DE PROTECCION PERSONAL | E24: =VLOOKUP($C24,Catalogo!$D:$I,2,0) -> EPP-38 - CARETA CON VISOR INTERCAMBIABLE | F24: =VLOOKUP($C24,Catalogo!$D:$I,4,0) -> Debe cumpir con la Norma ANSI Z87.1 Cabezal: Fabricado en polímero suave. Sostiene la careta en la cabeza. Graduable de acuerdo a la circunferencia de la cabeza del usuario. Con banda frontal absorbente. Visera o rodachispa: Elaborada en polímero de alta densidad, resistente al impacto y a la salpicadura de sustancias químicas. Sostiene el visor y oscila en el cabezal para bajar o levantar la careta. Sistema de ajuste tiene como función sujetar la visera con el cabezal. Visor fabricado en acetato de celulosa de mínimo 20 x 30 cm, ópticamente rectificado, sistema que facilite el cambio del visor. Debe proteger el rostro de salpicaduras de agua, saliva, sangre de la boca del paciente y cuerpos extraños, bajo peso, neutralidad óptica y resistencia al impacto a bajas velocidades. | G24: Si | H24: BOGOTÁ, D.C. | I24: BOGOTÁ, D.C. | J24: CALLE 13 No. 31-74 | K24: 750
B25: 1. Si requiere agregue o elimine filas
B28: Gravámenes adicionales*
B29: Si los hay, indique los gravámenes adicionales a los que está sujeta la Orden de Compra. Son gravámenes adicionales por ejemplo; estampillas y demás impuestos territoriales. Los impuestos como ICA y retención en la fuente NO son gravámenes adicionales.
B30: Gravámenes adicionales (estampillas)
B31: No | C31: Descripción | H31: Porcentaje
B32: 1 | C32: Estampilla Universidad Distrital Francisco Jose de Caldas 50 años | H32: 0.011
B33: 2 | C33: Estampilla Pro-cultura | H33: 0.005
B34: 3 | C34: Estampilla Adulto Mayor | H34: 0.02
F35: Total porcentaje: | H35: =SUM(H32:H34) -> 0.036
D36: Filas a agregar o eliminar Gravámenes:
D37: 1

Sheet ResumenCotizacion
B1: IAD COVID-19
B4: Información de la Entidad Compradora
B6: Nombre de la Entidad | D6: Universidad Distrital Francisco Jose de Caldas | H6: NIT | I6: 899.999.230-7
B8: Dirección de la Entidad | D8: Carrera 7 No. 40 B 53 | H8: Correo de contacto | I8: vicerrecadmin@udistrital.edu.co
B10: Ciudad | D10: Bogota D.C. | H10: Teléfono de contacto | I10: 323 93 00 Ext: 1804-1816
B12: Nombre funcionario comprador | D12: Eduard Arnulfo Pinilla Rivera
B16: Solicitud
B19: Cantidad de filas:
B20: 1
B22: Artículo | G22: Entrega | K22: Cantidad | L22: Valores | S22: Proveedor Ganador
B23: Item | C23: Código | D23: Categoría | E23: Producto | F23: Especificación Técnica | G23: Distribución | H23: Departamento | I23: Municipio | J23: Direccón de Entrega | K23: cantidad | L23: Cantidad Asumida | M23: Valor | N23: Valor Máximo Permitido | O23: Subtotal | P23: % IVA | Q23: Valor Iva | R23: Precio Total | S23: Proveedor
B24: 1 | C24: EPP-38 | D24: =VLOOKUP($C24,Catalogo!$D:$I,3,0) -> ELEMENTOS DE PROTECCION PERSONAL | E24: =VLOOKUP($C24,Catalogo!$D:$I,2,0) -> EPP-38 - CARETA CON VISOR INTERCAMBIABLE | F24: =VLOOKUP($C24,Catalogo!$D:$I,4,0) -> Debe cumpir con la Norma ANSI Z87.1 Cabezal: Fabricado en polímero suave. Sostiene la careta en la cabeza. Graduable de acuerdo a la circunferencia de la cabeza del usuario. Con banda frontal absorbente. Visera o rodachispa: Elaborada en polímero de alta densidad, resistente al impacto y a la salpicadura de sustancias químicas. Sostiene el visor y oscila en el cabezal para bajar o levantar la careta. Sistema de ajuste tiene como función sujetar la visera con el cabezal. Visor fabricado en acetato de celulosa de mínimo 20 x 30 cm, ópticamente rectificado, sistema que facilite el cambio del visor. Debe proteger el rostro de salpicaduras de agua, saliva, sangre de la boca del paciente y cuerpos extraños, bajo peso, neutralidad óptica y resistencia al impacto a bajas velocidades. | G24: Si | H24: BOGOTÁ, D.C. | I24: BOGOTÁ, D.C. | J24: CALLE 13 No. 31-74 | K24: 750 | L24: 750 | M24: =VLOOKUP($C24&$S24,Catalogo!$A:$S,14,0) -> 24000 | N24: =ROUND(M24/(1-VLOOKUP("Total porcentaje:",$F:$H,3,0)),2) -> 24896.27 | O24: =ROUND($N24*$L24,2) -> 18672202.5 | P24: =VLOOKUP($C24&$S24,Catalogo!$A:$S,19,0) -> 0 | Q24: =ROUND($O24*$P24,2) -> 0 | R24: =$Q24+$O24 -> 18672202.5 | S24: DELTA PLUS COLOMBIA SAS
B25: 2 | C25: DIS-1 | D25: DISTRIBUCION | E25: DIS-1 - DISTRIBUCION | K25: 1 | L25: 1 | M25: =SUM(Distribución!$H:$H)/2 -> 0 | N25: =ROUND(M25/(1-VLOOKUP("Total porcentaje:",$F:$H,3,0)),2) -> 0 | O25: =ROUND($N25*$L25,2) -> 0 | P25: 0 | Q25: =ROUND($O25*$P25,2) -> 0 | R25: =$Q25+$O25 -> 0 | S25: Distribución Total
B26: 1. Si requiere agregue o elimine filas | P26: Total | Q26: =SUM(Q$24:Q$25) -> 0 | R26: =SUM(R$24:R$25) -> 18672202.5
B29: Gravámenes adicionales*
B30: Si los hay, indique los gravámenes adicionales a los que está sujeta la Orden de Compra. Son gravámenes adicionales por ejemplo; estampillas y demás impuestos territoriales. Los impuestos como ICA y retención en la fuente NO son gravámenes adicionales.
B31: Gravámenes adicionales (estampillas)
B32: No | C32: Descripción | H32: Porcentaje
B33: 1 | C33: Estampilla Universidad Distrital Francisco Jose de Caldas 50 años | H33: 0.011
B34: 2 | C34: Estampilla Pro-cultura | H34: 0.005
B35: 3 | C35: Estampilla Adulto Mayor | H35: 0.02
F36: Total porcentaje: | H36: =SUM(H33:H35) -> 0.036

Sheet Distribución
B2: VALORES DE DISTRIBUCIÓN
B5: Proveedor | D5: DELTA PLUS COLOMBIA SAS | H5: =H8 -> 0
B7: Item | C7: Producto | D7: Departamento | E7: Municipio | F7: Direccón de Entrega | G7: Cantidad Asumida | H7: Valor total de distribución
B8: 1 | C8: EPP-38 - CARETA CON VISOR INTERCAMBIABLE | D8: BOGOTÁ, D.C. | E8: BOGOTÁ, D.C. | F8: CALLE 13 No. 31-74 | G8: 750 | H8: 0

Sheet Version (hidden)
A1: NombreAMP | B1: codigoAMP | C1: fechaAMP | D1: version
A2: covid19 elementos de proteccion personal | B2: cov19-epp | C2: 2021-07-26T09:00:00 | D2: 10

Sheet divipola (hidden)
A1: Departemento | B1: Municipio
A2: AMAZONAS | B2: LETICIA
A3: AMAZONAS | B3: PUERTO SANTANDER
A4: AMAZONAS | B4: EL ENCANTO
A5: AMAZONAS | B5: PUERTO ALEGRÍA
A6: AMAZONAS | B6: LA CHORRERA
A7: AMAZONAS | B7: LA PEDRERA
A8: AMAZONAS | B8: LA VICTORIA
A9: AMAZONAS | B9: MIRITÍ - PARANÁ
A10: AMAZONAS | B10: PUERTO ARICA
A11: AMAZONAS | B11: PUERTO NARIÑO
A12: AMAZONAS | B12: TARAPACÁ
A13: ANTIOQUIA | B13: SAN LUIS
A14: ANTIOQUIA | B14: BRICEÑO
A15: ANTIOQUIA | B15: CIUDAD BOLÍVAR
A16: ANTIOQUIA | B16: BURITICÁ
A17: ANTIOQUIA | B17: CAUCASIA
A18: ANTIOQUIA | B18: COCORNÁ
A19: ANTIOQUIA | B19: CAICEDO
A20: ANTIOQUIA | B20: CALDAS
A21: ANTIOQUIA | B21: CAÑASGORDAS
A22: ANTIOQUIA | B22: CAREPA
A23: ANTIOQUIA | B23: CARAMANTA
A24: ANTIOQUIA | B24: CARMEN DE VIBORAL
A25: ANTIOQUIA | B25: CHIGORODÓ
A26: ANTIOQUIA | B26: CISNEROS
A27: ANTIOQUIA | B27: CARACOLÍ
A28: ANTIOQUIA | B28: CAROLINA
A29: ANTIOQUIA | B29: CONCEPCIÓN
A30: ANTIOQUIA | B30: CONCORDIA
A31: ANTIOQUIA | B31: MUTATÁ
A32: ANTIOQUIA | B32: DABEIBA
A33: ANTIOQUIA | B33: COPACABANA
A34: ANTIOQUIA | B34: MEDELLÍN
A35: ANTIOQUIA | B35: ZARAGOZA
A36: ANTIOQUIA | B36: YOLOMBÓ
A37: ANTIOQUIA | B37: YARUMAL
A38: ANTIOQUIA | B38: YONDÓ (CASABE)
A39: ANTIOQUIA | B39: YALÍ
A40: ANTIOQUIA | B40: SAN PEDRO
A41: ANTIOQUIA | B41: SAN PEDRO DE URABÁ
A42: ANTIOQUIA | B42: TÁMESIS
A43: ANTIOQUIA | B43: TARAZÁ
A44: ANTIOQUIA | B44: SONSÓN
A45: ANTIOQUIA | B45: SABANALARGA
A46: ANTIOQUIA | B46: SAN ANDRÉS
A47: ANTIOQUIA | B47: SAN CARLOS
A48: ANTIOQUIA | B48: RETIRO
A49: ANTIOQUIA | B49: RIONEGRO
A50: ANTIOQUIA | B50: SABANETA
A51: ANTIOQUIA | B51: SALGAR
A52: ANTIOQUIA | B52: SAN RAFAEL
A53: ANTIOQUIA | B53: JERICÓ
A54: ANTIOQUIA | B54: SAN JERÓNIMO
A55: ANTIOQUIA | B55: SAN FRANCISCO
A56: ANTIOQUIA | B56: TOLEDO
A57: ANTIOQUIA | B57: SAN VICENTE
A58: ANTIOQUIA | B58: SANTA ROSA DE OSOS
A59: ANTIOQUIA | B59: SAN ROQUE
A60: ANTIOQUIA | B60: SOPETRÁN
A61: ANTIOQUIA | B61: SEGOVIA
A62: ANTIOQUIA | B62: SANTA BÁRBARA
A63: ANTIOQUIA | B63: TITIRIBÍ
A64: ANTIOQUIA | B64: TURBO
A65: ANTIOQUIA | B65: SANTO DOMINGO
A66: ANTIOQUIA | B66: SAN JUAN DE URABÁ
A67: ANTIOQUIA | B67: NARIÑO
A68: ANTIOQUIA | B68: LA CEJA
A69: ANTIOQUIA | B69: MURINDÓ
A70: ANTIOQUIA | B70: SAN JOSÉ DE LA MONTAÑA
A71: ANTIOQUIA | B71: NECOCLÍ
A72: ANTIOQUIA | B72: VALDIVIA
A73: ANTIOQUIA | B73: VEGACHÍ
A74: ANTIOQUIA | B74: FRONTINO
A75: ANTIOQUIA | B75: VIGIA DEL FUERTE
A76: ANTIOQUIA | B76: URAMITA
A77: ANTIOQUIA | B77: VENECIA
A78: ANTIOQUIA | B78: URRAO
A79: ANTIOQUIA | B79: GÓMEZ PLATA
A80: ANTIOQUIA | B80: GIRARDOTA
A81: ANTIOQUIA | B81: SANTUARIO
A82: ANTIOQUIA | B82: TARSO
A83: ANTIOQUIA | B83: ITUANGO
A84: ANTIOQUIA | B84: MONTEBELLO
A85: ANTIOQUIA | B85: GRANADA
A86: ANTIOQUIA | B86: HELICONIA
A87: ANTIOQUIA | B87: JARDÍN
A88: ANTIOQUIA | B88: GUADALUPE
A89: ANTIOQUIA | B89: GUARNE
A90: ANTIOQUIA | B90: HISPANIA
A91: ANTIOQUIA | B91: LA ESTRELLA
A92: ANTIOQUIA | B92: GUATAPÉ
A93: ANTIOQUIA | B93: ENTRERRIOS
A94: ANTIOQUIA | B94: GIRALDO
A95: ANTIOQUIA | B95: MACEO
A96: ANTIOQUIA | B96: DON MATÍAS
A97: ANTIOQUIA | B97: VALPARAISO
A98: ANTIOQUIA | B98: ITAGÜÍ
A99: ANTIOQUIA | B99: PEÑOL
A100: ANTIOQUIA | B100: EL BAGRE
A101: ANTIOQUIA | B101: PEQUE
A102: ANTIOQUIA | B102: PUERTO BERRÍO
A103: ANTIOQUIA | B103: PUEBLORRICO
A104: ANTIOQUIA | B104: FREDONIA
A105: ANTIOQUIA | B105: PUERTO NARE
A106: ANTIOQUIA | B106: PUERTO TRIUNFO
A107: ANTIOQUIA | B107: OLAYA
A108: ANTIOQUIA | B108: ENVIGADO
A109: ANTIOQUIA | B109: REMEDIOS
A110: ANTIOQUIA | B110: NECHÍ
A111: ANTIOQUIA | B111: LIBORINA
A112: ANTIOQUIA | B112: LA PINTADA
A113: ANTIOQUIA | B113: LA UNIÓN
A114: ANTIOQUIA | B114: MARINILLA
A115: ANTIOQUIA | B115: EBÉJICO
A116: ANTIOQUIA | B116: ALEJANDRÍA
A117: ANTIOQUIA | B117: AMAGÁ
A118: ANTIOQUIA | B118: AMALFI
A119: ANTIOQUIA | B119: ANDES
A120: ANTIOQUIA | B120: ABEJORRAL
A121: ANTIOQUIA | B121: ANORÍ
A122: ANTIOQUIA | B122: APARTADÓ
A123: ANTIOQUIA | B123: ARBOLETES
A124: ANTIOQUIA | B124: BETULIA
A125: ANTIOQUIA | B125: ANGELÓPOLIS
A126: ANTIOQUIA | B126: ANGOSTURA
A127: ANTIOQUIA | B127: ANZÁ
A128: ANTIOQUIA | B128: BETANIA
A129: ANTIOQUIA | B129: SANTA FE DE ANTIOQUIA
A130: ANTIOQUIA | B130: ARGELIA
A131: ANTIOQUIA | B131: ABRIAQUÍ
A132: ANTIOQUIA | B132: BELLO
A133: ANTIOQUIA | B133: BARBOSA
A134: ANTIOQUIA | B134: ARMENIA
A135: ANTIOQUIA | B135: BELMIRA
A136: ANTIOQUIA | B136: CAMPAMENTO
A137: ANTIOQUIA | B137: CÁCERES
A138: ARAUCA | B138: TAME
A139: ARAUCA | B139: SARAVENA
A140: ARAUCA | B140: FORTUL
A141: ARAUCA | B141: CRAVO NORTE
A142: ARAUCA | B142: ARAUQUITA
A143: ARAUCA | B143: PUERTO RONDÓN
A144: ARAUCA | B144: ARAUCA
A145: ATLÁNTICO | B145: SANTO TOMÁS
A146: ATLÁNTICO | B146: PIOJO
A147: ATLÁNTICO | B147: JUAN DE ACOSTA
A148: ATLÁNTICO | B148: SABANALARGA
A149: ATLÁNTICO | B149: PUERTO COLOMBIA
A150: ATLÁNTICO | B150: BARRANQUILLA
A151: ATLÁNTICO | B151: MALAMBO
A152: ATLÁNTICO | B152: SABANAGRANDE
A153: ATLÁNTICO | B153: GALAPA
A154: ATLÁNTICO | B154: POLONUEVO
A155: ATLÁNTICO | B155: BARANOA
A156: ATLÁNTICO | B156: PALMAR DE VARELA
A157: ATLÁNTICO | B157: PONEDERA
A158: ATLÁNTICO | B158: CANDELARIA
A159: ATLÁNTICO | B159: SOLEDAD
A160: ATLÁNTICO | B160: USIACURI
A161: ATLÁNTICO | B161: LURUACO
A162: ATLÁNTICO | B162: REPELON
A163: ATLÁNTICO | B163: CAMPO DE LA CRUZ
A164: ATLÁNTICO | B164: SUAN
A165: ATLÁNTICO | B165: SANTA LUCIA
A166: ATLÁNTICO | B166: MANATI
A167: ATLÁNTICO | B167: TUBARÁ
A168: BOGOTÁ, D.C. | B168: BOGOTÁ, D.C.
A169: BOLÍVAR | B169: TURBACO
A170: BOLÍVAR | B170: VILLANUEVA
A171: BOLÍVAR | B171: ARENAL
A172: BOLÍVAR | B172: MOMPÓS
A173: BOLÍVAR | B173: BOLÍVAR
A174: BOLÍVAR | B174: MAHATES
A175: BOLÍVAR | B175: SAN MARTIN DE LOBA
A176: BOLÍVAR | B176: SIMITÍ
A177: BOLÍVAR | B177: TALAIGUA NUEVO
A178: BOLÍVAR | B178: MORALES
A179: BOLÍVAR | B179: RIOVIEJO
A180: BOLÍVAR | B180: CARTAGENA DE INDIAS
A181: BOLÍVAR | B181: EL CARMEN DE BOLÍVAR
A182: BOLÍVAR | B182: SAN JACINTO
A183: BOLÍVAR | B183: SANTA ROSA DEL SUR
A184: BOLÍVAR | B184: SAN PABLO
A185: BOLÍVAR | B185: TIQUISIO
A186: BOLÍVAR | B186: SAN JACINTO DEL CAUCA
A187: BOLÍVAR | B187: ZAMBRANO
A188: BOLÍVAR | B188: SAN JUAN NEPOMUCENO
A189: BOLÍVAR | B189: SAN FERNANDO
A190: BOLÍVAR | B190: MARIA LA BAJA
A191: BOLÍVAR | B191: TURBANA
A192: BOLÍVAR | B192: MARGARITA
A193: BOLÍVAR | B193: MONTECRISTO
A194: BOLÍVAR | B194: MAGANGUE
A195: BOLÍVAR | B195: SAN ESTANISLAO
A196: BOLÍVAR | B196: SAN CRISTOBAL
A197: BOLÍVAR | B197: RIO VIEJO
A198: BOLÍVAR | B198: REGIDOR
A199: BOLÍVAR | B199: PINILLOS
A200: BOLÍVAR | B200: SOPLAVIENTO
... 929 more rows

Sheet ProveedorCSV (hidden)
A1: Proveedor
A2: DELTA PLUS COLOMBIA SAS

Sheet csv (hidden)
A1: Solicitud | B1: Registrar identificador | C1: ¿Enviar para aprobación? | D1: Límite de recepción de la sol. | E1: Justificación | F1: Nombre del departamento | G1: Nota del comprador | H1: Solicitado por (correo electrónico) | I1: Solicitado por (inicio de sesión) | J1: Nombre de tarjeta de compras | K1: Enviar a nombre | L1: Enviar a id. | M1: Enviar a la atención | N1: Enviar a calle 1 | O1: Enviar a calle 2 | P1: Enviar a ciudad | Q1: Enviar a estado | R1: Enviar a código postal | S1: Enviar a código de país | T1: Enviar a nombre de país | U1: Enviar a código de ubicación | V1: Ocultar precio | W1: Entidad Compradora 2 | X1: N.I.T. | Y1: Agregación | Z1: Necesidad del bien o servicio* | AA1: Modalidad de selección | AB1: Destinación del gasto* | AC1: Origen de los recursos* | AD1: Asociado al Acuerdo de Paz | AE1: Supervisor de la Orden de Compra* | AF1: Correo electrónico del supervisor* | AG1: Teléfono del supervisor* | AH1: Vencimiento de la Orden de Compra* | AI1: Especificaciones adicionales de entrega | AJ1: Gravámenes adicionales | AK1: Integración con SIIF | AL1: Código Unidad / Subunidad Ejecutora | AM1: Acepto términos y condiciones | AN1: codigoAMP | AO1: fechaAMP
A2: Línea de solicitudes | B2: Registrar identificador | C2: Número de línea | D2: Número de artículo del catálogo | E2: Nombre de artículo del catálogo | F2: Sin descripción de artículo del catálogo | G2: Número de parte del proveedor | H2: Cantidad | I2: Precio | J2: Límite de recepción de la sol. | K2: Anulación del método de transmisión | L2: Correos electrónicos de transmisión | M2: Nombre del proveedor | N2: Número del proveedor | O2: Código de sitio del proveedor | P2: Código de unidad de medida | Q2: Nombre de mercancía | R2: Nombre del contrato | S2: Código de divisa | T2: Etiquetas de activos | U2: Nombre del Cuadro de cuentas | V2: Nombre de la cuenta | W2: Código de cuentas | X2: Segmento 1 de la cuenta | Y2: Segmento 2 de la cuenta | Z2: Segmento 3 de la cuenta | AA2: Segmento 4 de la cuenta | AB2: Segmento 5 de la cuenta | AC2: Segmento 6 de la cuenta | AD2: Segmento 7 de la cuenta | AE2: Segmento 8 de la cuenta | AF2: Segmento 9 de la cuenta | AG2: Segmento 10 de la cuenta | AH2: Segmento 11 de la cuenta | AI2: Segmento 12 de la cuenta | AJ2: Segmento 13 de la cuenta | AK2: Segmento 14 de la cuenta | AL2: Segmento 15 de la cuenta | AM2: Segmento 16 de la cuenta | AN2: Segmento 17 de la cuenta | AO2: Segmento 18 de la cuenta
A3: Asignación de cuentas | B3: Registrar identificador | C3: Número de línea | D3: Monto | E3: Porcentaje | F3: Nombre de período de presupuesto | G3: Nombre de la cuenta | H3: Código de cuentas | I3: Segmento 1 de la cuenta | J3: Segmento 2 de la cuenta | K3: Segmento 3 de la cuenta | L3: Segmento 4 de la cuenta | M3: Segmento 5 de la cuenta | N3: Segmento 6 de la cuenta | O3: Segmento 7 de la cuenta | P3: Segmento 8 de la cuenta | Q3: Segmento 9 de la cuenta | R3: Segmento 10 de la cuenta | S3: Segmento 11 de la cuenta | T3: Segmento 12 de la cuenta | U3: Segmento 13 de la cuenta | V3: Segmento 14 de la cuenta | W3: Segmento 15 de la cuenta | X3: Segmento 16 de la cuenta | Y3: Segmento 17 de la cuenta | Z3: Segmento 18 de la cuenta | AA3: Segmento 19 de la cuenta | AB3: Segmento 20 de la cuenta
A4: Solicitud | B4: 1 | C4: no | F4: Digite nombre de la entidad | H4: crear.entidad@colombiacompra.gov.co | I4: digite.usuario | K4: Direccion | L4: 4394 | Y4: Atención emergencia COVID-19 | Z4: Necesidad | AA4: Selección Abreviada AMP | AB4: Funcionamiento | AC4: Recursos propios | AD4: No | AE4: Digite supervisor | AF4: Digite correo | AG4: 1 | AH4: 2020-01-01 | AJ4: Gravámenes | AM4: Sí | AN4: cov19-epp | AO4: 2020-11-13T09:00:00
A5: Línea de solicitudes | B5: 1 | C5: 1 | E5: cov01-EPP-31 - TAPABOCAS DOBLE TELA LAVABLE | H5: 100 | I5: 32799 | M5: INDUHOTEL SAS | P5: Und | Q5: Atención emergencia COVID-19 | S5: COP

Sheet csvTemp (hidden)
A1: Item | B1: Código | C1: Categoría | D1: Producto | E1: Especificación Técnica | F1: Distribución | G1: Departamento | H1: Municipio | I1: Direccón de Entrega | J1: cantidad | K1: Cantidad Asumida | L1: Valor | M1: Valor Máximo Permitido | N1: Subtotal | O1: % IVA | P1: Valor Iva | Q1: Precio Total | R1: Proveedor
A2: 1 | B2: EPP-38 | C2: ELEMENTOS DE PROTECCION PERSONAL | D2: EPP-38 - CARETA CON VISOR INTERCAMBIABLE | E2: Debe cumpir con la Norma ANSI Z87.1 Cabezal: Fabricado en polímero suave. Sostiene la careta en la cabeza. Graduable de acuerdo a la circunferencia de la cabeza del usuario. Con banda frontal absorbente. Visera o rodachispa: Elaborada en polímero de alta densidad, resistente al impacto y a la salpicadura de sustancias químicas. Sostiene el visor y oscila en el cabezal para bajar o levantar la careta. Sistema de ajuste tiene como función sujetar la visera con el cabezal. Visor fabricado en acetato de celulosa de mínimo 20 x 30 cm, ópticamente rectificado, sistema que facilite el cambio del visor. Debe proteger el rostro de salpicaduras de agua, saliva, sangre de la boca del paciente y cuerpos extraños, bajo peso, neutralidad óptica y resistencia al impacto a bajas velocidades. | F2: Si | G2: BOGOTÁ, D.C. | H2: BOGOTÁ, D.C. | I2: CALLE 13 No. 31-74 | J2: 750 | K2: 750 | L2: 24000 | M2: 24896.27 | N2: 18672202.5 | O2: 0 | P2: 0 | Q2: 18672202.5 | R2: DELTA PLUS COLOMBIA SAS

Sheet TablaDinamicaMinimos (hidden)
C3: Etiquetas de fila | D3: stock | E3: Suma de Precio
C4: DELTA PLUS COLOMBIA SAS | D4: 3000 | E4: 24000
C5: Total general | E5: 24000

Sheet CatalogoTemp (hidden)
A1: llave1 | B1: llave2 | C1: llave3 | D1: codigo unico | E1: nombre | F1: Categoría | G1: Especificación Técnica | H1: Unidad de medida | I1: Código de unidad de medida | J1: activo | K1: Mercancía | L1: proveedor | M1: Número de contrato | N1: Precio | O1: Divisa | P1: Empates | Q1: stock_inicial | R1: stock | S1: % IVA
A2: EPP-38DELTA PLUS COLOMBIA SAS | D2: EPP-38 | E2: EPP-38 - CARETA CON VISOR INTERCAMBIABLE | F2: ELEMENTOS DE PROTECCION PERSONAL | G2: Debe cumpir con la Norma ANSI Z87.1 Cabezal: Fabricado en polímero suave. Sostiene la careta en la cabeza. Graduable de acuerdo a la circunferencia de la cabeza del usuario. Con banda frontal absorbente. Visera o rodachispa: Elaborada en polímero de alta densidad, resistente al impacto y a la salpicadura de sustancias químicas. Sostiene el visor y oscila en el cabezal para bajar o levantar la careta. Sistema de ajuste tiene como función sujetar la visera con el cabezal. Visor fabricado en acetato de celulosa de mínimo 20 x 30 cm, ópticamente rectificado, sistema que facilite el cambio del visor. Debe proteger el rostro de salpicaduras de agua, saliva, sangre de la boca del paciente y cuerpos extraños, bajo peso, neutralidad óptica y resistencia al impacto a bajas velocidades. | H2: Und | I2: Und | J2: Si | K2: Atención emergencia COVID-19 | L2: DELTA PLUS COLOMBIA SAS | M2: AECovid19-583 | N2: 24000 | O2: COP | P2: 1 | Q2: 3000 | R2: 3000 | S2: 0

Sheet Catalogo (hidden)
A1: llave1 | B1: llave2 | C1: llave3 | D1: codigo unico | E1: nombre | F1: Categoría | G1: Especificación Técnica | H1: Unidad de medida | I1: Código de unidad de medida | J1: activo | K1: Mercancía | L1: proveedor | M1: Número de contrato | N1: Precio | O1: Divisa | P1: Empates | Q1: stock_inicial | R1: stock | S1: % IVA
A2: =D2&L2 -> EPP-1G&C MEDICALS S.A.S | D2: EPP-1 | E2: EPP-1 - BATA DESECHABLE PARA PACIENTE ADULTO - TALLA S, M , L, XL COMPUESTO POR BATA SIN MANGA CON AMARRADERA POSTERIOR | F2: ELEMENTOS DE PROTECCION PERSONAL | G2: COMPUESTO DE BATA PACIENTE MANGA CIZA, AMARRADERAS EN LA PARTE POSTERIOR 2 A NIVEL DE CUELLO Y 2 A NIVEL DE LA CINTURA EN TELA SMS 35 GRAMOS. | H2: Und | I2: Und | J2: Si | K2: Atención emergencia COVID-19 | L2: G&C MEDICALS S.A.S | M2: AECovid19-17 | N2: 9500 | O2: COP | P2: =COUNTIFS(D:D,D2,N:N,N2) -> 1 | Q2: 1500 | R2: =Q2-SUMIFS(ResumenCotizacion!L:L,ResumenCotizacion!S:S,L2,ResumenCotizacion!C:C,D2) -> 1500 | S2: 0
A3: EPP-3G&C MEDICALS S.A.S | D3: EPP-3 | E3: EPP-3 - BATA CIRUJANO DESECHABLE | F3: ELEMENTOS DE PROTECCION PERSONAL | G3: BATA CIRUJANO DESECHABLE TALLA S, M, L, XL PRESENTACION ESTERIL | H3: Und | I3: Und | J3: Si | K3: Atención emergencia COVID-19 | L3: G&C MEDICALS S.A.S | M3: AECovid19-17 | N3: 10000 | O3: COP | P3: 1 | Q3: 1500 | R3: =Q3-SUMIFS(ResumenCotizacion!L:L,ResumenCotizacion!S:S,L3,ResumenCotizacion!C:C,D3) -> 1500 | S3: 0
A4: EPP-4G&C MEDICALS S.A.S | D4: EPP-4 | E4: EPP-4 - BATA DESECHABLE CORTAS CON MANGA RESORTADA | F4: ELEMENTOS DE PROTECCION PERSONAL | G4: BATA DESECHABLE CORTAS CON MANGA RESORTADA CON CIERRE FRONTAL DE CREMALLERA | H4: Und | I4: Und | J4: Si | K4: Atención emergencia COVID-19 | L4: G&C MEDICALS S.A.S | M4: AECovid19-17 | N4: 10000 | O4: COP | P4: 1 | Q4: 1500 | R4: =Q4-SUMIFS(ResumenCotizacion!L:L,ResumenCotizacion!S:S,L4,ResumenCotizacion!C:C,D4) -> 1500 | S4: 0
A5: EPP-1MANUFACTURAS DELMYP S.A.S. | D5: EPP-1 | E5: EPP-1 - BATA DESECHABLE PARA PACIENTE ADULTO - TALLA S, M , L, XL COMPUESTO POR BATA SIN MANGA CON AMARRADERA POSTERIOR | F5: ELEMENTOS DE PROTECCION PERSONAL | G5: COMPUESTO DE BATA PACIENTE MANGA CIZA, AMARRADERAS EN LA PARTE POSTERIOR 2 A NIVEL DE CUELLO Y 2 A NIVEL DE LA CINTURA EN TELA SMS 35 GRAMOS. | H5: Und | I5: Und | J5: Si | K5: Atención emergencia COVID-19 | L5: MANUFACTURAS DELMYP S.A.S. | M5: AECovid19-30 | N5: 9000 | O5: COP | P5: 2 | Q5: 10000 | R5: =Q5-SUMIFS(ResumenCotizacion!L:L,ResumenCotizacion!S:S,L5,ResumenCotizacion!C:C,D5) -> 10000 | S5: 0
A6: EPP-3MANUFACTURAS DELMYP S.A.S. | D6: EPP-3 | E6: EPP-3 - BATA CIRUJANO DESECHABLE | F6: ELEMENTOS DE PROTECCION PERSONAL | G6: BATA CIRUJANO DESECHABLE TALLA S, M, L, XL PRESENTACION ESTERIL | H6: Und | I6: Und | J6: Si | K6: Atención emergencia COVID-19 | L6: MANUFACTURAS DELMYP S.A.S. | M6: AECovid19-30 | N6: 9800 | O6: COP | P6: 1 | Q6: 20000 | R6: =Q6-SUMIFS(ResumenCotizacion!L:L,ResumenCotizacion!S:S,L6,ResumenCotizacion!C:C,D6) -> 20000 | S6: 0
A7: EPP-4MANUFACTURAS DELMYP S.A.S. | D7: EPP-4 | E7: EPP-4 - BATA DESECHABLE CORTAS CON MANGA RESORTADA | F7: ELEMENTOS DE PROTECCION PERSONAL | G7: BATA DESECHABLE CORTAS CON MANGA RESORTADA CON CIERRE FRONTAL DE CREMALLERA | H7: Und | I7: Und | J7: Si | K7: Atención emergencia COVID-19 | L7: MANUFACTURAS DELMYP S.A.S. | M7: AECovid19-30 | N7: 10500 | O7: COP | P7: 1 | Q7: 10000 | R7: =Q7-SUMIFS(ResumenCotizacion!L:L,ResumenCotizacion!S:S,L7,ResumenCotizacion!C:C,D7) -> 10000 | S7: 0
A8: EPP-5MANUFACTURAS DELMYP S.A.S. | D8: EPP-5 | E8: EPP-5 - BATA DESECHABLE PARA PACIENTE PEDIATRICO - ROPA DESECHABLE COMPUESTO POR BATA SIN MANGA CON AMARRADERA POSTERIOR. | F8: ELEMENTOS DE PROTECCION PERSONAL | G8: COMPUESTO DE BATA PACIENTE MANGA CIZA DE 80 CMS, AMARRADERAS EN LA PARTE POSTERIOR 2 A NIVEL DE CUELLO Y 2 A NIVEL DE LA CINTURA EN TELA SMS 35 GRAMOS. | H8: Und | I8: Und | J8: Si | K8: Atención emergencia COVID-19 | L8: MANUFACTURAS DELMYP S.A.S. | M8: AECovid19-30 | N8: 6000 | O8: COP | P8: 1 | Q8: 5000 | R8: =Q8-SUMIFS(ResumenCotizacion!L:L,ResumenCotizacion!S:S,L8,ResumenCotizacion!C:C,D8) -> 5000 | S8: 0
A9: EPP-6MANUFACTURAS DELMYP S.A.S. | D9: EPP-6 | E9: EPP-6 - BATA PUÑO RIB | F9: ELEMENTOS DE PROTECCION PERSONAL | G9: Tela no tejida Desechable Aislante de liquidos Alta transpirabilidad Manga Larga Puño en algodón con resorte Con tiras de amarre en la cintura y cuello | H9: Und | I9: Und | J9: Si | K9: Atención emergencia COVID-19 | L9: MANUFACTURAS DELMYP S.A.S. | M9: AECovid19-30 | N9: 11000 | O9: COP | P9: 1 | Q9: 10000 | R9: =Q9-SUMIFS(ResumenCotizacion!L:L,ResumenCotizacion!S:S,L9,ResumenCotizacion!C:C,D9) -> 10000 | S9: 0
A10: EPP-24MANUFACTURAS DELMYP S.A.S. | D10: EPP-24 | E10: EPP-24 - ROPA POR CAMA DESECHABLE | F10: ELEMENTOS DE PROTECCION PERSONAL | G10: KIT DE JUEGO DE CAMA QUE INCLUYE SABANA, FORRO, SABANA DE MOVIMIENTO | H10: Und | I10: Und | J10: Si | K10: Atención emergencia COVID-19 | L10: MANUFACTURAS DELMYP S.A.S. | M10: AECovid19-30 | N10: 12000 | O10: COP | P10: 1 | Q10: 20000 | R10: =Q10-SUMIFS(ResumenCotizacion!L:L,ResumenCotizacion!S:S,L10,ResumenCotizacion!C:C,D10) -> 20000 | S10: 0
A11: EPP-6BALOONMARKETING | D11: EPP-6 | E11: EPP-6 - BATA PUÑO RIB | F11: ELEMENTOS DE PROTECCION PERSONAL | G11: Tela no tejida Desechable Aislante de liquidos Alta transpirabilidad Manga Larga Puño en algodón con resorte Con tiras de amarre en la cintura y cuello | H11: Und | I11: Und | J11: Si | K11: Atención emergencia COVID-19 | L11: BALOONMARKETING | M11: AECovid19-512 | N11: 13000 | O11: COP | P11: 1 | Q11: 10000 | R11: =Q11-SUMIFS(ResumenCotizacion!L:L,ResumenCotizacion!S:S,L11,ResumenCotizacion!C:C,D11) -> 10000 | S11: 0
A12: EPP-1Tecnialambre s.a | D12: EPP-1 | E12: EPP-1 - BATA DESECHABLE PARA PACIENTE ADULTO - TALLA S, M , L, XL COMPUESTO POR BATA SIN MANGA CON AMARRADERA POSTERIOR | F12: ELEMENTOS DE PROTECCION PERSONAL | G12: COMPUESTO DE BATA PACIENTE MANGA CIZA, AMARRADERAS EN LA PARTE POSTERIOR 2 A NIVEL DE CUELLO Y 2 A NIVEL DE LA CINTURA EN TELA SMS 35 GRAMOS. | H12: Und | I12: Und | J12: Si | K12: Atención emergencia COVID-19 | L12: Tecnialambre s.a | M12: AECovid19-11 | N12: 9700 | O12: COP | P12: 1 | Q12: 5000 | R12: =Q12-SUMIFS(ResumenCotizacion!L:L,ResumenCotizacion!S:S,L12,ResumenCotizacion!C:C,D12) -> 5000 | S12: 0
A13: EPP-4Tecnialambre s.a | D13: EPP-4 | E13: EPP-4 - BATA DESECHABLE CORTAS CON MANGA RESORTADA | F13: ELEMENTOS DE PROTECCION PERSONAL | G13: BATA DESECHABLE CORTAS CON MANGA RESORTADA CON CIERRE FRONTAL DE CREMALLERA | H13: Und | I13: Und | J13: Si | K13: Atención emergencia COVID-19 | L13: Tecnialambre s.a | M13: AECovid19-11 | N13: 11400 | O13: COP | P13: 1 | Q13: 5000 | R13: =Q13-SUMIFS(ResumenCotizacion!L:L,ResumenCotizacion!S:S,L13,ResumenCotizacion!C:C,D13) -> 5000 | S13: 0
A14: EPP-5Tecnialambre s.a | D14: EPP-5 | E14: EPP-5 - BATA DESECHABLE PARA PACIENTE PEDIATRICO - ROPA DESECHABLE COMPUESTO POR BATA SIN MANGA CON AMARRADERA POSTERIOR. | F14: ELEMENTOS DE PROTECCION PERSONAL | G14: COMPUESTO DE BATA PACIENTE MANGA CIZA DE 80 CMS, AMARRADERAS EN LA PARTE POSTERIOR 2 A NIVEL DE CUELLO Y 2 A NIVEL DE LA CINTURA EN TELA SMS 35 GRAMOS. | H14: Und | I14: Und | J14: Si | K14: Atención emergencia COVID-19 | L14: Tecnialambre s.a | M14: AECovid19-11 | N14: 9900 | O14: COP | P14: 1 | Q14: 5000 | R14: =Q14-SUMIFS(ResumenCotizacion!L:L,ResumenCotizacion!S:S,L14,ResumenCotizacion!C:C,D14) -> 5000 | S14: 0
A15: EPP-6Tecnialambre s.a | D15: EPP-6 | E15: EPP-6 - BATA PUÑO RIB | F15: ELEMENTOS DE PROTECCION PERSONAL | G15: Tela no tejida Desechable Aislante de liquidos Alta transpirabilidad Manga Larga Puño en algodón con resorte Con tiras de amarre en la cintura y cuello | H15: Und | I15: Und | J15: Si | K15: Atención emergencia COVID-19 | L15: Tecnialambre s.a | M15: AECovid19-11 | N15: 11400 | O15: COP | P15: 1 | Q15: 5000 | R15: =Q15-SUMIFS(ResumenCotizacion!L:L,ResumenCotizacion!S:S,L15,ResumenCotizacion!C:C,D15) -> 5000 | S15: 0
A16: EPP-1INDUSTRIAS MCLAREN SAS | D16: EPP-1 | E16: EPP-1 - BATA DESECHABLE PARA PACIENTE ADULTO - TALLA S, M , L, XL COMPUESTO POR BATA SIN MANGA CON AMARRADERA POSTERIOR | F16: ELEMENTOS DE PROTECCION PERSONAL | G16: COMPUESTO DE BATA PACIENTE MANGA CIZA, AMARRADERAS EN LA PARTE POSTERIOR 2 A NIVEL DE CUELLO Y 2 A NIVEL DE LA CINTURA EN TELA SMS 35 GRAMOS. | H16: Und | I16: Und | J16: Si | K16: Atención emergencia COVID-19 | L16: INDUSTRIAS MCLAREN SAS | M16: AECovid19-515 | N16: 4400 | O16: COP | P16: 1 | Q16: 100000 | R16: =Q16-SUMIFS(ResumenCotizacion!L:L,ResumenCotizacion!S:S,L16,ResumenCotizacion!C:C,D16) -> 100000 | S16: 0
A17: EPP-4INDUSTRIAS MCLAREN SAS | D17: EPP-4 | E17: EPP-4 - BATA DESECHABLE CORTAS CON MANGA RESORTADA | F17: ELEMENTOS DE PROTECCION PERSONAL | G17: BATA DESECHABLE CORTAS CON MANGA RESORTADA CON CIERRE FRONTAL DE CREMALLERA | H17: Und | I17: Und | J17: Si | K17: Atención emergencia COVID-19 | L17: INDUSTRIAS MCLAREN SAS | M17: AECovid19-515 | N17: 10200 | O17: COP | P17: 1 | Q17: 25000 | R17: =Q17-SUMIFS(ResumenCotizacion!L:L,ResumenCotizacion!S:S,L17,ResumenCotizacion!C:C,D17) -> 25000 | S17: 0
A18: EPP-5INDUSTRIAS MCLAREN SAS | D18: EPP-5 | E18: EPP-5 - BATA DESECHABLE PARA PACIENTE PEDIATRICO - ROPA DESECHABLE COMPUESTO POR BATA SIN MANGA CON AMARRADERA POSTERIOR. | F18: ELEMENTOS DE PROTECCION PERSONAL | G18: COMPUESTO DE BATA PACIENTE MANGA CIZA DE 80 CMS, AMARRADERAS EN LA PARTE POSTERIOR 2 A NIVEL DE CUELLO Y 2 A NIVEL DE LA CINTURA EN TELA SMS 35 GRAMOS. | H18: Und | I18: Und | J18: Si | K18: Atención emergencia COVID-19 | L18: INDUSTRIAS MCLAREN SAS | M18: AECovid19-515 | N18: 4000 | O18: COP | P18: 1 | Q18: 100000 | R18: =Q18-SUMIFS(ResumenCotizacion!L:L,ResumenCotizacion!S:S,L18,ResumenCotizacion!C:C,D18) -> 100000 | S18: 0
A19: EPP-6INDUSTRIAS MCLAREN SAS | D19: EPP-6 | E19: EPP-6 - BATA PUÑO RIB | F19: ELEMENTOS DE PROTECCION PERSONAL | G19: Tela no tejida Desechable Aislante de liquidos Alta transpirabilidad Manga Larga Puño en algodón con resorte Con tiras de amarre en la cintura y cuello | H19: Und | I19: Und | J19: Si | K19: Atención emergencia COVID-19 | L19: INDUSTRIAS MCLAREN SAS | M19: AECovid19-515 | N19: 12300 | O19: COP | P19: 1 | Q19: 30000 | R19: =Q19-SUMIFS(ResumenCotizacion!L:L,ResumenCotizacion!S:S,L19,ResumenCotizacion!C:C,D19) -> 30000 | S19: 0
A20: EPP-24INDUSTRIAS MCLAREN SAS | D20: EPP-24 | E20: EPP-24 - ROPA POR CAMA DESECHABLE | F20: ELEMENTOS DE PROTECCION PERSONAL | G20: KIT DE JUEGO DE CAMA QUE INCLUYE SABANA, FORRO, SABANA DE MOVIMIENTO | H20: Und | I20: Und | J20: Si | K20: Atención emergencia COVID-19 | L20: INDUSTRIAS MCLAREN SAS | M20: AECovid19-515 | N20: 24000 | O20: COP | P20: 2 | Q20: 16000 | R20: =Q20-SUMIFS(ResumenCotizacion!L:L,ResumenCotizacion!S:S,L20,ResumenCotizacion!C:C,D20) -> 16000 | S20: 0
A21: EPP-27INDUSTRIAS MCLAREN SAS | D21: EPP-27 | E21: EPP-27 - SABANAS | F21: ELEMENTOS DE PROTECCION PERSONAL | G21: DESECHABLE, PLANA, 2,40X2,20 M, EN TELA SMS 35 GR, REPELENTE DE FLUIDOS, RESISTENTE, SIN ESTERILIZAR | H21: Und | I21: Und | J21: Si | K21: Atención emergencia COVID-19 | L21: INDUSTRIAS MCLAREN SAS | M21: AECovid19-515 | N21: 10000 | O21: COP | P21: 1 | Q21: 100000 | R21: =Q21-SUMIFS(ResumenCotizacion!L:L,ResumenCotizacion!S:S,L21,ResumenCotizacion!C:C,D21) -> 100000 | S21: 0
A22: EPP-1MIGUEL FERNANDO CASTILLO ZABALA | D22: EPP-1 | E22: EPP-1 - BATA DESECHABLE PARA PACIENTE ADULTO - TALLA S, M , L, XL COMPUESTO POR BATA SIN MANGA CON AMARRADERA POSTERIOR | F22: ELEMENTOS DE PROTECCION PERSONAL | G22: COMPUESTO DE BATA PACIENTE MANGA CIZA, AMARRADERAS EN LA PARTE POSTERIOR 2 A NIVEL DE CUELLO Y 2 A NIVEL DE LA CINTURA EN TELA SMS 35 GRAMOS. | H22: Und | I22: Und | J22: Si | K22: Atención emergencia COVID-19 | L22: MIGUEL FERNANDO CASTILLO ZABALA | M22: AECovid19-516 | N22: 15460 | O22: COP | P22: 1 | Q22: 10000 | R22: =Q22-SUMIFS(ResumenCotizacion!L:L,ResumenCotizacion!S:S,L22,ResumenCotizacion!C:C,D22) -> 10000 | S22: 0
A23: EPP-3MIGUEL FERNANDO CASTILLO ZABALA | D23: EPP-3 | E23: EPP-3 - BATA CIRUJANO DESECHABLE | F23: ELEMENTOS DE PROTECCION PERSONAL | G23: BATA CIRUJANO DESECHABLE TALLA S, M, L, XL PRESENTACION ESTERIL | H23: Und | I23: Und | J23: Si | K23: Atención emergencia COVID-19 | L23: MIGUEL FERNANDO CASTILLO ZABALA | M23: AECovid19-516 | N23: 13870 | O23: COP | P23: 1 | Q23: 10000 | R23: =Q23-SUMIFS(ResumenCotizacion!L:L,ResumenCotizacion!S:S,L23,ResumenCotizacion!C:C,D23) -> 10000 | S23: 0
A24: EPP-4MIGUEL FERNANDO CASTILLO ZABALA | D24: EPP-4 | E24: EPP-4 - BATA DESECHABLE CORTAS CON MANGA RESORTADA | F24: ELEMENTOS DE PROTECCION PERSONAL | G24: BATA DESECHABLE CORTAS CON MANGA RESORTADA CON CIERRE FRONTAL DE CREMALLERA | H24: Und | I24: Und | J24: Si | K24: Atención emergencia COVID-19 | L24: MIGUEL FERNANDO CASTILLO ZABALA | M24: AECovid19-516 | N24: 15740 | O24: COP | P24: 1 | Q24: 7000 | R24: =Q24-SUMIFS(ResumenCotizacion!L:L,ResumenCotizacion!S:S,L24,ResumenCotizacion!C:C,D24) -> 7000 | S24: 0
A25: EPP-5MIGUEL FERNANDO CASTILLO ZABALA | D25: EPP-5 | E25: EPP-5 - BATA DESECHABLE PARA PACIENTE PEDIATRICO - ROPA DESECHABLE COMPUESTO POR BATA SIN MANGA CON AMARRADERA POSTERIOR. | F25: ELEMENTOS DE PROTECCION PERSONAL | G25: COMPUESTO DE BATA PACIENTE MANGA CIZA DE 80 CMS, AMARRADERAS EN LA PARTE POSTERIOR 2 A NIVEL DE CUELLO Y 2 A NIVEL DE LA CINTURA EN TELA SMS 35 GRAMOS. | H25: Und | I25: Und | J25: Si | K25: Atención emergencia COVID-19 | L25: MIGUEL FERNANDO CASTILLO ZABALA | M25: AECovid19-516 | N25: 12490 | O25: COP | P25: 1 | Q25: 10000 | R25: =Q25-SUMIFS(ResumenCotizacion!L:L,ResumenCotizacion!S:S,L25,ResumenCotizacion!C:C,D25) -> 10000 | S25: 0
A26: EPP-6MIGUEL FERNANDO CASTILLO ZABALA | D26: EPP-6 | E26: EPP-6 - BATA PUÑO RIB | F26: ELEMENTOS DE PROTECCION PERSONAL | G26: Tela no tejida Desechable Aislante de liquidos Alta transpirabilidad Manga Larga Puño en algodón con resorte Con tiras de amarre en la cintura y cuello | H26: Und | I26: Und | J26: Si | K26: Atención emergencia COVID-19 | L26: MIGUEL FERNANDO CASTILLO ZABALA | M26: AECovid19-516 | N26: 15700 | O26: COP | P26: 1 | Q26: 6000 | R26: =Q26-SUMIFS(ResumenCotizacion!L:L,ResumenCotizacion!S:S,L26,ResumenCotizacion!C:C,D26) -> 6000 | S26: 0
A27: EPP-11MIGUEL FERNANDO CASTILLO ZABALA | D27: EPP-11 | E27: EPP-11 - GORRO DESECHABLE REDONDO ELÁSTICO AZUL | F27: ELEMENTOS DE PROTECCION PERSONAL | G27: GORRO REDONDO DESECHABLE TIPO BAÑO BOLAN 15 A 20 GRAMOS TAMAÑO ESTÁNDAR, ENCAUCHADO PARA AJUSTE SUAVE Y FIRME | H27: Und | I27: Und | J27: Si | K27: Atención emergencia COVID-19 | L27: MIGUEL FERNANDO CASTILLO ZABALA | M27: AECovid19-516 | N27: 29000 | O27: COP | P27: 1 | Q27: 10000 | R27: =Q27-SUMIFS(ResumenCotizacion!L:L,ResumenCotizacion!S:S,L27,ResumenCotizacion!C:C,D27) -> 10000 | S27: 0
A28: EPP-21MIGUEL FERNANDO CASTILLO ZABALA | D28: EPP-21 | E28: EPP-21 - POLAINAS | F28: ELEMENTOS DE PROTECCION PERSONAL | G28: Polaina antideslizante, no estéril, no tejida. Libre de hebras, ni partículas volátiles, lisa, sin deformaciones. Sellado con ultrasonido. Con recuento controlado microbiano.En Polipropileno (PP) con elástico de látex natural. Dimensión estándar. De un solo uso. | H28: Und | I28: Und | J28: Si | K28: Atención emergencia COVID-19 | L28: MIGUEL FERNANDO CASTILLO ZABALA | M28: AECovid19-516 | N28: 62000 | O28: COP | P28: 1 | Q28: 10000 | R28: =Q28-SUMIFS(ResumenCotizacion!L:L,ResumenCotizacion!S:S,L28,ResumenCotizacion!C:C,D28) -> 10000 | S28: 0
A29: EPP-30MIGUEL FERNANDO CASTILLO ZABALA | D29: EPP-30 | E29: EPP-30 - TAPABOCAS DESECHABLES | F29: ELEMENTOS DE PROTECCION PERSONAL | G29: TAPABOCAS DESECHABLE, CON RESORTE A LA OREJA , DOBLE FILTRO, ADAPTADOR NASAL AJUSTABLE, TELA NO TEJIDA | H29: Und | I29: Und | J29: Si | K29: Atención emergencia COVID-19 | L29: MIGUEL FERNANDO CASTILLO ZABALA | M29: AECovid19-516 | N29: 220000 | O29: COP | P29: 1 | Q29: 10000 | R29: =Q29-SUMIFS(ResumenCotizacion!L:L,ResumenCotizacion!S:S,L29,ResumenCotizacion!C:C,D29) -> 10000 | S29: 0
A30: EPP-6DIGILED TECHNOLOGY S.A.S | D30: EPP-6 | E30: EPP-6 - BATA PUÑO RIB | F30: ELEMENTOS DE PROTECCION PERSONAL | G30: Tela no tejida Desechable Aislante de liquidos Alta transpirabilidad Manga Larga Puño en algodón con resorte Con tiras de amarre en la cintura y cuello | H30: Und | I30: Und | J30: Si | K30: Atención emergencia COVID-19 | L30: DIGILED TECHNOLOGY S.A.S | M30: AECovid19-524 | N30: 14500 | O30: COP | P30: 1 | Q30: 1000 | R30: =Q30-SUMIFS(ResumenCotizacion!L:L,ResumenCotizacion!S:S,L30,ResumenCotizacion!C:C,D30) -> 1000 | S30: 0
A31: EPP-9IDEPLAS SAS | D31: EPP-9 | E31: EPP-9 - CARETAS VISORES (PROTECTOR FACIAL) | F31: ELEMENTOS DE PROTECCION PERSONAL | G31: CARETA VISOR DE USO MEDICO EN PASTA CON SEGURO ELASTICO | H31: Und | I31: Und | J31: Si | K31: Atención emergencia COVID-19 | L31: IDEPLAS SAS | M31: AECovid19-540 | N31: 9500 | O31: COP | P31: 1 | Q31: 200000 | R31: =Q31-SUMIFS(ResumenCotizacion!L:L,ResumenCotizacion!S:S,L31,ResumenCotizacion!C:C,D31) -> 200000 | S31: 0
A32: =D32&L32 -> EPP-9AVANT PLAST S.A. | D32: EPP-9 | E32: EPP-9 - CARETAS VISORES (PROTECTOR FACIAL) | F32: ELEMENTOS DE PROTECCION PERSONAL | G32: CARETA VISOR DE USO MEDICO EN PASTA CON SEGURO ELASTICO | H32: Und | I32: Und | J32: Si | K32: Atención emergencia COVID-19 | L32: AVANT PLAST S.A. | M32: AECovid19-545 | N32: 8000 | O32: COP | P32: 1 | Q32: 20000 | R32: =Q32-SUMIFS(ResumenCotizacion!L:L,ResumenCotizacion!S:S,L32,ResumenCotizacion!C:C,D32) -> 20000 | S32: 0
A33: EPP-9LP PRINT S.A.S | D33: EPP-9 | E33: EPP-9 - CARETAS VISORES (PROTECTOR FACIAL) | F33: ELEMENTOS DE PROTECCION PERSONAL | G33: CARETA VISOR DE USO MEDICO EN PASTA CON SEGURO ELASTICO | H33: Und | I33: Und | J33: Si | K33: Atención emergencia COVID-19 | L33: LP PRINT S.A.S | M33: AECovid19-551 | N33: 8900 | O33: COP | P33: 1 | Q33: 2500 | R33: =Q33-SUMIFS(ResumenCotizacion!L:L,ResumenCotizacion!S:S,L33,ResumenCotizacion!C:C,D33) -> 2500 | S33: 0
A34: EPP-29Confecciones Antidoto SAS | D34: EPP-29 | E34: EPP-29 - TAPABOCA TELA POLYESTER ANTI FLUIDO | F34: ELEMENTOS DE PROTECCION PERSONAL | G34: TAPABOCA DE TELA Y POLYESTER FABRICANDO CON TELA ANTIFLUIDO, CON RESORTE A LA OREJA, AJUSTABLE. | H34: Und | I34: Und | J34: Si | K34: Atención emergencia COVID-19 | L34: Confecciones Antidoto SAS | M34: AECovid19-541 | N34: 1550 | O34: COP | P34: 1 | Q34: 10000 | R34: =Q34-SUMIFS(ResumenCotizacion!L:L,ResumenCotizacion!S:S,L34,ResumenCotizacion!C:C,D34) -> 10000 | S34: 0
A35: EPP-30Confecciones Antidoto SAS | D35: EPP-30 | E35: EPP-30 - TAPABOCAS DESECHABLES | F35: ELEMENTOS DE PROTECCION PERSONAL | G35: TAPABOCAS DESECHABLE, CON RESORTE A LA OREJA , DOBLE FILTRO, ADAPTADOR NASAL AJUSTABLE, TELA NO TEJIDA | H35: Und | I35: Und | J35: Si | K35: Atención emergencia COVID-19 | L35: Confecciones Antidoto SAS | M35: AECovid19-541 | N35: 90000 | O35: COP | P35: 1 | Q35: 10000 | R35: =Q35-SUMIFS(ResumenCotizacion!L:L,ResumenCotizacion!S:S,L35,ResumenCotizacion!C:C,D35) -> 10000 | S35: 0
A36: =D36&L36 -> EPP-30NUEVOS RECURSOS SAS | D36: EPP-30 | E36: EPP-30 - TAPABOCAS DESECHABLES | F36: ELEMENTOS DE PROTECCION PERSONAL | G36: TAPABOCAS DESECHABLE, CON RESORTE A LA OREJA , DOBLE FILTRO, ADAPTADOR NASAL AJUSTABLE, TELA NO TEJIDA | H36: Und | I36: Und | J36: Si | K36: Atención emergencia COVID-19 | L36: NUEVOS RECURSOS SAS | M36: AECovid19-554 | N36: 135000 | O36: COP | P36: 2 | Q36: 4000 | R36: =Q36-SUMIFS(ResumenCotizacion!L:L,ResumenCotizacion!S:S,L36,ResumenCotizacion!C:C,D36) -> 4000 | S36: 0
A37: =D37&L37 -> EPP-19INSAK SAS | D37: EPP-19 | E37: EPP-19 - MASCARILLA FACIAL N95 (TAPA BOCA)- RESORTADA | F37: ELEMENTOS DE PROTECCION PERSONAL | G37: DESECHABLE, CON RESORTE A LA OREJA , DOBLE FILTRO, ADAPTADOR NASAL AJUSTABLE, EN ALGODÓN | H37: Und | I37: Und | J37: Si | K37: Atención emergencia COVID-19 | L37: INSAK SAS | M37: AECovid19-565 | N37: 390000 | O37: COP | P37: 1 | Q37: 10000 | R37: =Q37-SUMIFS(ResumenCotizacion!L:L,ResumenCotizacion!S:S,L37,ResumenCotizacion!C:C,D37) -> 10000 | S37: 0
A38: =D38&L38 -> EPP-29COMPANIA DE INGENIEROS DE SISTEMAS ASOCIADOS COINSA S.A.S. | D38: EPP-29 | E38: EPP-29 - TAPABOCA TELA POLYESTER ANTI FLUIDO | F38: ELEMENTOS DE PROTECCION PERSONAL | G38: TAPABOCA DE TELA Y POLYESTER FABRICANDO CON TELA ANTIFLUIDO, CON RESORTE A LA OREJA, AJUSTABLE. | H38: Und | I38: Und | J38: Si | K38: Atención emergencia COVID-19 | L38: COMPANIA DE INGENIEROS DE SISTEMAS ASOCIADOS COINSA S.A.S. | M38: AECovid19-544 | N38: 2600 | O38: COP | P38: 1 | Q38: 100000 | R38: =Q38-SUMIFS(ResumenCotizacion!L:L,ResumenCotizacion!S:S,L38,ResumenCotizacion!C:C,D38) -> 100000 | S38: 0
A39: EPP-30COMPANIA DE INGENIEROS DE SISTEMAS ASOCIADOS COINSA S.A.S. | D39: EPP-30 | E39: EPP-30 - TAPABOCAS DESECHABLES | F39: ELEMENTOS DE PROTECCION PERSONAL | G39: TAPABOCAS DESECHABLE, CON RESORTE A LA OREJA , DOBLE FILTRO, ADAPTADOR NASAL AJUSTABLE, TELA NO TEJIDA | H39: Und | I39: Und | J39: Si | K39: Atención emergencia COVID-19 | L39: COMPANIA DE INGENIEROS DE SISTEMAS ASOCIADOS COINSA S.A.S. | M39: AECovid19-544 | N39: 130000 | O39: COP | P39: 2 | Q39: 100000 | R39: =Q39-SUMIFS(ResumenCotizacion!L:L,ResumenCotizacion!S:S,L39,ResumenCotizacion!C:C,D39) -> 100000 | S39: 0
A40: EPP-31COMPANIA DE INGENIEROS DE SISTEMAS ASOCIADOS COINSA S.A.S. | D40: EPP-31 | E40: EPP-31 - TAPABOCAS DOBLE TELA LAVABLE | F40: ELEMENTOS DE PROTECCION PERSONAL | G40: DOBLE TELA. REUTILIZABLE. SOPORTE NASAL. AJUSTABLE | H40: Und | I40: Und | J40: Si | K40: Atención emergencia COVID-19 | L40: COMPANIA DE INGENIEROS DE SISTEMAS ASOCIADOS COINSA S.A.S. | M40: AECovid19-544 | N40: 170000 | O40: COP | P40: 1 | Q40: 100000 | R40: =Q40-SUMIFS(ResumenCotizacion!L:L,ResumenCotizacion!S:S,L40,ResumenCotizacion!C:C,D40) -> 100000 | S40: 0
A41: =D41&L41 -> EPP-30GRUPOMLS | D41: EPP-30 | E41: EPP-30 - TAPABOCAS DESECHABLES | F41: ELEMENTOS DE PROTECCION PERSONAL | G41: TAPABOCAS DESECHABLE, CON RESORTE A LA OREJA , DOBLE FILTRO, ADAPTADOR NASAL AJUSTABLE, TELA NO TEJIDA | H41: Und | I41: Und | J41: Si | K41: Atención emergencia COVID-19 | L41: GRUPOMLS | M41: AECovid19-505 | N41: 65000 | O41: COP | P41: 4 | Q41: 50000 | R41: =Q41-SUMIFS(ResumenCotizacion!L:L,ResumenCotizacion!S:S,L41,ResumenCotizacion!C:C,D41) -> 50000 | S41: 0
A42: =D42&L42 -> EPP-1SUMICORD SAS | D42: EPP-1 | E42: EPP-1 - BATA DESECHABLE PARA PACIENTE ADULTO - TALLA S, M , L, XL COMPUESTO POR BATA SIN MANGA CON AMARRADERA POSTERIOR | F42: ELEMENTOS DE PROTECCION PERSONAL | G42: COMPUESTO DE BATA PACIENTE MANGA CIZA, AMARRADERAS EN LA PARTE POSTERIOR 2 A NIVEL DE CUELLO Y 2 A NIVEL DE LA CINTURA EN TELA SMS 35 GRAMOS. | H42: Und | I42: Und | J42: Si | K42: Atención emergencia COVID-19 | L42: SUMICORD SAS | M42: AECovid19-563 | N42: 9000 | O42: COP | P42: 2 | Q42: 22000 | R42: =Q42-SUMIFS(ResumenCotizacion!L:L,ResumenCotizacion!S:S,L42,ResumenCotizacion!C:C,D42) -> 22000 | S42: 0
A43: EPP-19SUMICORD SAS | D43: EPP-19 | E43: EPP-19 - MASCARILLA FACIAL N95 (TAPA BOCA)- RESORTADA | F43: ELEMENTOS DE PROTECCION PERSONAL | G43: DESECHABLE, CON RESORTE A LA OREJA , DOBLE FILTRO, ADAPTADOR NASAL AJUSTABLE, EN ALGODÓN | H43: Und | I43: Und | J43: Si | K43: Atención emergencia COVID-19 | L43: SUMICORD SAS | M43: AECovid19-563 | N43: 340000 | O43: COP | P43: 1 | Q43: 30000 | R43: =Q43-SUMIFS(ResumenCotizacion!L:L,ResumenCotizacion!S:S,L43,ResumenCotizacion!C:C,D43) -> 30000 | S43: 0
A44: EPP-30SUMICORD SAS | D44: EPP-30 | E44: EPP-30 - TAPABOCAS DESECHABLES | F44: ELEMENTOS DE PROTECCION PERSONAL | G44: TAPABOCAS DESECHABLE, CON RESORTE A LA OREJA , DOBLE FILTRO, ADAPTADOR NASAL AJUSTABLE, TELA NO TEJIDA | H44: Und | I44: Und | J44: Si | K44: Atención emergencia COVID-19 | L44: SUMICORD SAS | M44: AECovid19-563 | N44: 130000 | O44: COP | P44: 2 | Q44: 20000 | R44: =Q44-SUMIFS(ResumenCotizacion!L:L,ResumenCotizacion!S:S,L44,ResumenCotizacion!C:C,D44) -> 20000 | S44: 0
A45: EPP-34SUMICORD SAS | D45: EPP-34 | E45: EPP-34 - TRAJE DESECHABLE ANTIFLUIDO | F45: ELEMENTOS DE PROTECCION PERSONAL | G45: TALLAS: S,M,L,XL COSTURAS SERIADAS, CON CAPUCHA. CIERRE DE CREMALLERA FRONTAL MUÑECAS Y TOBILLOS ELASTICOS FABRICADO EN TELA ANTIFLUIDO | H45: Und | I45: Und | J45: Si | K45: Atención emergencia COVID-19 | L45: SUMICORD SAS | M45: AECovid19-563 | N45: 40000 | O45: COP | P45: 2 | Q45: 15000 | R45: =Q45-SUMIFS(ResumenCotizacion!L:L,ResumenCotizacion!S:S,L45,ResumenCotizacion!C:C,D45) -> 15000 | S45: 0
A46: =D46&L46 -> EPP-19COMPOMEDICA SAS | D46: EPP-19 | E46: EPP-19 - MASCARILLA FACIAL N95 (TAPA BOCA)- RESORTADA | F46: ELEMENTOS DE PROTECCION PERSONAL | G46: DESECHABLE, CON RESORTE A LA OREJA , DOBLE FILTRO, ADAPTADOR NASAL AJUSTABLE, EN ALGODÓN | H46: Und | I46: Und | J46: Si | K46: Atención emergencia COVID-19 | L46: COMPOMEDICA SAS | M46: AECovid19-567 | N46: 410000 | O46: COP | P46: 1 | Q46: 140 | R46: =Q46-SUMIFS(ResumenCotizacion!L:L,ResumenCotizacion!S:S,L46,ResumenCotizacion!C:C,D46) -> 140 | S46: 0
A47: EPP-30Marketing Products Group SAS | D47: EPP-30 | E47: EPP-30 - TAPABOCAS DESECHABLES | F47: ELEMENTOS DE PROTECCION PERSONAL | G47: TAPABOCAS DESECHABLE, CON RESORTE A LA OREJA , DOBLE FILTRO, ADAPTADOR NASAL AJUSTABLE, TELA NO TEJIDA | H47: Und | I47: Und | J47: Si | K47: Atención emergencia COVID-19 | L47: Marketing Products Group SAS | M47: AECovid19-568 | N47: 89900 | O47: COP | P47: 1 | Q47: 500000 | R47: =Q47-SUMIFS(ResumenCotizacion!L:L,ResumenCotizacion!S:S,L47,ResumenCotizacion!C:C,D47) -> 500000 | S47: 0
A48: =D48&L48 -> EPP-30I BUSINESS MASTER S.A.S | D48: EPP-30 | E48: EPP-30 - TAPABOCAS DESECHABLES | F48: ELEMENTOS DE PROTECCION PERSONAL | G48: TAPABOCAS DESECHABLE, CON RESORTE A LA OREJA , DOBLE FILTRO, ADAPTADOR NASAL AJUSTABLE, TELA NO TEJIDA | H48: Und | I48: Und | J48: Si | K48: Atención emergencia COVID-19 | L48: I BUSINESS MASTER S.A.S | M48: AECovid19-547 | N48: 75000 | O48: COP | P48: 4 | Q48: 4100000 | R48: =Q48-SUMIFS(ResumenCotizacion!L:L,ResumenCotizacion!S:S,L48,ResumenCotizacion!C:C,D48) -> 4100000 | S48: 0
A49: =D49&L49 -> EPP-17COMERCIALIZADORA ARTURO CALLE SAS | D49: EPP-17 | E49: EPP-17 - KIT PREVENCIÓN: CONTIENE TRAJE ANTIFLUIDO, BATA QUIRURGICA, PANTALON PIJAMA, CUBRE ZAPATOS GORRO Y TAPABOCAS, CUALQUIER PIEZA SE PUEDE HACER INDEPENDIENTE, SON RESISTENTES AL CLORO | F49: ELEMENTOS DE PROTECCION PERSONAL | G49: DEBE CONTENER TODOS LOS ELEMENTOS DESCRITOS, NO PUEDEN SER ENTREGAS PARCIALES | H49: Und | I49: Und | J49: Si | K49: Atención emergencia COVID-19 | L49: COMERCIALIZADORA ARTURO CALLE SAS | M49: AECovid19-526 | N49: 51900 | O49: COP | P49: 1 | Q49: 1200 | R49: =Q49-SUMIFS(ResumenCotizacion!L:L,ResumenCotizacion!S:S,L49,ResumenCotizacion!C:C,D49) -> 1200 | S49: 0
A50: EPP-29COMERCIALIZADORA ARTURO CALLE SAS | D50: EPP-29 | E50: EPP-29 - TAPABOCA TELA POLYESTER ANTI FLUIDO | F50: ELEMENTOS DE PROTECCION PERSONAL | G50: TAPABOCA DE TELA Y POLYESTER FABRICANDO CON TELA ANTIFLUIDO, CON RESORTE A LA OREJA, AJUSTABLE. | H50: Und | I50: Und | J50: Si | K50: Atención emergencia COVID-19 | L50: COMERCIALIZADORA ARTURO CALLE SAS | M50: AECovid19-526 | N50: 1480 | O50: COP | P50: 1 | Q50: 40000 | R50: =Q50-SUMIFS(ResumenCotizacion!L:L,ResumenCotizacion!S:S,L50,ResumenCotizacion!C:C,D50) -> 40000 | S50: 0
A51: EPP-36COMERCIALIZADORA ARTURO CALLE SAS | D51: EPP-36 | E51: EPP-36 - TRAJES DE BIO PORTECCIÓN- BLUSA | F51: ELEMENTOS DE PROTECCION PERSONAL | G51: BLUSA EN TELA ANTI-FLUIDO. REPELENTE A LIQUIDO Y ANTI-CLORO. TALLAS S,M,L,XL | H51: Und | I51: Und | J51: Si | K51: Atención emergencia COVID-19 | L51: COMERCIALIZADORA ARTURO CALLE SAS | M51: AECovid19-526 | N51: 18600 | O51: COP | P51: 1 | Q51: 2400 | R51: =Q51-SUMIFS(ResumenCotizacion!L:L,ResumenCotizacion!S:S,L51,ResumenCotizacion!C:C,D51) -> 2400 | S51: 0
A52: EPP-37COMERCIALIZADORA ARTURO CALLE SAS | D52: EPP-37 | E52: EPP-37 - TRAJES DE BIO PORTECCIÓN- PANTALON | F52: ELEMENTOS DE PROTECCION PERSONAL | G52: PANTALÓN/PANTALONES, TEJIDOS, EXFOLIANTES, REUTILIZABLES O DE UN SOLO USO, DE MANGA CORTA (TÚNICA/TOPS), USADOS DEBAJO DE LAS FUNDAS O BATAS. | H52: Und | I52: Und | J52: Si | K52: Atención emergencia COVID-19 | L52: COMERCIALIZADORA ARTURO CALLE SAS | M52: AECovid19-526 | N52: 15800 | O52: COP | P52: 1 | Q52: 2400 | R52: =Q52-SUMIFS(ResumenCotizacion!L:L,ResumenCotizacion!S:S,L52,ResumenCotizacion!C:C,D52) -> 2400 | S52: 0
A53: =D53&L53 -> EPP-30DUGOTEX SA EN REORGANIZACION | D53: EPP-30 | E53: EPP-30 - TAPABOCAS DESECHABLES | F53: ELEMENTOS DE PROTECCION PERSONAL | G53: TAPABOCAS DESECHABLE, CON RESORTE A LA OREJA , DOBLE FILTRO, ADAPTADOR NASAL AJUSTABLE, TELA NO TEJIDA | H53: Und | I53: Und | J53: Si | K53: Atención emergencia COVID-19 | L53: DUGOTEX SA EN REORGANIZACION | M53: AECovid19-570 | N53: 45000 | O53: COP | P53: 2 | Q53: 40000 | R53: =Q53-SUMIFS(ResumenCotizacion!L:L,ResumenCotizacion!S:S,L53,ResumenCotizacion!C:C,D53) -> 40000 | S53: 0
A54: EPP-12FERRESOL SAS | D54: EPP-12 | E54: EPP-12 - GORRO QUIRURJICO | F54: ELEMENTOS DE PROTECCION PERSONAL | G54: Gorro con elástico para adaptarse al entorno craneal que se coloca en la cabeza sin que cubra totalmente la frente, ni los ojos. En Tela polipropileno 100% en spundbounded y el Resorte en Nylon blanco. 15 a 20 gramos. | H54: Und | I54: Und | J54: Si | K54: Atención emergencia COVID-19 | L54: FERRESOL SAS | M54: AECovid19-564 | N54: 12000 | O54: COP | P54: 3 | Q54: 50 | R54: =Q54-SUMIFS(ResumenCotizacion!L:L,ResumenCotizacion!S:S,L54,ResumenCotizacion!C:C,D54) -> 50 | S54: 0
A55: EPP-30FERRESOL SAS | D55: EPP-30 | E55: EPP-30 - TAPABOCAS DESECHABLES | F55: ELEMENTOS DE PROTECCION PERSONAL | G55: TAPABOCAS DESECHABLE, CON RESORTE A LA OREJA , DOBLE FILTRO, ADAPTADOR NASAL AJUSTABLE, TELA NO TEJIDA | H55: Und | I55: Und | J55: Si | K55: Atención emergencia COVID-19 | L55: FERRESOL SAS | M55: AECovid19-564 | N55: 140000 | O55: COP | P55: 1 | Q55: 1000 | R55: =Q55-SUMIFS(ResumenCotizacion!L:L,ResumenCotizacion!S:S,L55,ResumenCotizacion!C:C,D55) -> 1000 | S55: 0
A56: EPP-29HB INTERNATIONAL CORP SOCIEDAD POR ACCIONES SIMPLIFICADA SAS | D56: EPP-29 | E56: EPP-29 - TAPABOCA TELA POLYESTER ANTI FLUIDO | F56: ELEMENTOS DE PROTECCION PERSONAL | G56: TAPABOCA DE TELA Y POLYESTER FABRICANDO CON TELA ANTIFLUIDO, CON RESORTE A LA OREJA, AJUSTABLE. | H56: Und | I56: Und | J56: Si | K56: Atención emergencia COVID-19 | L56: HB INTERNATIONAL CORP SOCIEDAD POR ACCIONES SIMPLIFICADA SAS | M56: AECovid19-532 | N56: 1239 | O56: COP | P56: 1 | Q56: 150000 | R56: =Q56-SUMIFS(ResumenCotizacion!L:L,ResumenCotizacion!S:S,L56,ResumenCotizacion!C:C,D56) -> 150000 | S56: 0
A57: =D57&L57 -> EPP-19CAG CONSTRUCTORES S.A.S. | D57: EPP-19 | E57: EPP-19 - MASCARILLA FACIAL N95 (TAPA BOCA)- RESORTADA | F57: ELEMENTOS DE PROTECCION PERSONAL | G57: DESECHABLE, CON RESORTE A LA OREJA , DOBLE FILTRO, ADAPTADOR NASAL AJUSTABLE, EN ALGODÓN | H57: Und | I57: Und | J57: Si | K57: Atención emergencia COVID-19 | L57: CAG CONSTRUCTORES S.A.S. | M57: AECovid19-580 | N57: 460000 | O57: COP | P57: 1 | Q57: 2000 | R57: =Q57-SUMIFS(ResumenCotizacion!L:L,ResumenCotizacion!S:S,L57,ResumenCotizacion!C:C,D57) -> 2000 | S57: 0
A58: =D58&L58 -> EPP-30DYM GROUP SAS | D58: EPP-30 | E58: EPP-30 - TAPABOCAS DESECHABLES | F58: ELEMENTOS DE PROTECCION PERSONAL | G58: TAPABOCAS DESECHABLE, CON RESORTE A LA OREJA , DOBLE FILTRO, ADAPTADOR NASAL AJUSTABLE, TELA NO TEJIDA | H58: Und | I58: Und | J58: Si | K58: Atención emergencia COVID-19 | L58: DYM GROUP SAS | M58: AECovid19-584 | N58: 75000 | O58: COP | P58: 4 | Q58: 500000 | R58: =Q58-SUMIFS(ResumenCotizacion!L:L,ResumenCotizacion!S:S,L58,ResumenCotizacion!C:C,D58) -> 500000 | S58: 0
A59: EPP-10COMERCIALIZADORA ANICAM COLOMBIA SAS | D59: EPP-10 | E59: EPP-10 - GAFAS PROTECTORAS | F59: ELEMENTOS DE PROTECCION PERSONAL | G59: BUEN SELLO DE ADHERENCIA CON LA PIEL DE LA CARA, MARCO DE PVC FLEXIBLE PARA ADAPTARSE FÁCILMENTE A TODOS LOS CONTORNOS DE LA CARA CON PRESIÓN UNIFORME, ENCERRAR LOS OJOS Y LAS ÁREAS CIRCUNDANTES, USUARIOS DE ALOJAMIENTO CON GAFAS GRADUADAS, LENTE DE PLÁSTICO TRANSPARENTE CON TRATAMIENTOS RESISTENTES A LA NIEBLA Y A LOS ARAÑAZOS, sistema AJUSTABLE PARA ASEGURAR FIRMEMENTE PARA NO LIBERARSE DURANTE LA ACTIVIDAD CLÍNICA, VENTILACIÓN INDIRECTA PARA EVITAR LA NIEBLA, PUEDE SER REUTILIZABLE (SIEMPRE QUE SE DISPONGA DE LAS DISPOSICIONES ADECUADAS PARA LA DESCONTAMINACIÓN) O DESECHABLE. | H59: Und | I59: Und | J59: Si | K59: Atención emergencia COVID-19 | L59: COMERCIALIZADORA ANICAM COLOMBIA SAS | M59: AECovid19-573 | N59: 72000 | O59: COP | P59: 1 | Q59: 866 | R59: =Q59-SUMIFS(ResumenCotizacion!L:L,ResumenCotizacion!S:S,L59,ResumenCotizacion!C:C,D59) -> 866 | S59: 0
A60: EPP-19COMERCIALIZADORA ANICAM COLOMBIA SAS | D60: EPP-19 | E60: EPP-19 - MASCARILLA FACIAL N95 (TAPA BOCA)- RESORTADA | F60: ELEMENTOS DE PROTECCION PERSONAL | G60: DESECHABLE, CON RESORTE A LA OREJA , DOBLE FILTRO, ADAPTADOR NASAL AJUSTABLE, EN ALGODÓN | H60: Und | I60: Und | J60: Si | K60: Atención emergencia COVID-19 | L60: COMERCIALIZADORA ANICAM COLOMBIA SAS | M60: AECovid19-573 | N60: 360000 | O60: COP | P60: 1 | Q60: 1000 | R60: =Q60-SUMIFS(ResumenCotizacion!L:L,ResumenCotizacion!S:S,L60,ResumenCotizacion!C:C,D60) -> 1000 | S60: 0
A61: EPP-30COMERCIALIZADORA ANICAM COLOMBIA SAS | D61: EPP-30 | E61: EPP-30 - TAPABOCAS DESECHABLES | F61: ELEMENTOS DE PROTECCION PERSONAL | G61: TAPABOCAS DESECHABLE, CON RESORTE A LA OREJA , DOBLE FILTRO, ADAPTADOR NASAL AJUSTABLE, TELA NO TEJIDA | H61: Und | I61: Und | J61: Si | K61: Atención emergencia COVID-19 | L61: COMERCIALIZADORA ANICAM COLOMBIA SAS | M61: AECovid19-573 | N61: 75000 | O61: COP | P61: 4 | Q61: 14280 | R61: =Q61-SUMIFS(ResumenCotizacion!L:L,ResumenCotizacion!S:S,L61,ResumenCotizacion!C:C,D61) -> 14280 | S61: 0
A62: =D62&L62 -> EPP-19LOGISTICS & SERVICES SAS | D62: EPP-19 | E62: EPP-19 - MASCARILLA FACIAL N95 (TAPA BOCA)- RESORTADA | F62: ELEMENTOS DE PROTECCION PERSONAL | G62: DESECHABLE, CON RESORTE A LA OREJA , DOBLE FILTRO, ADAPTADOR NASAL AJUSTABLE, EN ALGODÓN | H62: Und | I62: Und | J62: Si | K62: Atención emergencia COVID-19 | L62: LOGISTICS & SERVICES SAS | M62: AECovid19-574 | N62: 155000 | O62: COP | P62: 1 | Q62: 100000 | R62: =Q62-SUMIFS(ResumenCotizacion!L:L,ResumenCotizacion!S:S,L62,ResumenCotizacion!C:C,D62) -> 100000 | S62: 0
A63: EPP-30CUERO Y MODA NATURAL SKIN SAS | D63: EPP-30 | E63: EPP-30 - TAPABOCAS DESECHABLES | F63: ELEMENTOS DE PROTECCION PERSONAL | G63: TAPABOCAS DESECHABLE, CON RESORTE A LA OREJA , DOBLE FILTRO, ADAPTADOR NASAL AJUSTABLE, TELA NO TEJIDA | H63: Und | I63: Und | J63: Si | K63: Atención emergencia COVID-19 | L63: CUERO Y MODA NATURAL SKIN SAS | M63: AECovid19-586 | N63: 65000 | O63: COP | P63: 4 | Q63: 30000 | R63: =Q63-SUMIFS(ResumenCotizacion!L:L,ResumenCotizacion!S:S,L63,ResumenCotizacion!C:C,D63) -> 30000 | S63: 0
A64: EPP-31CUERO Y MODA NATURAL SKIN SAS | D64: EPP-31 | E64: EPP-31 - TAPABOCAS DOBLE TELA LAVABLE | F64: ELEMENTOS DE PROTECCION PERSONAL | G64: DOBLE TELA. REUTILIZABLE. SOPORTE NASAL. AJUSTABLE | H64: Und | I64: Und | J64: Si | K64: Atención emergencia COVID-19 | L64: CUERO Y MODA NATURAL SKIN SAS | M64: AECovid19-586 | N64: 240000 | O64: COP | P64: 1 | Q64: 1000 | R64: =Q64-SUMIFS(ResumenCotizacion!L:L,ResumenCotizacion!S:S,L64,ResumenCotizacion!C:C,D64) -> 1000 | S64: 0
A65: =D65&L65 -> EPP-29MARROQUINERA RIVIERA SAS | D65: EPP-29 | E65: EPP-29 - TAPABOCA TELA POLYESTER ANTI FLUIDO | F65: ELEMENTOS DE PROTECCION PERSONAL | G65: TAPABOCA DE TELA Y POLYESTER FABRICANDO CON TELA ANTIFLUIDO, CON RESORTE A LA OREJA, AJUSTABLE. | H65: Und | I65: Und | J65: Si | K65: Atención emergencia COVID-19 | L65: MARROQUINERA RIVIERA SAS | M65: AECovid19-592 | N65: 2900 | O65: COP | P65: 2 | Q65: 5000 | R65: =Q65-SUMIFS(ResumenCotizacion!L:L,ResumenCotizacion!S:S,L65,ResumenCotizacion!C:C,D65) -> 5000 | S65: 0
A66: EPP-30MARROQUINERA RIVIERA SAS | D66: EPP-30 | E66: EPP-30 - TAPABOCAS DESECHABLES | F66: ELEMENTOS DE PROTECCION PERSONAL | G66: TAPABOCAS DESECHABLE, CON RESORTE A LA OREJA , DOBLE FILTRO, ADAPTADOR NASAL AJUSTABLE, TELA NO TEJIDA | H66: Und | I66: Und | J66: Si | K66: Atención emergencia COVID-19 | L66: MARROQUINERA RIVIERA SAS | M66: AECovid19-592 | N66: 65000 | O66: COP | P66: =COUNTIFS(D:D,D66,N:N,N66) -> 4 | Q66: 400000 | R66: =Q66-SUMIFS(ResumenCotizacion!L:L,ResumenCotizacion!S:S,L66,ResumenCotizacion!C:C,D66) -> 400000 | S66: 0
A67: =D67&L67 -> EPP-30VITRA ART SAS | D67: EPP-30 | E67: EPP-30 - TAPABOCAS DESECHABLES | F67: ELEMENTOS DE PROTECCION PERSONAL | G67: TAPABOCAS DESECHABLE, CON RESORTE A LA OREJA , DOBLE FILTRO, ADAPTADOR NASAL AJUSTABLE, TELA NO TEJIDA | H67: Und | I67: Und | J67: Si | K67: Atención emergencia COVID-19 | L67: VITRA ART SAS | M67: AECovid19-591 | N67: 75000 | O67: COP | P67: 4 | Q67: 79000 | R67: =Q67-SUMIFS(ResumenCotizacion!L:L,ResumenCotizacion!S:S,L67,ResumenCotizacion!C:C,D67) -> 79000 | S67: 0
A68: EPP-19G&G LOGISTIC GROUP SAS | D68: EPP-19 | E68: EPP-19 - MASCARILLA FACIAL N95 (TAPA BOCA)- RESORTADA | F68: ELEMENTOS DE PROTECCION PERSONAL | G68: DESECHABLE, CON RESORTE A LA OREJA , DOBLE FILTRO, ADAPTADOR NASAL AJUSTABLE, EN ALGODÓN | H68: Und | I68: Und | J68: Si | K68: Atención emergencia COVID-19 | L68: G&G LOGISTIC GROUP SAS | M68: AECovid19-587 | N68: 395000 | O68: COP | P68: 1 | Q68: 3000 | R68: =Q68-SUMIFS(ResumenCotizacion!L:L,ResumenCotizacion!S:S,L68,ResumenCotizacion!C:C,D68) -> 3000 | S68: 0
A69: EPP-30Realtech Ltda | D69: EPP-30 | E69: EPP-30 - TAPABOCAS DESECHABLES | F69: ELEMENTOS DE PROTECCION PERSONAL | G69: TAPABOCAS DESECHABLE, CON RESORTE A LA OREJA , DOBLE FILTRO, ADAPTADOR NASAL AJUSTABLE, TELA NO TEJIDA | H69: Und | I69: Und | J69: Si | K69: Atención emergencia COVID-19 | L69: Realtech Ltda | M69: AECovid19-594 | N69: 85000 | O69: COP | P69: 1 | Q69: 3500 | R69: =Q69-SUMIFS(ResumenCotizacion!L:L,ResumenCotizacion!S:S,L69,ResumenCotizacion!C:C,D69) -> 3500 | S69: 0
A70: =D70&L70 -> EPP-19TIERRA DESEADA SAS | D70: EPP-19 | E70: EPP-19 - MASCARILLA FACIAL N95 (TAPA BOCA)- RESORTADA | F70: ELEMENTOS DE PROTECCION PERSONAL | G70: DESECHABLE, CON RESORTE A LA OREJA , DOBLE FILTRO, ADAPTADOR NASAL AJUSTABLE, EN ALGODÓN | H70: Und | I70: Und | J70: Si | K70: Atención emergencia COVID-19 | L70: TIERRA DESEADA SAS | M70: AECovid19-578 | N70: 160000 | O70: COP | P70: 1 | Q70: 500000 | R70: =Q70-SUMIFS(ResumenCotizacion!L:L,ResumenCotizacion!S:S,L70,ResumenCotizacion!C:C,D70) -> 500000 | S70: 0
A71: =D71&L71 -> EPP-30GRUPO EMPRESARIAL LCS SAS | D71: EPP-30 | E71: EPP-30 - TAPABOCAS DESECHABLES | F71: ELEMENTOS DE PROTECCION PERSONAL | G71: TAPABOCAS DESECHABLE, CON RESORTE A LA OREJA , DOBLE FILTRO, ADAPTADOR NASAL AJUSTABLE, TELA NO TEJIDA | H71: Und | I71: Und | J71: Si | K71: Atención emergencia COVID-19 | L71: GRUPO EMPRESARIAL LCS SAS | M71: AECovid19-572 | N71: 22000 | O71: COP | P71: 2 | Q71: 2800 | R71: =Q71-SUMIFS(ResumenCotizacion!L:L,ResumenCotizacion!S:S,L71,ResumenCotizacion!C:C,D71) -> 2800 | S71: 0
A72: =D72&L72 -> EPP-2OFIBEST SAS | D72: EPP-2 | E72: EPP-2 - BATA AISLAMIENTO NO ESTERIL MANGA LARGA | F72: ELEMENTOS DE PROTECCION PERSONAL | G72: Debe cumplir la siguiente reglamentación: NTC 5623 - Campos Quirurgicos, Batas y trajes para aire limpio de utilizacion quirurgica como Dispositivos Medicos para pacientes, personal clinico y equipo. Parte 1 Requisitos Generales para los fabricantes procesadores y productos. NTC 5624 - Campos Quirurgicos, Batas y trajes para aire limpio de utilizacion quirurgica como Dispositivos Medicos para pacientes, personal clinico y equipo. Parte 2 Metodos de Ensayo. NTC 5625 - Campos Quirurgicos, Batas y trajes para aire limpio de utilizacion quirurgica como Dispositivos Medicos para pacientes, personal clinico y equipo. Parte 3 Requisitos y niveles de funcionamiento. | H72: Und | I72: Und | J72: Si | K72: Atención emergencia COVID-19 | L72: OFIBEST SAS | M72: AECovid19-519 | N72: 5860 | O72: COP | P72: 1 | Q72: 10000 | R72: =Q72-SUMIFS(ResumenCotizacion!L:L,ResumenCotizacion!S:S,L72,ResumenCotizacion!C:C,D72) -> 10000 | S72: 0
A73: EPP-11OFIBEST SAS | D73: EPP-11 | E73: EPP-11 - GORRO DESECHABLE REDONDO ELÁSTICO AZUL | F73: ELEMENTOS DE PROTECCION PERSONAL | G73: GORRO REDONDO DESECHABLE TIPO BAÑO BOLAN 15 A 20 GRAMOS TAMAÑO ESTÁNDAR, ENCAUCHADO PARA AJUSTE SUAVE Y FIRME | H73: Und | I73: Und | J73: Si | K73: Atención emergencia COVID-19 | L73: OFIBEST SAS | M73: AECovid19-519 | N73: 11500 | O73: COP | P73: 1 | Q73: 10000 | R73: =Q73-SUMIFS(ResumenCotizacion!L:L,ResumenCotizacion!S:S,L73,ResumenCotizacion!C:C,D73) -> 10000 | S73: 0
A74: EPP-12OFIBEST SAS | D74: EPP-12 | E74: EPP-12 - GORRO QUIRURJICO | F74: ELEMENTOS DE PROTECCION PERSONAL | G74: Gorro con elástico para adaptarse al entorno craneal que se coloca en la cabeza sin que cubra totalmente la frente, ni los ojos. En Tela polipropileno 100% en spundbounded y el Resorte en Nylon blanco. 15 a 20 gramos. | H74: Und | I74: Und | J74: Si | K74: Atención emergencia COVID-19 | L74: OFIBEST SAS | M74: AECovid19-519 | N74: 11300 | O74: COP | P74: 1 | Q74: 10000 | R74: =Q74-SUMIFS(ResumenCotizacion!L:L,ResumenCotizacion!S:S,L74,ResumenCotizacion!C:C,D74) -> 10000 | S74: 0
A75: =D75&L75 -> EPP-2MAJOSUM SAS | D75: EPP-2 | E75: EPP-2 - BATA AISLAMIENTO NO ESTERIL MANGA LARGA | F75: ELEMENTOS DE PROTECCION PERSONAL | G75: Debe cumplir la siguiente reglamentación: NTC 5623 - Campos Quirurgicos, Batas y trajes para aire limpio de utilizacion quirurgica como Dispositivos Medicos para pacientes, personal clinico y equipo. Parte 1 Requisitos Generales para los fabricantes procesadores y productos. NTC 5624 - Campos Quirurgicos, Batas y trajes para aire limpio de utilizacion quirurgica como Dispositivos Medicos para pacientes, personal clinico y equipo. Parte 2 Metodos de Ensayo. NTC 5625 - Campos Quirurgicos, Batas y trajes para aire limpio de utilizacion quirurgica como Dispositivos Medicos para pacientes, personal clinico y equipo. Parte 3 Requisitos y niveles de funcionamiento. | H75: Und | I75: Und | J75: Si | K75: Atención emergencia COVID-19 | L75: MAJOSUM SAS | M75: AECovid19-576 | N75: 8000 | O75: COP | P75: 1 | Q75: 50000 | R75: =Q75-SUMIFS(ResumenCotizacion!L:L,ResumenCotizacion!S:S,L75,ResumenCotizacion!C:C,D75) -> 50000 | S75: 0
A76: EPP-3MAJOSUM SAS | D76: EPP-3 | E76: EPP-3 - BATA CIRUJANO DESECHABLE | F76: ELEMENTOS DE PROTECCION PERSONAL | G76: BATA CIRUJANO DESECHABLE TALLA S, M, L, XL PRESENTACION ESTERIL | H76: Und | I76: Und | J76: Si | K76: Atención emergencia COVID-19 | L76: MAJOSUM SAS | M76: AECovid19-576 | N76: 14000 | O76: COP | P76: 1 | Q76: 2000 | R76: =Q76-SUMIFS(ResumenCotizacion!L:L,ResumenCotizacion!S:S,L76,ResumenCotizacion!C:C,D76) -> 2000 | S76: 0
A77: EPP-4MAJOSUM SAS | D77: EPP-4 | E77: EPP-4 - BATA DESECHABLE CORTAS CON MANGA RESORTADA | F77: ELEMENTOS DE PROTECCION PERSONAL | G77: BATA DESECHABLE CORTAS CON MANGA RESORTADA CON CIERRE FRONTAL DE CREMALLERA | H77: Und | I77: Und | J77: Si | K77: Atención emergencia COVID-19 | L77: MAJOSUM SAS | M77: AECovid19-576 | N77: 16000 | O77: COP | P77: 1 | Q77: 500 | R77: =Q77-SUMIFS(ResumenCotizacion!L:L,ResumenCotizacion!S:S,L77,ResumenCotizacion!C:C,D77) -> 500 | S77: 0
A78: EPP-6MAJOSUM SAS | D78: EPP-6 | E78: EPP-6 - BATA PUÑO RIB | F78: ELEMENTOS DE PROTECCION PERSONAL | G78: Tela no tejida Desechable Aislante de liquidos Alta transpirabilidad Manga Larga Puño en algodón con resorte Con tiras de amarre en la cintura y cuello | H78: Und | I78: Und | J78: Si | K78: Atención emergencia COVID-19 | L78: MAJOSUM SAS | M78: AECovid19-576 | N78: 7800 | O78: COP | P78: 2 | Q78: 150000 | R78: =Q78-SUMIFS(ResumenCotizacion!L:L,ResumenCotizacion!S:S,L78,ResumenCotizacion!C:C,D78) -> 150000 | S78: 0
A79: EPP-11MAJOSUM SAS | D79: EPP-11 | E79: EPP-11 - GORRO DESECHABLE REDONDO ELÁSTICO AZUL | F79: ELEMENTOS DE PROTECCION PERSONAL | G79: GORRO REDONDO DESECHABLE TIPO BAÑO BOLAN 15 A 20 GRAMOS TAMAÑO ESTÁNDAR, ENCAUCHADO PARA AJUSTE SUAVE Y FIRME | H79: Und | I79: Und | J79: Si | K79: Atención emergencia COVID-19 | L79: MAJOSUM SAS | M79: AECovid19-576 | N79: 15000 | O79: COP | P79: 2 | Q79: 10000 | R79: =Q79-SUMIFS(ResumenCotizacion!L:L,ResumenCotizacion!S:S,L79,ResumenCotizacion!C:C,D79) -> 10000 | S79: 0
A80: EPP-12MAJOSUM SAS | D80: EPP-12 | E80: EPP-12 - GORRO QUIRURJICO | F80: ELEMENTOS DE PROTECCION PERSONAL | G80: Gorro con elástico para adaptarse al entorno craneal que se coloca en la cabeza sin que cubra totalmente la frente, ni los ojos. En Tela polipropileno 100% en spundbounded y el Resorte en Nylon blanco. 15 a 20 gramos. | H80: Und | I80: Und | J80: Si | K80: Atención emergencia COVID-19 | L80: MAJOSUM SAS | M80: AECovid19-576 | N80: 24000 | O80: COP | P80: 1 | Q80: 10000 | R80: =Q80-SUMIFS(ResumenCotizacion!L:L,ResumenCotizacion!S:S,L80,ResumenCotizacion!C:C,D80) -> 10000 | S80: 0
A81: EPP-21MAJOSUM SAS | D81: EPP-21 | E81: EPP-21 - POLAINAS | F81: ELEMENTOS DE PROTECCION PERSONAL | G81: Polaina antideslizante, no estéril, no tejida. Libre de hebras, ni partículas volátiles, lisa, sin deformaciones. Sellado con ultrasonido. Con recuento controlado microbiano.En Polipropileno (PP) con elástico de látex natural. Dimensión estándar. De un solo uso. | H81: Und | I81: Und | J81: Si | K81: Atención emergencia COVID-19 | L81: MAJOSUM SAS | M81: AECovid19-576 | N81: 45000 | O81: COP | P81: 1 | Q81: 10000 | R81: =Q81-SUMIFS(ResumenCotizacion!L:L,ResumenCotizacion!S:S,L81,ResumenCotizacion!C:C,D81) -> 10000 | S81: 0
A82: EPP-24MAJOSUM SAS | D82: EPP-24 | E82: EPP-24 - ROPA POR CAMA DESECHABLE | F82: ELEMENTOS DE PROTECCION PERSONAL | G82: KIT DE JUEGO DE CAMA QUE INCLUYE SABANA, FORRO, SABANA DE MOVIMIENTO | H82: Und | I82: Und | J82: Si | K82: Atención emergencia COVID-19 | L82: MAJOSUM SAS | M82: AECovid19-576 | N82: 32000 | O82: COP | P82: 1 | Q82: 5000 | R82: =Q82-SUMIFS(ResumenCotizacion!L:L,ResumenCotizacion!S:S,L82,ResumenCotizacion!C:C,D82) -> 5000 | S82: 0
A83: EPP-27MAJOSUM SAS | D83: EPP-27 | E83: EPP-27 - SABANAS | F83: ELEMENTOS DE PROTECCION PERSONAL | G83: DESECHABLE, PLANA, 2,40X2,20 M, EN TELA SMS 35 GR, REPELENTE DE FLUIDOS, RESISTENTE, SIN ESTERILIZAR | H83: Und | I83: Und | J83: Si | K83: Atención emergencia COVID-19 | L83: MAJOSUM SAS | M83: AECovid19-576 | N83: 19000 | O83: COP | P83: 1 | Q83: 5000 | R83: =Q83-SUMIFS(ResumenCotizacion!L:L,ResumenCotizacion!S:S,L83,ResumenCotizacion!C:C,D83) -> 5000 | S83: 0
A84: EPP-34MAJOSUM SAS | D84: EPP-34 | E84: EPP-34 - TRAJE DESECHABLE ANTIFLUIDO | F84: ELEMENTOS DE PROTECCION PERSONAL | G84: TALLAS: S,M,L,XL COSTURAS SERIADAS, CON CAPUCHA. CIERRE DE CREMALLERA FRONTAL MUÑECAS Y TOBILLOS ELASTICOS FABRICADO EN TELA ANTIFLUIDO | H84: Und | I84: Und | J84: Si | K84: Atención emergencia COVID-19 | L84: MAJOSUM SAS | M84: AECovid19-576 | N84: 48000 | O84: COP | P84: 1 | Q84: 10000 | R84: =Q84-SUMIFS(ResumenCotizacion!L:L,ResumenCotizacion!S:S,L84,ResumenCotizacion!C:C,D84) -> 10000 | S84: 0
A85: =D85&L85 -> EPP-11CENTRAL DE SOLDADURAS Y PROTECCION INDUSTRIAL SA | D85: EPP-11 | E85: EPP-11 - GORRO DESECHABLE REDONDO ELÁSTICO AZUL | F85: ELEMENTOS DE PROTECCION PERSONAL | G85: GORRO REDONDO DESECHABLE TIPO BAÑO BOLAN 15 A 20 GRAMOS TAMAÑO ESTÁNDAR, ENCAUCHADO PARA AJUSTE SUAVE Y FIRME | H85: Und | I85: Und | J85: Si | K85: Atención emergencia COVID-19 | L85: CENTRAL DE SOLDADURAS Y PROTECCION INDUSTRIAL SA | M85: AECovid19-529 | N85: 14000 | O85: COP | P85: 1 | Q85: 400 | R85: =Q85-SUMIFS(ResumenCotizacion!L:L,ResumenCotizacion!S:S,L85,ResumenCotizacion!C:C,D85) -> 400 | S85: 0
A86: EPP-19CENTRAL DE SOLDADURAS Y PROTECCION INDUSTRIAL SA | D86: EPP-19 | E86: EPP-19 - MASCARILLA FACIAL N95 (TAPA BOCA)- RESORTADA | F86: ELEMENTOS DE PROTECCION PERSONAL | G86: DESECHABLE, CON RESORTE A LA OREJA , DOBLE FILTRO, ADAPTADOR NASAL AJUSTABLE, EN ALGODÓN | H86: Und | I86: Und | J86: Si | K86: Atención emergencia COVID-19 | L86: CENTRAL DE SOLDADURAS Y PROTECCION INDUSTRIAL SA | M86: AECovid19-529 | N86: 150000 | O86: COP | P86: 1 | Q86: 150000 | R86: =Q86-SUMIFS(ResumenCotizacion!L:L,ResumenCotizacion!S:S,L86,ResumenCotizacion!C:C,D86) -> 150000 | S86: 0
A87: EPP-30CENTRAL DE SOLDADURAS Y PROTECCION INDUSTRIAL SA | D87: EPP-30 | E87: EPP-30 - TAPABOCAS DESECHABLES | F87: ELEMENTOS DE PROTECCION PERSONAL | G87: TAPABOCAS DESECHABLE, CON RESORTE A LA OREJA , DOBLE FILTRO, ADAPTADOR NASAL AJUSTABLE, TELA NO TEJIDA | H87: Und | I87: Und | J87: Si | K87: Atención emergencia COVID-19 | L87: CENTRAL DE SOLDADURAS Y PROTECCION INDUSTRIAL SA | M87: AECovid19-529 | N87: 29000 | O87: COP | P87: 1 | Q87: 100000 | R87: =Q87-SUMIFS(ResumenCotizacion!L:L,ResumenCotizacion!S:S,L87,ResumenCotizacion!C:C,D87) -> 100000 | S87: 0
A88: =D88&L88 -> EPP-6ICOMMERCE SAS | D88: EPP-6 | E88: EPP-6 - BATA PUÑO RIB | F88: ELEMENTOS DE PROTECCION PERSONAL | G88: Tela no tejida Desechable Aislante de liquidos Alta transpirabilidad Manga Larga Puño en algodón con resorte Con tiras de amarre en la cintura y cuello | H88: Und | I88: Und | J88: Si | K88: Atención emergencia COVID-19 | L88: ICOMMERCE SAS | M88: AECovid19-552 | N88: 4750 | O88: COP | P88: 1 | Q88: 210000 | R88: =Q88-SUMIFS(ResumenCotizacion!L:L,ResumenCotizacion!S:S,L88,ResumenCotizacion!C:C,D88) -> 210000 | S88: 0
A89: =D89&L89 -> EPP-9DYD SAS | D89: EPP-9 | E89: EPP-9 - CARETAS VISORES (PROTECTOR FACIAL) | F89: ELEMENTOS DE PROTECCION PERSONAL | G89: CARETA VISOR DE USO MEDICO EN PASTA CON SEGURO ELASTICO | H89: Und | I89: Und | J89: Si | K89: Atención emergencia COVID-19 | L89: DYD SAS | M89: AECovid19-14 | N89: 18000 | O89: COP | P89: 1 | Q89: 1000 | R89: =Q89-SUMIFS(ResumenCotizacion!L:L,ResumenCotizacion!S:S,L89,ResumenCotizacion!C:C,D89) -> 1000 | S89: 0
A90: =D90&L90 -> EPP-30Comercializadora de Tecnologia Maxmobile SAS | D90: EPP-30 | E90: EPP-30 - TAPABOCAS DESECHABLES | F90: ELEMENTOS DE PROTECCION PERSONAL | G90: TAPABOCAS DESECHABLE, CON RESORTE A LA OREJA , DOBLE FILTRO, ADAPTADOR NASAL AJUSTABLE, TELA NO TEJIDA | H90: Und | I90: Und | J90: Si | K90: Atención emergencia COVID-19 | L90: Comercializadora de Tecnologia Maxmobile SAS | M90: AECovid19-599 | N90: 50000 | O90: COP | P90: 1 | Q90: 9000 | R90: =Q90-SUMIFS(ResumenCotizacion!L:L,ResumenCotizacion!S:S,L90,ResumenCotizacion!C:C,D90) -> 9000 | S90: 0
A91: =D91&L91 -> EPP-6AMBT SAS | D91: EPP-6 | E91: EPP-6 - BATA PUÑO RIB | F91: ELEMENTOS DE PROTECCION PERSONAL | G91: Tela no tejida Desechable Aislante de liquidos Alta transpirabilidad Manga Larga Puño en algodón con resorte Con tiras de amarre en la cintura y cuello | H91: Und | I91: Und | J91: Si | K91: Atención emergencia COVID-19 | L91: AMBT SAS | M91: AECovid19-569 | N91: 7000 | O91: COP | P91: 1 | Q91: 2500 | R91: =Q91-SUMIFS(ResumenCotizacion!L:L,ResumenCotizacion!S:S,L91,ResumenCotizacion!C:C,D91) -> 2500 | S91: 0
A92: EPP-19AMBT SAS | D92: EPP-19 | E92: EPP-19 - MASCARILLA FACIAL N95 (TAPA BOCA)- RESORTADA | F92: ELEMENTOS DE PROTECCION PERSONAL | G92: DESECHABLE, CON RESORTE A LA OREJA , DOBLE FILTRO, ADAPTADOR NASAL AJUSTABLE, EN ALGODÓN | H92: Und | I92: Und | J92: Si | K92: Atención emergencia COVID-19 | L92: AMBT SAS | M92: AECovid19-569 | N92: 375000 | O92: COP | P92: 1 | Q92: 200 | R92: =Q92-SUMIFS(ResumenCotizacion!L:L,ResumenCotizacion!S:S,L92,ResumenCotizacion!C:C,D92) -> 200 | S92: 0
A93: EPP-21AMBT SAS | D93: EPP-21 | E93: EPP-21 - POLAINAS | F93: ELEMENTOS DE PROTECCION PERSONAL | G93: Polaina antideslizante, no estéril, no tejida. Libre de hebras, ni partículas volátiles, lisa, sin deformaciones. Sellado con ultrasonido. Con recuento controlado microbiano.En Polipropileno (PP) con elástico de látex natural. Dimensión estándar. De un solo uso. | H93: Und | I93: Und | J93: Si | K93: Atención emergencia COVID-19 | L93: AMBT SAS | M93: AECovid19-569 | N93: 31250 | O93: COP | P93: 1 | Q93: 1000 | R93: =Q93-SUMIFS(ResumenCotizacion!L:L,ResumenCotizacion!S:S,L93,ResumenCotizacion!C:C,D93) -> 1000 | S93: 0
A94: EPP-30AMBT SAS | D94: EPP-30 | E94: EPP-30 - TAPABOCAS DESECHABLES | F94: ELEMENTOS DE PROTECCION PERSONAL | G94: TAPABOCAS DESECHABLE, CON RESORTE A LA OREJA , DOBLE FILTRO, ADAPTADOR NASAL AJUSTABLE, TELA NO TEJIDA | H94: Und | I94: Und | J94: Si | K94: Atención emergencia COVID-19 | L94: AMBT SAS | M94: AECovid19-569 | N94: 56158 | O94: COP | P94: 1 | Q94: 4000 | R94: =Q94-SUMIFS(ResumenCotizacion!L:L,ResumenCotizacion!S:S,L94,ResumenCotizacion!C:C,D94) -> 4000 | S94: 0
A95: EPP-33AMBT SAS | D95: EPP-33 | E95: EPP-33 - TRAJE BIOLÓGICO | F95: ELEMENTOS DE PROTECCION PERSONAL | G95: TRAJE DE PROTECCCIÓN CONTRA AGENTES BIOLÓGICOS Y QUÍMICOS, TAMAÑO (S, M, L, XL, XXL, XXXL) · CAPUCHA, CINTURA Y TOBILLOS ELÁSTICOS, PARA UNA MAYOR SEGURIDAD Y LIBERTAD DE MOVIMIENTOS. · MATERIAL MICROPOROSO LAMINADO, LE BRINDA UNA GRAN RESISTENCIA Y DURACIÓN, LIBRE DE FIBRAS. · CIERRE CUBIERTO PARA MEJOR PROTECCIÓN. | H95: Und | I95: Und | J95: Si | K95: Atención emergencia COVID-19 | L95: AMBT SAS | M95: AECovid19-569 | N95: 60000 | O95: COP | P95: 1 | Q95: 360 | R95: =Q95-SUMIFS(ResumenCotizacion!L:L,ResumenCotizacion!S:S,L95,ResumenCotizacion!C:C,D95) -> 360 | S95: 0
A96: EPP-30BIOKEMICAL S.A.S. | D96: EPP-30 | E96: EPP-30 - TAPABOCAS DESECHABLES | F96: ELEMENTOS DE PROTECCION PERSONAL | G96: TAPABOCAS DESECHABLE, CON RESORTE A LA OREJA , DOBLE FILTRO, ADAPTADOR NASAL AJUSTABLE, TELA NO TEJIDA | H96: Und | I96: Und | J96: Si | K96: Atención emergencia COVID-19 | L96: BIOKEMICAL S.A.S. | M96: AECovid19-543 | N96: 56000 | O96: COP | P96: 2 | Q96: 5000 | R96: =Q96-SUMIFS(ResumenCotizacion!L:L,ResumenCotizacion!S:S,L96,ResumenCotizacion!C:C,D96) -> 5000 | S96: 0
A97: =D97&L97 -> EPP-30EDUARDO GOMEZ & COMERCIALIZADORA GLOBAL-CO | D97: EPP-30 | E97: EPP-30 - TAPABOCAS DESECHABLES | F97: ELEMENTOS DE PROTECCION PERSONAL | G97: TAPABOCAS DESECHABLE, CON RESORTE A LA OREJA , DOBLE FILTRO, ADAPTADOR NASAL AJUSTABLE, TELA NO TEJIDA | H97: Und | I97: Und | J97: Si | K97: Atención emergencia COVID-19 | L97: EDUARDO GOMEZ & COMERCIALIZADORA GLOBAL-CO | M97: AECovid19-590 | N97: 65000 | O97: COP | P97: 4 | Q97: 3000000 | R97: =Q97-SUMIFS(ResumenCotizacion!L:L,ResumenCotizacion!S:S,L97,ResumenCotizacion!C:C,D97) -> 3000000 | S97: 0
A98: =D98&L98 -> EPP-29MASIVA SAS | D98: EPP-29 | E98: EPP-29 - TAPABOCA TELA POLYESTER ANTI FLUIDO | F98: ELEMENTOS DE PROTECCION PERSONAL | G98: TAPABOCA DE TELA Y POLYESTER FABRICANDO CON TELA ANTIFLUIDO, CON RESORTE A LA OREJA, AJUSTABLE. | H98: Und | I98: Und | J98: Si | K98: Atención emergencia COVID-19 | L98: MASIVA SAS | M98: AECovid19-557 | N98: 1000 | O98: COP | P98: 1 | Q98: 30000 | R98: =Q98-SUMIFS(ResumenCotizacion!L:L,ResumenCotizacion!S:S,L98,ResumenCotizacion!C:C,D98) -> 30000 | S98: 0
A99: EPP-9PERMODA LTDA | D99: EPP-9 | E99: EPP-9 - CARETAS VISORES (PROTECTOR FACIAL) | F99: ELEMENTOS DE PROTECCION PERSONAL | G99: CARETA VISOR DE USO MEDICO EN PASTA CON SEGURO ELASTICO | H99: Und | I99: Und | J99: Si | K99: Atención emergencia COVID-19 | L99: PERMODA LTDA | M99: AECovid19-566 | N99: 4000 | O99: COP | P99: 1 | Q99: 100000 | R99: =Q99-SUMIFS(ResumenCotizacion!L:L,ResumenCotizacion!S:S,L99,ResumenCotizacion!C:C,D99) -> 100000 | S99: 0
A100: EPP-10PERMODA LTDA | D100: EPP-10 | E100: EPP-10 - GAFAS PROTECTORAS | F100: ELEMENTOS DE PROTECCION PERSONAL | G100: BUEN SELLO DE ADHERENCIA CON LA PIEL DE LA CARA, MARCO DE PVC FLEXIBLE PARA ADAPTARSE FÁCILMENTE A TODOS LOS CONTORNOS DE LA CARA CON PRESIÓN UNIFORME, ENCERRAR LOS OJOS Y LAS ÁREAS CIRCUNDANTES, USUARIOS DE ALOJAMIENTO CON GAFAS GRADUADAS, LENTE DE PLÁSTICO TRANSPARENTE CON TRATAMIENTOS RESISTENTES A LA NIEBLA Y A LOS ARAÑAZOS, sistema AJUSTABLE PARA ASEGURAR FIRMEMENTE PARA NO LIBERARSE DURANTE LA ACTIVIDAD CLÍNICA, VENTILACIÓN INDIRECTA PARA EVITAR LA NIEBLA, PUEDE SER REUTILIZABLE (SIEMPRE QUE SE DISPONGA DE LAS DISPOSICIONES ADECUADAS PARA LA DESCONTAMINACIÓN) O DESECHABLE. | H100: Und | I100: Und | J100: Si | K100: Atención emergencia COVID-19 | L100: PERMODA LTDA | M100: AECovid19-566 | N100: 63600 | O100: COP | P100: 1 | Q100: 90000 | R100: =Q100-SUMIFS(ResumenCotizacion!L:L,ResumenCotizacion!S:S,L100,ResumenCotizacion!C:C,D100) -> 90000 | S100: 0
A101: EPP-19PERMODA LTDA | D101: EPP-19 | E101: EPP-19 - MASCARILLA FACIAL N95 (TAPA BOCA)- RESORTADA | F101: ELEMENTOS DE PROTECCION PERSONAL | G101: DESECHABLE, CON RESORTE A LA OREJA , DOBLE FILTRO, ADAPTADOR NASAL AJUSTABLE, EN ALGODÓN | H101: Und | I101: Und | J101: Si | K101: Atención emergencia COVID-19 | L101: PERMODA LTDA | M101: AECovid19-566 | N101: 68000 | O101: COP | P101: 1 | Q101: 2400000 | R101: =Q101-SUMIFS(ResumenCotizacion!L:L,ResumenCotizacion!S:S,L101,ResumenCotizacion!C:C,D101) -> 2400000 | S101: 0
A102: EPP-30PERMODA LTDA | D102: EPP-30 | E102: EPP-30 - TAPABOCAS DESECHABLES | F102: ELEMENTOS DE PROTECCION PERSONAL | G102: TAPABOCAS DESECHABLE, CON RESORTE A LA OREJA , DOBLE FILTRO, ADAPTADOR NASAL AJUSTABLE, TELA NO TEJIDA | H102: Und | I102: Und | J102: Si | K102: Atención emergencia COVID-19 | L102: PERMODA LTDA | M102: AECovid19-566 | N102: 14000 | O102: COP | P102: 1 | Q102: 10000000 | R102: =Q102-SUMIFS(ResumenCotizacion!L:L,ResumenCotizacion!S:S,L102,ResumenCotizacion!C:C,D102) -> 10000000 | S102: 0
A103: EPP-30SYCO INGENIERIA S.A.S | D103: EPP-30 | E103: EPP-30 - TAPABOCAS DESECHABLES | F103: ELEMENTOS DE PROTECCION PERSONAL | G103: TAPABOCAS DESECHABLE, CON RESORTE A LA OREJA , DOBLE FILTRO, ADAPTADOR NASAL AJUSTABLE, TELA NO TEJIDA | H103: Und | I103: Und | J103: Si | K103: Atención emergencia COVID-19 | L103: SYCO INGENIERIA S.A.S | M103: AECovid19-588 | N103: 55000 | O103: COP | P103: 4 | Q103: 1000 | R103: =Q103-SUMIFS(ResumenCotizacion!L:L,ResumenCotizacion!S:S,L103,ResumenCotizacion!C:C,D103) -> 1000 | S103: 0
A104: EPP-30MDV LIGHTS SAS | D104: EPP-30 | E104: EPP-30 - TAPABOCAS DESECHABLES | F104: ELEMENTOS DE PROTECCION PERSONAL | G104: TAPABOCAS DESECHABLE, CON RESORTE A LA OREJA , DOBLE FILTRO, ADAPTADOR NASAL AJUSTABLE, TELA NO TEJIDA | H104: Und | I104: Und | J104: Si | K104: Atención emergencia COVID-19 | L104: MDV LIGHTS SAS | M104: AECovid19-608 | N104: 58000 | O104: COP | P104: 2 | Q104: 4000000 | R104: =Q104-SUMIFS(ResumenCotizacion!L:L,ResumenCotizacion!S:S,L104,ResumenCotizacion!C:C,D104) -> 4000000 | S104: 0
A105: EPP-32MDV LIGHTS SAS | D105: EPP-32 | E105: EPP-32 - TAPABOCAS QUIRUGICO N95 | F105: ELEMENTOS DE PROTECCION PERSONAL | G105: DEBE CUMPLIR LA SIGUIENTE REGLAMENTACIÓN: NTC 3851 Parte 1 Criterios para la selección y uso de los equipos de protecicion respiratoria. / NTC 3852 Parte 2 Equipos de proteccion respiratoria, proteccion contra particulas. | H105: Und | I105: Und | J105: Si | K105: Atención emergencia COVID-19 | L105: MDV LIGHTS SAS | M105: AECovid19-608 | N105: 600000 | O105: COP | P105: 1 | Q105: 64000 | R105: =Q105-SUMIFS(ResumenCotizacion!L:L,ResumenCotizacion!S:S,L105,ResumenCotizacion!C:C,D105) -> 64000 | S105: 0
A106: EPP-1CLAUDIA PATRICIA MURILLO | D106: EPP-1 | E106: EPP-1 - BATA DESECHABLE PARA PACIENTE ADULTO - TALLA S, M , L, XL COMPUESTO POR BATA SIN MANGA CON AMARRADERA POSTERIOR | F106: ELEMENTOS DE PROTECCION PERSONAL | G106: COMPUESTO DE BATA PACIENTE MANGA CIZA, AMARRADERAS EN LA PARTE POSTERIOR 2 A NIVEL DE CUELLO Y 2 A NIVEL DE LA CINTURA EN TELA SMS 35 GRAMOS. | H106: Und | I106: Und | J106: Si | K106: Atención emergencia COVID-19 | L106: CLAUDIA PATRICIA MURILLO | M106: AECovid19-507 | N106: 4800 | O106: COP | P106: 1 | Q106: 800000 | R106: =Q106-SUMIFS(ResumenCotizacion!L:L,ResumenCotizacion!S:S,L106,ResumenCotizacion!C:C,D106) -> 800000 | S106: 0
A107: EPP-4CLAUDIA PATRICIA MURILLO | D107: EPP-4 | E107: EPP-4 - BATA DESECHABLE CORTAS CON MANGA RESORTADA | F107: ELEMENTOS DE PROTECCION PERSONAL | G107: BATA DESECHABLE CORTAS CON MANGA RESORTADA CON CIERRE FRONTAL DE CREMALLERA | H107: Und | I107: Und | J107: Si | K107: Atención emergencia COVID-19 | L107: CLAUDIA PATRICIA MURILLO | M107: AECovid19-507 | N107: 7400 | O107: COP | P107: 1 | Q107: 500000 | R107: =Q107-SUMIFS(ResumenCotizacion!L:L,ResumenCotizacion!S:S,L107,ResumenCotizacion!C:C,D107) -> 500000 | S107: 0
A108: EPP-5CLAUDIA PATRICIA MURILLO | D108: EPP-5 | E108: EPP-5 - BATA DESECHABLE PARA PACIENTE PEDIATRICO - ROPA DESECHABLE COMPUESTO POR BATA SIN MANGA CON AMARRADERA POSTERIOR. | F108: ELEMENTOS DE PROTECCION PERSONAL | G108: COMPUESTO DE BATA PACIENTE MANGA CIZA DE 80 CMS, AMARRADERAS EN LA PARTE POSTERIOR 2 A NIVEL DE CUELLO Y 2 A NIVEL DE LA CINTURA EN TELA SMS 35 GRAMOS. | H108: Und | I108: Und | J108: Si | K108: Atención emergencia COVID-19 | L108: CLAUDIA PATRICIA MURILLO | M108: AECovid19-507 | N108: 5000 | O108: COP | P108: 1 | Q108: 500000 | R108: =Q108-SUMIFS(ResumenCotizacion!L:L,ResumenCotizacion!S:S,L108,ResumenCotizacion!C:C,D108) -> 500000 | S108: 0
A109: EPP-6CLAUDIA PATRICIA MURILLO | D109: EPP-6 | E109: EPP-6 - BATA PUÑO RIB | F109: ELEMENTOS DE PROTECCION PERSONAL | G109: Tela no tejida Desechable Aislante de liquidos Alta transpirabilidad Manga Larga Puño en algodón con resorte Con tiras de amarre en la cintura y cuello | H109: Und | I109: Und | J109: Si | K109: Atención emergencia COVID-19 | L109: CLAUDIA PATRICIA MURILLO | M109: AECovid19-507 | N109: 7800 | O109: COP | P109: 2 | Q109: 500000 | R109: =Q109-SUMIFS(ResumenCotizacion!L:L,ResumenCotizacion!S:S,L109,ResumenCotizacion!C:C,D109) -> 500000 | S109: 0
A110: EPP-27CLAUDIA PATRICIA MURILLO | D110: EPP-27 | E110: EPP-27 - SABANAS | F110: ELEMENTOS DE PROTECCION PERSONAL | G110: DESECHABLE, PLANA, 2,40X2,20 M, EN TELA SMS 35 GR, REPELENTE DE FLUIDOS, RESISTENTE, SIN ESTERILIZAR | H110: Und | I110: Und | J110: Si | K110: Atención emergencia COVID-19 | L110: CLAUDIA PATRICIA MURILLO | M110: AECovid19-507 | N110: 7440 | O110: COP | P110: 1 | Q110: 500000 | R110: =Q110-SUMIFS(ResumenCotizacion!L:L,ResumenCotizacion!S:S,L110,ResumenCotizacion!C:C,D110) -> 500000 | S110: 0
A111: EPP-30CLAUDIA PATRICIA MURILLO | D111: EPP-30 | E111: EPP-30 - TAPABOCAS DESECHABLES | F111: ELEMENTOS DE PROTECCION PERSONAL | G111: TAPABOCAS DESECHABLE, CON RESORTE A LA OREJA , DOBLE FILTRO, ADAPTADOR NASAL AJUSTABLE, TELA NO TEJIDA | H111: Und | I111: Und | J111: Si | K111: Atención emergencia COVID-19 | L111: CLAUDIA PATRICIA MURILLO | M111: AECovid19-507 | N111: 59900 | O111: COP | P111: 1 | Q111: 100000 | R111: =Q111-SUMIFS(ResumenCotizacion!L:L,ResumenCotizacion!S:S,L111,ResumenCotizacion!C:C,D111) -> 100000 | S111: 0
A112: EPP-34CLAUDIA PATRICIA MURILLO | D112: EPP-34 | E112: EPP-34 - TRAJE DESECHABLE ANTIFLUIDO | F112: ELEMENTOS DE PROTECCION PERSONAL | G112: TALLAS: S,M,L,XL COSTURAS SERIADAS, CON CAPUCHA. CIERRE DE CREMALLERA FRONTAL MUÑECAS Y TOBILLOS ELASTICOS FABRICADO EN TELA ANTIFLUIDO | H112: Und | I112: Und | J112: Si | K112: Atención emergencia COVID-19 | L112: CLAUDIA PATRICIA MURILLO | M112: AECovid19-507 | N112: 22650 | O112: COP | P112: 1 | Q112: 500000 | R112: =Q112-SUMIFS(ResumenCotizacion!L:L,ResumenCotizacion!S:S,L112,ResumenCotizacion!C:C,D112) -> 500000 | S112: 0
A113: =D113&L113 -> EPP-30GRUPO EMPRESARIAL DE SUMINISTROS Y SERVICIOS DE LA ORINOQUIA SAS | D113: EPP-30 | E113: EPP-30 - TAPABOCAS DESECHABLES | F113: ELEMENTOS DE PROTECCION PERSONAL | G113: TAPABOCAS DESECHABLE, CON RESORTE A LA OREJA , DOBLE FILTRO, ADAPTADOR NASAL AJUSTABLE, TELA NO TEJIDA | H113: Und | I113: Und | J113: Si | K113: Atención emergencia COVID-19 | L113: GRUPO EMPRESARIAL DE SUMINISTROS Y SERVICIOS DE LA ORINOQUIA SAS | M113: AECovid19-614 | N113: 58000 | O113: COP | P113: 2 | Q113: 5000000 | R113: =Q113-SUMIFS(ResumenCotizacion!L:L,ResumenCotizacion!S:S,L113,ResumenCotizacion!C:C,D113) -> 5000000 | S113: 0
A114: EPP-19ROCCA SOLIDA GROUP SAS | D114: EPP-19 | E114: EPP-19 - MASCARILLA FACIAL N95 (TAPA BOCA)- RESORTADA | F114: ELEMENTOS DE PROTECCION PERSONAL | G114: DESECHABLE, CON RESORTE A LA OREJA , DOBLE FILTRO, ADAPTADOR NASAL AJUSTABLE, EN ALGODÓN | H114: Und | I114: Und | J114: Si | K114: Atención emergencia COVID-19 | L114: ROCCA SOLIDA GROUP SAS | M114: AECovid19-615 | N114: 325000 | O114: COP | P114: 1 | Q114: 10000 | R114: =Q114-SUMIFS(ResumenCotizacion!L:L,ResumenCotizacion!S:S,L114,ResumenCotizacion!C:C,D114) -> 10000 | S114: 0
A115: =D115&L115 -> EPP-30TIKKE SAS | D115: EPP-30 | E115: EPP-30 - TAPABOCAS DESECHABLES | F115: ELEMENTOS DE PROTECCION PERSONAL | G115: TAPABOCAS DESECHABLE, CON RESORTE A LA OREJA , DOBLE FILTRO, ADAPTADOR NASAL AJUSTABLE, TELA NO TEJIDA | H115: Und | I115: Und | J115: Si | K115: Atención emergencia COVID-19 | L115: TIKKE SAS | M115: AECovid19-520 | N115: 10700 | O115: COP | P115: 1 | Q115: 3000002 | R115: =Q115-SUMIFS(ResumenCotizacion!L:L,ResumenCotizacion!S:S,L115,ResumenCotizacion!C:C,D115) -> 3000002 | S115: 0
A116: =D116&L116 -> EPP-11RADIOLOGICAL PROTECTION SERVICES SAS | D116: EPP-11 | E116: EPP-11 - GORRO DESECHABLE REDONDO ELÁSTICO AZUL | F116: ELEMENTOS DE PROTECCION PERSONAL | G116: GORRO REDONDO DESECHABLE TIPO BAÑO BOLAN 15 A 20 GRAMOS TAMAÑO ESTÁNDAR, ENCAUCHADO PARA AJUSTE SUAVE Y FIRME | H116: Und | I116: Und | J116: Si | K116: Atención emergencia COVID-19 | L116: RADIOLOGICAL PROTECTION SERVICES SAS | M116: AECovid19-7 | N116: 20000 | O116: COP | P116: 1 | Q116: 20000 | R116: =Q116-SUMIFS(ResumenCotizacion!L:L,ResumenCotizacion!S:S,L116,ResumenCotizacion!C:C,D116) -> 20000 | S116: 0
A117: =D117&L117 -> EPP-21RADIOLOGICAL PROTECTION SERVICES SAS | D117: EPP-21 | E117: EPP-21 - POLAINAS | F117: ELEMENTOS DE PROTECCION PERSONAL | G117: Polaina antideslizante, no estéril, no tejida. Libre de hebras, ni partículas volátiles, lisa, sin deformaciones. Sellado con ultrasonido. Con recuento controlado microbiano.En Polipropileno (PP) con elástico de látex natural. Dimensión estándar. De un solo uso. | H117: Und | I117: Und | J117: Si | K117: Atención emergencia COVID-19 | L117: RADIOLOGICAL PROTECTION SERVICES SAS | M117: AECovid19-7 | N117: 54000 | O117: COP | P117: 1 | Q117: 20000 | R117: =Q117-SUMIFS(ResumenCotizacion!L:L,ResumenCotizacion!S:S,L117,ResumenCotizacion!C:C,D117) -> 20000 | S117: 0
A118: EPP-12Twity S.A. | D118: EPP-12 | E118: EPP-12 - GORRO QUIRURJICO | F118: ELEMENTOS DE PROTECCION PERSONAL | G118: Gorro con elástico para adaptarse al entorno craneal que se coloca en la cabeza sin que cubra totalmente la frente, ni los ojos. En Tela polipropileno 100% en spundbounded y el Resorte en Nylon blanco. 15 a 20 gramos. | H118: Und | I118: Und | J118: Si | K118: Atención emergencia COVID-19 | L118: Twity S.A. | M118: AECovid19-606 | N118: 12000 | O118: COP | P118: 3 | Q118: 5000 | R118: =Q118-SUMIFS(ResumenCotizacion!L:L,ResumenCotizacion!S:S,L118,ResumenCotizacion!C:C,D118) -> 5000 | S118: 0
A119: =D119&L119 -> EPP-30BIOANALYTICA SAS | D119: EPP-30 | E119: EPP-30 - TAPABOCAS DESECHABLES | F119: ELEMENTOS DE PROTECCION PERSONAL | G119: TAPABOCAS DESECHABLE, CON RESORTE A LA OREJA , DOBLE FILTRO, ADAPTADOR NASAL AJUSTABLE, TELA NO TEJIDA | H119: Und | I119: Und | J119: Si | K119: Atención emergencia COVID-19 | L119: BIOANALYTICA SAS | M119: AECovid19-625 | N119: 55000 | O119: COP | P119: 4 | Q119: 1000 | R119: =Q119-SUMIFS(ResumenCotizacion!L:L,ResumenCotizacion!S:S,L119,ResumenCotizacion!C:C,D119) -> 1000 | S119: 0
A120: EPP-30NINFA DE COLOMBIA SAS | D120: EPP-30 | E120: EPP-30 - TAPABOCAS DESECHABLES | F120: ELEMENTOS DE PROTECCION PERSONAL | G120: TAPABOCAS DESECHABLE, CON RESORTE A LA OREJA , DOBLE FILTRO, ADAPTADOR NASAL AJUSTABLE, TELA NO TEJIDA | H120: Und | I120: Und | J120: Si | K120: Atención emergencia COVID-19 | L120: NINFA DE COLOMBIA SAS | M120: AECovid19-624 | N120: 59000 | O120: COP | P120: 1 | Q120: 2000000 | R120: =Q120-SUMIFS(ResumenCotizacion!L:L,ResumenCotizacion!S:S,L120,ResumenCotizacion!C:C,D120) -> 2000000 | S120: 0
A121: =D121&L121 -> EPP-30ACTIVOS RELEVANT SAS | D121: EPP-30 | E121: EPP-30 - TAPABOCAS DESECHABLES | F121: ELEMENTOS DE PROTECCION PERSONAL | G121: TAPABOCAS DESECHABLE, CON RESORTE A LA OREJA , DOBLE FILTRO, ADAPTADOR NASAL AJUSTABLE, TELA NO TEJIDA | H121: Und | I121: Und | J121: Si | K121: Atención emergencia COVID-19 | L121: ACTIVOS RELEVANT SAS | M121: AECovid19-628 | N121: 45000 | O121: COP | P121: 2 | Q121: 12200 | R121: =Q121-SUMIFS(ResumenCotizacion!L:L,ResumenCotizacion!S:S,L121,ResumenCotizacion!C:C,D121) -> 12200 | S121: 0
A122: =D122&L122 -> EPP-30BESTON COLOMBIA SAS | D122: EPP-30 | E122: EPP-30 - TAPABOCAS DESECHABLES | F122: ELEMENTOS DE PROTECCION PERSONAL | G122: TAPABOCAS DESECHABLE, CON RESORTE A LA OREJA , DOBLE FILTRO, ADAPTADOR NASAL AJUSTABLE, TELA NO TEJIDA | H122: Und | I122: Und | J122: Si | K122: Atención emergencia COVID-19 | L122: BESTON COLOMBIA SAS | M122: AECovid19-631 | N122: 55000 | O122: COP | P122: 4 | Q122: 1000 | R122: =Q122-SUMIFS(ResumenCotizacion!L:L,ResumenCotizacion!S:S,L122,ResumenCotizacion!C:C,D122) -> 1000 | S122: 0
A123: EPP-30JALM SAS | D123: EPP-30 | E123: EPP-30 - TAPABOCAS DESECHABLES | F123: ELEMENTOS DE PROTECCION PERSONAL | G123: TAPABOCAS DESECHABLE, CON RESORTE A LA OREJA , DOBLE FILTRO, ADAPTADOR NASAL AJUSTABLE, TELA NO TEJIDA | H123: Und | I123: Und | J123: Si | K123: Atención emergencia COVID-19 | L123: JALM SAS | M123: AECovid19-629 | N123: 54000 | O123: COP | P123: 1 | Q123: 5000000 | R123: =Q123-SUMIFS(ResumenCotizacion!L:L,ResumenCotizacion!S:S,L123,ResumenCotizacion!C:C,D123) -> 5000000 | S123: 0
A124: EPP-1DISTRIBUCIONES CLINICAS | D124: EPP-1 | E124: EPP-1 - BATA DESECHABLE PARA PACIENTE ADULTO - TALLA S, M , L, XL COMPUESTO POR BATA SIN MANGA CON AMARRADERA POSTERIOR | F124: ELEMENTOS DE PROTECCION PERSONAL | G124: COMPUESTO DE BATA PACIENTE MANGA CIZA, AMARRADERAS EN LA PARTE POSTERIOR 2 A NIVEL DE CUELLO Y 2 A NIVEL DE LA CINTURA EN TELA SMS 35 GRAMOS. | H124: Und | I124: Und | J124: Si | K124: Atención emergencia COVID-19 | L124: DISTRIBUCIONES CLINICAS | M124: AECovid19-518 | N124: 7800 | O124: COP | P124: 1 | Q124: 188 | R124: =Q124-SUMIFS(ResumenCotizacion!L:L,ResumenCotizacion!S:S,L124,ResumenCotizacion!C:C,D124) -> 188 | S124: 0
A125: EPP-25DISTRIBUCIONES CLINICAS | D125: EPP-25 | E125: EPP-25 - SABANA DESECHABLE | F125: ELEMENTOS DE PROTECCION PERSONAL | G125: SÁBANA AJUSTABLE DESECHABLE, CONFECCIONADA CON TEJIDO NO TEJIDO DE POLIPROPILENO (PP). CON ELÁSTICOS EN LOS EXTREMOS PARA AJUSTAR A LAS CAMILLAS. | H125: Und | I125: Und | J125: Si | K125: Atención emergencia COVID-19 | L125: DISTRIBUCIONES CLINICAS | M125: AECovid19-518 | N125: 7000 | O125: COP | P125: 1 | Q125: 70 | R125: =Q125-SUMIFS(ResumenCotizacion!L:L,ResumenCotizacion!S:S,L125,ResumenCotizacion!C:C,D125) -> 70 | S125: 0
A126: EPP-30COLOMBIANA DE NO TEJIDOS Y ACOLCHADOS S A COLNOTEX SA | D126: EPP-30 | E126: EPP-30 - TAPABOCAS DESECHABLES | F126: ELEMENTOS DE PROTECCION PERSONAL | G126: TAPABOCAS DESECHABLE, CON RESORTE A LA OREJA , DOBLE FILTRO, ADAPTADOR NASAL AJUSTABLE, TELA NO TEJIDA | H126: Und | I126: Und | J126: Si | K126: Atención emergencia COVID-19 | L126: COLOMBIANA DE NO TEJIDOS Y ACOLCHADOS S A COLNOTEX SA | M126: AECovid19-595 | N126: 19500 | O126: COP | P126: 1 | Q126: 10000000 | R126: =Q126-SUMIFS(ResumenCotizacion!L:L,ResumenCotizacion!S:S,L126,ResumenCotizacion!C:C,D126) -> 10000000 | S126: 0
A127: EPP-1COMERCIALIZADORA DINPRO SAS | D127: EPP-1 | E127: EPP-1 - BATA DESECHABLE PARA PACIENTE ADULTO - TALLA S, M , L, XL COMPUESTO POR BATA SIN MANGA CON AMARRADERA POSTERIOR | F127: ELEMENTOS DE PROTECCION PERSONAL | G127: COMPUESTO DE BATA PACIENTE MANGA CIZA, AMARRADERAS EN LA PARTE POSTERIOR 2 A NIVEL DE CUELLO Y 2 A NIVEL DE LA CINTURA EN TELA SMS 35 GRAMOS. | H127: Und | I127: Und | J127: Si | K127: Atención emergencia COVID-19 | L127: COMERCIALIZADORA DINPRO SAS | M127: AECovid19-626 | N127: 3100 | O127: COP | P127: 2 | Q127: 100000 | R127: =Q127-SUMIFS(ResumenCotizacion!L:L,ResumenCotizacion!S:S,L127,ResumenCotizacion!C:C,D127) -> 100000 | S127: 0
A128: EPP-2COMERCIALIZADORA DINPRO SAS | D128: EPP-2 | E128: EPP-2 - BATA AISLAMIENTO NO ESTERIL MANGA LARGA | F128: ELEMENTOS DE PROTECCION PERSONAL | G128: Debe cumplir la siguiente reglamentación: NTC 5623 - Campos Quirurgicos, Batas y trajes para aire limpio de utilizacion quirurgica como Dispositivos Medicos para pacientes, personal clinico y equipo. Parte 1 Requisitos Generales para los fabricantes procesadores y productos. NTC 5624 - Campos Quirurgicos, Batas y trajes para aire limpio de utilizacion quirurgica como Dispositivos Medicos para pacientes, personal clinico y equipo. Parte 2 Metodos de Ensayo. NTC 5625 - Campos Quirurgicos, Batas y trajes para aire limpio de utilizacion quirurgica como Dispositivos Medicos para pacientes, personal clinico y equipo. Parte 3 Requisitos y niveles de funcionamiento. | H128: Und | I128: Und | J128: Si | K128: Atención emergencia COVID-19 | L128: COMERCIALIZADORA DINPRO SAS | M128: AECovid19-626 | N128: 4200 | O128: COP | P128: 1 | Q128: 100000 | R128: =Q128-SUMIFS(ResumenCotizacion!L:L,ResumenCotizacion!S:S,L128,ResumenCotizacion!C:C,D128) -> 100000 | S128: 0
A129: EPP-5COMERCIALIZADORA DINPRO SAS | D129: EPP-5 | E129: EPP-5 - BATA DESECHABLE PARA PACIENTE PEDIATRICO - ROPA DESECHABLE COMPUESTO POR BATA SIN MANGA CON AMARRADERA POSTERIOR. | F129: ELEMENTOS DE PROTECCION PERSONAL | G129: COMPUESTO DE BATA PACIENTE MANGA CIZA DE 80 CMS, AMARRADERAS EN LA PARTE POSTERIOR 2 A NIVEL DE CUELLO Y 2 A NIVEL DE LA CINTURA EN TELA SMS 35 GRAMOS. | H129: Und | I129: Und | J129: Si | K129: Atención emergencia COVID-19 | L129: COMERCIALIZADORA DINPRO SAS | M129: AECovid19-626 | N129: 5200 | O129: COP | P129: 1 | Q129: 200000 | R129: =Q129-SUMIFS(ResumenCotizacion!L:L,ResumenCotizacion!S:S,L129,ResumenCotizacion!C:C,D129) -> 200000 | S129: 0
A130: EPP-6COMERCIALIZADORA DINPRO SAS | D130: EPP-6 | E130: EPP-6 - BATA PUÑO RIB | F130: ELEMENTOS DE PROTECCION PERSONAL | G130: Tela no tejida Desechable Aislante de liquidos Alta transpirabilidad Manga Larga Puño en algodón con resorte Con tiras de amarre en la cintura y cuello | H130: Und | I130: Und | J130: Si | K130: Atención emergencia COVID-19 | L130: COMERCIALIZADORA DINPRO SAS | M130: AECovid19-626 | N130: 4200 | O130: COP | P130: =COUNTIFS(D:D,D130,N:N,N130) -> 1 | Q130: 120000 | R130: =Q130-SUMIFS(ResumenCotizacion!L:L,ResumenCotizacion!S:S,L130,ResumenCotizacion!C:C,D130) -> 120000 | S130: 0
A131: =D131&L131 -> EPP-1RN GRUPO EMPRESARIAL SAS | D131: EPP-1 | E131: EPP-1 - BATA DESECHABLE PARA PACIENTE ADULTO - TALLA S, M , L, XL COMPUESTO POR BATA SIN MANGA CON AMARRADERA POSTERIOR | F131: ELEMENTOS DE PROTECCION PERSONAL | G131: COMPUESTO DE BATA PACIENTE MANGA CIZA, AMARRADERAS EN LA PARTE POSTERIOR 2 A NIVEL DE CUELLO Y 2 A NIVEL DE LA CINTURA EN TELA SMS 35 GRAMOS. | H131: Und | I131: Und | J131: Si | K131: Atención emergencia COVID-19 | L131: RN GRUPO EMPRESARIAL SAS | M131: AECovid19-633 | N131: 3200 | O131: COP | P131: 1 | Q131: 100000 | R131: =Q131-SUMIFS(ResumenCotizacion!L:L,ResumenCotizacion!S:S,L131,ResumenCotizacion!C:C,D131) -> 100000 | S131: 0
A132: EPP-2RN GRUPO EMPRESARIAL SAS | D132: EPP-2 | E132: EPP-2 - BATA AISLAMIENTO NO ESTERIL MANGA LARGA | F132: ELEMENTOS DE PROTECCION PERSONAL | G132: Debe cumplir la siguiente reglamentación: NTC 5623 - Campos Quirurgicos, Batas y trajes para aire limpio de utilizacion quirurgica como Dispositivos Medicos para pacientes, personal clinico y equipo. Parte 1 Requisitos Generales para los fabricantes procesadores y productos. NTC 5624 - Campos Quirurgicos, Batas y trajes para aire limpio de utilizacion quirurgica como Dispositivos Medicos para pacientes, personal clinico y equipo. Parte 2 Metodos de Ensayo. NTC 5625 - Campos Quirurgicos, Batas y trajes para aire limpio de utilizacion quirurgica como Dispositivos Medicos para pacientes, personal clinico y equipo. Parte 3 Requisitos y niveles de funcionamiento. | H132: Und | I132: Und | J132: Si | K132: Atención emergencia COVID-19 | L132: RN GRUPO EMPRESARIAL SAS | M132: AECovid19-633 | N132: 4500 | O132: COP | P132: 2 | Q132: 100000 | R132: =Q132-SUMIFS(ResumenCotizacion!L:L,ResumenCotizacion!S:S,L132,ResumenCotizacion!C:C,D132) -> 100000 | S132: 0
A133: EPP-5RN GRUPO EMPRESARIAL SAS | D133: EPP-5 | E133: EPP-5 - BATA DESECHABLE PARA PACIENTE PEDIATRICO - ROPA DESECHABLE COMPUESTO POR BATA SIN MANGA CON AMARRADERA POSTERIOR. | F133: ELEMENTOS DE PROTECCION PERSONAL | G133: COMPUESTO DE BATA PACIENTE MANGA CIZA DE 80 CMS, AMARRADERAS EN LA PARTE POSTERIOR 2 A NIVEL DE CUELLO Y 2 A NIVEL DE LA CINTURA EN TELA SMS 35 GRAMOS. | H133: Und | I133: Und | J133: Si | K133: Atención emergencia COVID-19 | L133: RN GRUPO EMPRESARIAL SAS | M133: AECovid19-633 | N133: 3900 | O133: COP | P133: 1 | Q133: 100000 | R133: =Q133-SUMIFS(ResumenCotizacion!L:L,ResumenCotizacion!S:S,L133,ResumenCotizacion!C:C,D133) -> 100000 | S133: 0
A134: EPP-6RN GRUPO EMPRESARIAL SAS | D134: EPP-6 | E134: EPP-6 - BATA PUÑO RIB | F134: ELEMENTOS DE PROTECCION PERSONAL | G134: Tela no tejida Desechable Aislante de liquidos Alta transpirabilidad Manga Larga Puño en algodón con resorte Con tiras de amarre en la cintura y cuello | H134: Und | I134: Und | J134: Si | K134: Atención emergencia COVID-19 | L134: RN GRUPO EMPRESARIAL SAS | M134: AECovid19-633 | N134: 4400 | O134: COP | P134: 1 | Q134: 100000 | R134: =Q134-SUMIFS(ResumenCotizacion!L:L,ResumenCotizacion!S:S,L134,ResumenCotizacion!C:C,D134) -> 100000 | S134: 0
A135: EPP-19RN GRUPO EMPRESARIAL SAS | D135: EPP-19 | E135: EPP-19 - MASCARILLA FACIAL N95 (TAPA BOCA)- RESORTADA | F135: ELEMENTOS DE PROTECCION PERSONAL | G135: DESECHABLE, CON RESORTE A LA OREJA , DOBLE FILTRO, ADAPTADOR NASAL AJUSTABLE, EN ALGODÓN | H135: Und | I135: Und | J135: Si | K135: Atención emergencia COVID-19 | L135: RN GRUPO EMPRESARIAL SAS | M135: AECovid19-633 | N135: 175000 | O135: COP | P135: 1 | Q135: 6000 | R135: =Q135-SUMIFS(ResumenCotizacion!L:L,ResumenCotizacion!S:S,L135,ResumenCotizacion!C:C,D135) -> 6000 | S135: 0
A136: EPP-25RN GRUPO EMPRESARIAL SAS | D136: EPP-25 | E136: EPP-25 - SABANA DESECHABLE | F136: ELEMENTOS DE PROTECCION PERSONAL | G136: SÁBANA AJUSTABLE DESECHABLE, CONFECCIONADA CON TEJIDO NO TEJIDO DE POLIPROPILENO (PP). CON ELÁSTICOS EN LOS EXTREMOS PARA AJUSTAR A LAS CAMILLAS. | H136: Und | I136: Und | J136: Si | K136: Atención emergencia COVID-19 | L136: RN GRUPO EMPRESARIAL SAS | M136: AECovid19-633 | N136: 3000 | O136: COP | P136: 1 | Q136: 100000 | R136: =Q136-SUMIFS(ResumenCotizacion!L:L,ResumenCotizacion!S:S,L136,ResumenCotizacion!C:C,D136) -> 100000 | S136: 0
A137: EPP-30RN GRUPO EMPRESARIAL SAS | D137: EPP-30 | E137: EPP-30 - TAPABOCAS DESECHABLES | F137: ELEMENTOS DE PROTECCION PERSONAL | G137: TAPABOCAS DESECHABLE, CON RESORTE A LA OREJA , DOBLE FILTRO, ADAPTADOR NASAL AJUSTABLE, TELA NO TEJIDA | H137: Und | I137: Und | J137: Si | K137: Atención emergencia COVID-19 | L137: RN GRUPO EMPRESARIAL SAS | M137: AECovid19-633 | N137: 30000 | O137: COP | P137: 3 | Q137: 6000 | R137: =Q137-SUMIFS(ResumenCotizacion!L:L,ResumenCotizacion!S:S,L137,ResumenCotizacion!C:C,D137) -> 6000 | S137: 0
A138: =D138&L138 -> EPP-30ARTE Y MODA DOTACIONES SAS | D138: EPP-30 | E138: EPP-30 - TAPABOCAS DESECHABLES | F138: ELEMENTOS DE PROTECCION PERSONAL | G138: TAPABOCAS DESECHABLE, CON RESORTE A LA OREJA , DOBLE FILTRO, ADAPTADOR NASAL AJUSTABLE, TELA NO TEJIDA | H138: Und | I138: Und | J138: Si | K138: Atención emergencia COVID-19 | L138: ARTE Y MODA DOTACIONES SAS | M138: AECovid19-635 | N138: 48000 | O138: COP | P138: 1 | Q138: 2000000 | R138: =Q138-SUMIFS(ResumenCotizacion!L:L,ResumenCotizacion!S:S,L138,ResumenCotizacion!C:C,D138) -> 2000000 | S138: 0
A139: EPP-30INNOVA MERCADEO Y LOGISTICA SAS | D139: EPP-30 | E139: EPP-30 - TAPABOCAS DESECHABLES | F139: ELEMENTOS DE PROTECCION PERSONAL | G139: TAPABOCAS DESECHABLE, CON RESORTE A LA OREJA , DOBLE FILTRO, ADAPTADOR NASAL AJUSTABLE, TELA NO TEJIDA | H139: Und | I139: Und | J139: Si | K139: Atención emergencia COVID-19 | L139: INNOVA MERCADEO Y LOGISTICA SAS | M139: AECovid19-634 | N139: 55000 | O139: COP | P139: 4 | Q139: 4000000 | R139: =Q139-SUMIFS(ResumenCotizacion!L:L,ResumenCotizacion!S:S,L139,ResumenCotizacion!C:C,D139) -> 4000000 | S139: 0
A140: EPP-44TIKKE SAS | D140: EPP-44 | E140: EPP-44 - OVEROL MULTIPROPOSITO PROTECCION ANTIFLUIDO | F140: ELEMENTOS DE PROTECCION PERSONAL | G140: OVEROL en tela antifluido lavable alta impermeabilidad, liviano, antialérgico evita el contacto con superficies y líquidos, cuello alto para brindar más protección al usuario, con capucha ajustable y resorte en mangas, cintura y tobillos, cremallera para cierre de prenda, incluido polainas con elástico para mayor protección. Materiales: Antifluido Tallas: M, L, XL, XXL Color: De acuerdo con la necesidad de la entidad Inspecciones Físicas: Doblado, costuras, cremallera y presencia de amarres. Inspecciones Visuales: Libre de presencia de partículas removibles, coloraciones y partículas incrustadas. Atributos: Antiestático, Resistencia a las bacterias y Resistencia a los hongos. Método de Esterilización: No aplica producto no estéril. Atoxicidad: Atóxico. Fecha de Vencimiento: ** Tres Años Después de la Fecha de Fabricación. Empaque Primario: Bolsa de Polietileno de Alta Densidad. Tela: Antifluido 100% poliéster Costura interna: filete y punta de seguridad Pespuntes: refuerzo cremallera:1/8”, contorno de capota en escote y pegue elástico. Condiciones de Conservación: Humedad Relativa: Entre 40%RH y 70%RH Temperatura: Entre 4ºC y 32 ºc Área de almacenamiento fresca, seca y protegido de la luz y humedad. Área de almacenamiento que no entre en contacto con aceites, colorantes, detergentes, sustancias de olor fuerte y/o productos químicos que pueden alterar las condiciones del producto. Advertencias y Precauciones: No utilizar si el empaque no está en perfecto estado. Evitar humedad, salpicaduras de agua y contacto con elementos cortopunzantes durante su almacenamiento. Método de Reutilización: Producto Reutilizable. | H140: Und | I140: Und | J140: Si | K140: Atención emergencia COVID-19 | L140: TIKKE SAS | M140: AECovid19-520 | N140: 44500 | O140: COP | P140: 1 | Q140: 70000 | R140: =Q140-SUMIFS(ResumenCotizacion!L:L,ResumenCotizacion!S:S,L140,ResumenCotizacion!C:C,D140) -> 70000 | S140: 0
A141: EPP-6CI CREAR MODA SAS | D141: EPP-6 | E141: EPP-6 - BATA PUÑO RIB | F141: ELEMENTOS DE PROTECCION PERSONAL | G141: Tela no tejida Desechable Aislante de liquidos Alta transpirabilidad Manga Larga Puño en algodón con resorte Con tiras de amarre en la cintura y cuello | H141: Und | I141: Und | J141: Si | K141: Atención emergencia COVID-19 | L141: CI CREAR MODA SAS | M141: AECovid19-571 | N141: 4800 | O141: COP | P141: 1 | Q141: 20000 | R141: =Q141-SUMIFS(ResumenCotizacion!L:L,ResumenCotizacion!S:S,L141,ResumenCotizacion!C:C,D141) -> 20000 | S141: 0
A142: EPP-11CI CREAR MODA SAS | D142: EPP-11 | E142: EPP-11 - GORRO DESECHABLE REDONDO ELÁSTICO AZUL | F142: ELEMENTOS DE PROTECCION PERSONAL | G142: GORRO REDONDO DESECHABLE TIPO BAÑO BOLAN 15 A 20 GRAMOS TAMAÑO ESTÁNDAR, ENCAUCHADO PARA AJUSTE SUAVE Y FIRME | H142: Und | I142: Und | J142: Si | K142: Atención emergencia COVID-19 | L142: CI CREAR MODA SAS | M142: AECovid19-571 | N142: 8690 | O142: COP | P142: 1 | Q142: 10000 | R142: =Q142-SUMIFS(ResumenCotizacion!L:L,ResumenCotizacion!S:S,L142,ResumenCotizacion!C:C,D142) -> 10000 | S142: 0
A143: EPP-21CI CREAR MODA SAS | D143: EPP-21 | E143: EPP-21 - POLAINAS | F143: ELEMENTOS DE PROTECCION PERSONAL | G143: Polaina antideslizante, no estéril, no tejida. Libre de hebras, ni partículas volátiles, lisa, sin deformaciones. Sellado con ultrasonido. Con recuento controlado microbiano.En Polipropileno (PP) con elástico de látex natural. Dimensión estándar. De un solo uso. | H143: Und | I143: Und | J143: Si | K143: Atención emergencia COVID-19 | L143: CI CREAR MODA SAS | M143: AECovid19-571 | N143: 21250 | O143: COP | P143: 1 | Q143: 4000 | R143: =Q143-SUMIFS(ResumenCotizacion!L:L,ResumenCotizacion!S:S,L143,ResumenCotizacion!C:C,D143) -> 4000 | S143: 0
A144: EPP-25CI CREAR MODA SAS | D144: EPP-25 | E144: EPP-25 - SABANA DESECHABLE | F144: ELEMENTOS DE PROTECCION PERSONAL | G144: SÁBANA AJUSTABLE DESECHABLE, CONFECCIONADA CON TEJIDO NO TEJIDO DE POLIPROPILENO (PP). CON ELÁSTICOS EN LOS EXTREMOS PARA AJUSTAR A LAS CAMILLAS. | H144: Und | I144: Und | J144: Si | K144: Atención emergencia COVID-19 | L144: CI CREAR MODA SAS | M144: AECovid19-571 | N144: 4600 | O144: COP | P144: 1 | Q144: 3000 | R144: =Q144-SUMIFS(ResumenCotizacion!L:L,ResumenCotizacion!S:S,L144,ResumenCotizacion!C:C,D144) -> 3000 | S144: 0
A145: EPP-36CI CREAR MODA SAS | D145: EPP-36 | E145: EPP-36 - TRAJES DE BIO PORTECCIÓN- BLUSA | F145: ELEMENTOS DE PROTECCION PERSONAL | G145: BLUSA EN TELA ANTI-FLUIDO. REPELENTE A LIQUIDO Y ANTI-CLORO. TALLAS S,M,L,XL | H145: Und | I145: Und | J145: Si | K145: Atención emergencia COVID-19 | L145: CI CREAR MODA SAS | M145: AECovid19-571 | N145: 19000 | O145: COP | P145: 1 | Q145: 500 | R145: =Q145-SUMIFS(ResumenCotizacion!L:L,ResumenCotizacion!S:S,L145,ResumenCotizacion!C:C,D145) -> 500 | S145: 0
A146: EPP-37CI CREAR MODA SAS | D146: EPP-37 | E146: EPP-37 - TRAJES DE BIO PORTECCIÓN- PANTALON | F146: ELEMENTOS DE PROTECCION PERSONAL | G146: PANTALÓN/PANTALONES, TEJIDOS, EXFOLIANTES, REUTILIZABLES O DE UN SOLO USO, DE MANGA CORTA (TÚNICA/TOPS), USADOS DEBAJO DE LAS FUNDAS O BATAS. | H146: Und | I146: Und | J146: Si | K146: Atención emergencia COVID-19 | L146: CI CREAR MODA SAS | M146: AECovid19-571 | N146: 19000 | O146: COP | P146: 2 | Q146: 500 | R146: =Q146-SUMIFS(ResumenCotizacion!L:L,ResumenCotizacion!S:S,L146,ResumenCotizacion!C:C,D146) -> 500 | S146: 0
A147: =D147&L147 -> EPP-30Engineering Consulting Group SAS | D147: EPP-30 | E147: EPP-30 - TAPABOCAS DESECHABLES | F147: ELEMENTOS DE PROTECCION PERSONAL | G147: TAPABOCAS DESECHABLE, CON RESORTE A LA OREJA , DOBLE FILTRO, ADAPTADOR NASAL AJUSTABLE, TELA NO TEJIDA | H147: Und | I147: Und | J147: Si | K147: Atención emergencia COVID-19 | L147: Engineering Consulting Group SAS | M147: AECovid19-619 | N147: 16850 | O147: COP | P147: 1 | Q147: 10000000 | R147: =Q147-SUMIFS(ResumenCotizacion!L:L,ResumenCotizacion!S:S,L147,ResumenCotizacion!C:C,D147) -> 10000000 | S147: 0
A148: =D148&L148 -> EPP-9GOMEZ NARANJO & CIA LTDA | D148: EPP-9 | E148: EPP-9 - CARETAS VISORES (PROTECTOR FACIAL) | F148: ELEMENTOS DE PROTECCION PERSONAL | G148: CARETA VISOR DE USO MEDICO EN PASTA CON SEGURO ELASTICO | H148: Und | I148: Und | J148: Si | K148: Atención emergencia COVID-19 | L148: GOMEZ NARANJO & CIA LTDA | M148: AECovid19-637 | N148: 6500 | O148: COP | P148: 1 | Q148: 10000 | R148: =Q148-SUMIFS(ResumenCotizacion!L:L,ResumenCotizacion!S:S,L148,ResumenCotizacion!C:C,D148) -> 10000 | S148: 0
A149: EPP-18GOMEZ NARANJO & CIA LTDA | D149: EPP-18 | E149: EPP-18 - MASCARILLA FACIAL N95 (TAPA BOCA) | F149: ELEMENTOS DE PROTECCION PERSONAL | G149: DESECHABLE, CON TIRAS PARA AMARRAR, DOBLE FILTRO, ADAPTADOR NASAL AJUSTABLE, EN ALGODÓN, | H149: Und | I149: Und | J149: Si | K149: Atención emergencia COVID-19 | L149: GOMEZ NARANJO & CIA LTDA | M149: AECovid19-637 | N149: 250000 | O149: COP | P149: 2 | Q149: 100 | R149: =Q149-SUMIFS(ResumenCotizacion!L:L,ResumenCotizacion!S:S,L149,ResumenCotizacion!C:C,D149) -> 100 | S149: 0
A150: EPP-20GOMEZ NARANJO & CIA LTDA | D150: EPP-20 | E150: EPP-20 - MASCARILLA TIPO RESPIRADOR N95 CON VÁLVULA | F150: ELEMENTOS DE PROTECCION PERSONAL | G150: MASCARILLA TIPO RESPIRADOR CON VÁLVULA PARA PARTÍCULAS, CON TECNOLOGÍA MEA, MASCARILLAS QUIRÚRGICAS/RIESGO BIOLÓGICO N95. | H150: Und | I150: Und | J150: Si | K150: Atención emergencia COVID-19 | L150: GOMEZ NARANJO & CIA LTDA | M150: AECovid19-637 | N150: 7500 | O150: COP | P150: 1 | Q150: 5000 | R150: =Q150-SUMIFS(ResumenCotizacion!L:L,ResumenCotizacion!S:S,L150,ResumenCotizacion!C:C,D150) -> 5000 | S150: 0
A151: EPP-30GOMEZ NARANJO & CIA LTDA | D151: EPP-30 | E151: EPP-30 - TAPABOCAS DESECHABLES | F151: ELEMENTOS DE PROTECCION PERSONAL | G151: TAPABOCAS DESECHABLE, CON RESORTE A LA OREJA , DOBLE FILTRO, ADAPTADOR NASAL AJUSTABLE, TELA NO TEJIDA | H151: Und | I151: Und | J151: Si | K151: Atención emergencia COVID-19 | L151: GOMEZ NARANJO & CIA LTDA | M151: AECovid19-637 | N151: 35000 | O151: COP | P151: 2 | Q151: 20000 | R151: =Q151-SUMIFS(ResumenCotizacion!L:L,ResumenCotizacion!S:S,L151,ResumenCotizacion!C:C,D151) -> 20000 | S151: 0
A152: EPP-30MULTI IMPRESOS SAS | D152: EPP-30 | E152: EPP-30 - TAPABOCAS DESECHABLES | F152: ELEMENTOS DE PROTECCION PERSONAL | G152: TAPABOCAS DESECHABLE, CON RESORTE A LA OREJA , DOBLE FILTRO, ADAPTADOR NASAL AJUSTABLE, TELA NO TEJIDA | H152: Und | I152: Und | J152: Si | K152: Atención emergencia COVID-19 | L152: MULTI IMPRESOS SAS | M152: AECovid19-638 | N152: 53655 | O152: COP | P152: 1 | Q152: 2800000 | R152: =Q152-SUMIFS(ResumenCotizacion!L:L,ResumenCotizacion!S:S,L152,ResumenCotizacion!C:C,D152) -> 2800000 | S152: 0
A153: EPP-32MULTI IMPRESOS SAS | D153: EPP-32 | E153: EPP-32 - TAPABOCAS QUIRUGICO N95 | F153: ELEMENTOS DE PROTECCION PERSONAL | G153: DEBE CUMPLIR LA SIGUIENTE REGLAMENTACIÓN: NTC 3851 Parte 1 Criterios para la selección y uso de los equipos de protecicion respiratoria. / NTC 3852 Parte 2 Equipos de proteccion respiratoria, proteccion contra particulas. | H153: Und | I153: Und | J153: Si | K153: Atención emergencia COVID-19 | L153: MULTI IMPRESOS SAS | M153: AECovid19-638 | N153: 365950 | O153: COP | P153: 1 | Q153: 10000 | R153: =Q153-SUMIFS(ResumenCotizacion!L:L,ResumenCotizacion!S:S,L153,ResumenCotizacion!C:C,D153) -> 10000 | S153: 0
A154: EPP-18ONLY PISOS SAS | D154: EPP-18 | E154: EPP-18 - MASCARILLA FACIAL N95 (TAPA BOCA) | F154: ELEMENTOS DE PROTECCION PERSONAL | G154: DESECHABLE, CON TIRAS PARA AMARRAR, DOBLE FILTRO, ADAPTADOR NASAL AJUSTABLE, EN ALGODÓN, | H154: Und | I154: Und | J154: Si | K154: Atención emergencia COVID-19 | L154: ONLY PISOS SAS | M154: AECovid19-621 | N154: 250000 | O154: COP | P154: 2 | Q154: 80000 | R154: =Q154-SUMIFS(ResumenCotizacion!L:L,ResumenCotizacion!S:S,L154,ResumenCotizacion!C:C,D154) -> 80000 | S154: 0
A155: =D155&L155 -> EPP-14EUROCOSSET | D155: EPP-14 | E155: EPP-14 - GUANTES DE NITRILO | F155: ELEMENTOS DE PROTECCION PERSONAL | G155: GUANTES DE NITRILO (CALIBRE DE 8 MILESIMAS MÍNIMO) TALLAS,M Y L DESECHABLES, HIPOALERGÉNICOS, NO ESTÉRILES, ALTA RESISTENCIA A LA ELONGACIÓN, CON ENTALCAMIENTO LEVE INTERNO, AMBIDIESTROS, PUÑO CON REBORDE. | H155: Und | I155: Und | J155: Si | K155: Atención emergencia COVID-19 | L155: EUROCOSSET | M155: AECovid19-523 | N155: 70000 | O155: COP | P155: 4 | Q155: 10000 | R155: =Q155-SUMIFS(ResumenCotizacion!L:L,ResumenCotizacion!S:S,L155,ResumenCotizacion!C:C,D155) -> 10000 | S155: 0
A156: EPP-32EUROCOSSET | D156: EPP-32 | E156: EPP-32 - TAPABOCAS QUIRUGICO N95 | F156: ELEMENTOS DE PROTECCION PERSONAL | G156: DEBE CUMPLIR LA SIGUIENTE REGLAMENTACIÓN: NTC 3851 Parte 1 Criterios para la selección y uso de los equipos de protecicion respiratoria. / NTC 3852 Parte 2 Equipos de proteccion respiratoria, proteccion contra particulas. | H156: Und | I156: Und | J156: Si | K156: Atención emergencia COVID-19 | L156: EUROCOSSET | M156: AECovid19-523 | N156: 510000 | O156: COP | P156: 1 | Q156: 300000 | R156: =Q156-SUMIFS(ResumenCotizacion!L:L,ResumenCotizacion!S:S,L156,ResumenCotizacion!C:C,D156) -> 300000 | S156: 0
A157: =D157&L157 -> EPP-30JHON JAIRO CARRILLO | D157: EPP-30 | E157: EPP-30 - TAPABOCAS DESECHABLES | F157: ELEMENTOS DE PROTECCION PERSONAL | G157: TAPABOCAS DESECHABLE, CON RESORTE A LA OREJA , DOBLE FILTRO, ADAPTADOR NASAL AJUSTABLE, TELA NO TEJIDA | H157: Und | I157: Und | J157: Si | K157: Atención emergencia COVID-19 | L157: JHON JAIRO CARRILLO | M157: AECovid19-605 | N157: 10750 | O157: COP | P157: 1 | Q157: 100 | R157: =Q157-SUMIFS(ResumenCotizacion!L:L,ResumenCotizacion!S:S,L157,ResumenCotizacion!C:C,D157) -> 100 | S157: 0
A158: =D158&L158 -> EPP-19JOSE ALVARO PONGUTA GARZON | D158: EPP-19 | E158: =+VLOOKUP(D158,[2]Catálogo!$A$2:$D$44,3,0) -> EPP-19 - MASCARILLA FACIAL N95 (TAPA BOCA)- RESORTADA | F158: ELEMENTOS DE PROTECCION PERSONAL | G158: DESECHABLE, CON RESORTE A LA OREJA , DOBLE FILTRO, ADAPTADOR NASAL AJUSTABLE, EN ALGODÓN | H158: Und | I158: Und | J158: Si | K158: Atención emergencia COVID-19 | L158: JOSE ALVARO PONGUTA GARZON | M158: AECovid19-548 | N158: 320000 | O158: COP | P158: 1 | Q158: 14000 | R158: =Q158-SUMIFS(ResumenCotizacion!L:L,ResumenCotizacion!S:S,L158,ResumenCotizacion!C:C,D158) -> 14000 | S158: 0
A159: EPP-34SERVICIOS INTEGRALES INTELIGENTES SAS | D159: EPP-34 | E159: =+VLOOKUP(D159,[2]Catálogo!$A$2:$D$44,3,0) -> EPP-34 - TRAJE DESECHABLE ANTIFLUIDO | F159: ELEMENTOS DE PROTECCION PERSONAL | G159: TALLAS: S,M,L,XL COSTURAS SERIADAS, CON CAPUCHA. CIERRE DE CREMALLERA FRONTAL MUÑECAS Y TOBILLOS ELASTICOS FABRICADO EN TELA ANTIFLUIDO | H159: Und | I159: Und | J159: Si | K159: Atención emergencia COVID-19 | L159: SERVICIOS INTEGRALES INTELIGENTES SAS | M159: AECovid19-617 | N159: 11000 | O159: COP | P159: 1 | Q159: 250 | R159: =Q159-SUMIFS(ResumenCotizacion!L:L,ResumenCotizacion!S:S,L159,ResumenCotizacion!C:C,D159) -> 250 | S159: 0
A160: =D160&L160 -> EPP-30DATA LINK CORP SAS | D160: EPP-30 | E160: EPP-30 - TAPABOCAS DESECHABLES | F160: ELEMENTOS DE PROTECCION PERSONAL | G160: TAPABOCAS DESECHABLE, CON RESORTE A LA OREJA , DOBLE FILTRO, ADAPTADOR NASAL AJUSTABLE, TELA NO TEJIDA | H160: Und | I160: Und | J160: Si | K160: Atención emergencia COVID-19 | L160: DATA LINK CORP SAS | M160: AECovid19-630 | N160: 38500 | O160: COP | P160: 1 | Q160: 1200 | R160: =Q160-SUMIFS(ResumenCotizacion!L:L,ResumenCotizacion!S:S,L160,ResumenCotizacion!C:C,D160) -> 1200 | S160: 0
A161: =D161&L161 -> EPP-20CLONHADAS LTDA | D161: EPP-20 | E161: EPP-20 - MASCARILLA TIPO RESPIRADOR N95 CON VÁLVULA | F161: ELEMENTOS DE PROTECCION PERSONAL | G161: MASCARILLA TIPO RESPIRADOR CON VÁLVULA PARA PARTÍCULAS, CON TECNOLOGÍA MEA, MASCARILLAS QUIRÚRGICAS/RIESGO BIOLÓGICO N95. | H161: Und | I161: Und | J161: Si | K161: Atención emergencia COVID-19 | L161: CLONHADAS LTDA | M161: AECovid19-613 | N161: 6000 | O161: COP | P161: 1 | Q161: 300 | R161: =Q161-SUMIFS(ResumenCotizacion!L:L,ResumenCotizacion!S:S,L161,ResumenCotizacion!C:C,D161) -> 300 | S161: 0
A162: =D162&L162 -> EPP-30MATRIX ENERGY & INFRASTRUCTURE SAS | D162: EPP-30 | E162: EPP-30 - TAPABOCAS DESECHABLES | F162: ELEMENTOS DE PROTECCION PERSONAL | G162: TAPABOCAS DESECHABLE, CON RESORTE A LA OREJA , DOBLE FILTRO, ADAPTADOR NASAL AJUSTABLE, TELA NO TEJIDA | H162: Und | I162: Und | J162: Si | K162: Atención emergencia COVID-19 | L162: MATRIX ENERGY & INFRASTRUCTURE SAS | M162: AECovid19-603 | N162: 135000 | O162: COP | P162: 2 | Q162: 10000 | R162: =Q162-SUMIFS(ResumenCotizacion!L:L,ResumenCotizacion!S:S,L162,ResumenCotizacion!C:C,D162) -> 10000 | S162: 0
A163: =D163&L163 -> EPP-19MATRIX ENERGY & INFRASTRUCTURE SAS | D163: EPP-19 | E163: EPP-19 - MASCARILLA FACIAL N95 (TAPA BOCA)- RESORTADA | F163: ELEMENTOS DE PROTECCION PERSONAL | G163: DESECHABLE, CON RESORTE A LA OREJA , DOBLE FILTRO, ADAPTADOR NASAL AJUSTABLE, EN ALGODÓN | H163: Und | I163: Und | J163: Si | K163: Atención emergencia COVID-19 | L163: MATRIX ENERGY & INFRASTRUCTURE SAS | M163: AECovid19-603 | N163: 575000 | O163: COP | P163: 1 | Q163: 70000 | R163: =Q163-SUMIFS(ResumenCotizacion!L:L,ResumenCotizacion!S:S,L163,ResumenCotizacion!C:C,D163) -> 70000 | S163: 0
A164: =D164&L164 -> EPP-30MASK FACE LIBER GROUP SAS | D164: EPP-30 | E164: EPP-30 - TAPABOCAS DESECHABLES | F164: ELEMENTOS DE PROTECCION PERSONAL | G164: TAPABOCAS DESECHABLE, CON RESORTE A LA OREJA , DOBLE FILTRO, ADAPTADOR NASAL AJUSTABLE, TELA NO TEJIDA | H164: Und | I164: Und | J164: Si | K164: Atención emergencia COVID-19 | L164: MASK FACE LIBER GROUP SAS | M164: AECovid19-647 | N164: 37000 | O164: COP | P164: 1 | Q164: 5000 | R164: =Q164-SUMIFS(ResumenCotizacion!L:L,ResumenCotizacion!S:S,L164,ResumenCotizacion!C:C,D164) -> 5000 | S164: 0
A165: EPP-14SUQUIN SAS | D165: EPP-14 | E165: EPP-14 - GUANTES DE NITRILO | F165: ELEMENTOS DE PROTECCION PERSONAL | G165: GUANTES DE NITRILO (CALIBRE DE 8 MILESIMAS MÍNIMO) TALLAS,M Y L DESECHABLES, HIPOALERGÉNICOS, NO ESTÉRILES, ALTA RESISTENCIA A LA ELONGACIÓN, CON ENTALCAMIENTO LEVE INTERNO, AMBIDIESTROS, PUÑO CON REBORDE. | H165: Und | I165: Und | J165: Si | K165: Atención emergencia COVID-19 | L165: SUQUIN SAS | M165: AECovid19-620 | N165: 60000 | O165: COP | P165: 2 | Q165: 50 | R165: =Q165-SUMIFS(ResumenCotizacion!L:L,ResumenCotizacion!S:S,L165,ResumenCotizacion!C:C,D165) -> 50 | S165: 0
A166: EPP-2MEDIHEALTH DE COLOMBIA SAS | D166: EPP-2 | E166: EPP-2 - BATA AISLAMIENTO NO ESTERIL MANGA LARGA | F166: ELEMENTOS DE PROTECCION PERSONAL | G166: Debe cumplir la siguiente reglamentación: NTC 5623 - Campos Quirurgicos, Batas y trajes para aire limpio de utilizacion quirurgica como Dispositivos Medicos para pacientes, personal clinico y equipo. Parte 1 Requisitos Generales para los fabricantes procesadores y productos. NTC 5624 - Campos Quirurgicos, Batas y trajes para aire limpio de utilizacion quirurgica como Dispositivos Medicos para pacientes, personal clinico y equipo. Parte 2 Metodos de Ensayo. NTC 5625 - Campos Quirurgicos, Batas y trajes para aire limpio de utilizacion quirurgica como Dispositivos Medicos para pacientes, personal clinico y equipo. Parte 3 Requisitos y niveles de funcionamiento. | H166: Und | I166: Und | J166: Si | K166: Atención emergencia COVID-19 | L166: MEDIHEALTH DE COLOMBIA SAS | M166: AECovid19-560 | N166: 4900 | O166: COP | P166: 1 | Q166: 2500 | R166: =Q166-SUMIFS(ResumenCotizacion!L:L,ResumenCotizacion!S:S,L166,ResumenCotizacion!C:C,D166) -> 2500 | S166: 0
A167: EPP-12MEDIHEALTH DE COLOMBIA SAS | D167: EPP-12 | E167: EPP-12 - GORRO QUIRURJICO | F167: ELEMENTOS DE PROTECCION PERSONAL | G167: Gorro con elástico para adaptarse al entorno craneal que se coloca en la cabeza sin que cubra totalmente la frente, ni los ojos. En Tela polipropileno 100% en spundbounded y el Resorte en Nylon blanco. 15 a 20 gramos. | H167: Und | I167: Und | J167: Si | K167: Atención emergencia COVID-19 | L167: MEDIHEALTH DE COLOMBIA SAS | M167: AECovid19-560 | N167: 12000 | O167: COP | P167: 3 | Q167: 5000 | R167: =Q167-SUMIFS(ResumenCotizacion!L:L,ResumenCotizacion!S:S,L167,ResumenCotizacion!C:C,D167) -> 5000 | S167: 0
A168: EPP-21MEDIHEALTH DE COLOMBIA SAS | D168: EPP-21 | E168: EPP-21 - POLAINAS | F168: ELEMENTOS DE PROTECCION PERSONAL | G168: Polaina antideslizante, no estéril, no tejida. Libre de hebras, ni partículas volátiles, lisa, sin deformaciones. Sellado con ultrasonido. Con recuento controlado microbiano.En Polipropileno (PP) con elástico de látex natural. Dimensión estándar. De un solo uso. | H168: Und | I168: Und | J168: Si | K168: Atención emergencia COVID-19 | L168: MEDIHEALTH DE COLOMBIA SAS | M168: AECovid19-560 | N168: 25000 | O168: COP | P168: 1 | Q168: 2000 | R168: =Q168-SUMIFS(ResumenCotizacion!L:L,ResumenCotizacion!S:S,L168,ResumenCotizacion!C:C,D168) -> 2000 | S168: 0
A169: EPP-30MEDIHEALTH DE COLOMBIA SAS | D169: EPP-30 | E169: EPP-30 - TAPABOCAS DESECHABLES | F169: ELEMENTOS DE PROTECCION PERSONAL | G169: TAPABOCAS DESECHABLE, CON RESORTE A LA OREJA , DOBLE FILTRO, ADAPTADOR NASAL AJUSTABLE, TELA NO TEJIDA | H169: Und | I169: Und | J169: Si | K169: Atención emergencia COVID-19 | L169: MEDIHEALTH DE COLOMBIA SAS | M169: AECovid19-560 | N169: 22000 | O169: COP | P169: 2 | Q169: 500 | R169: =Q169-SUMIFS(ResumenCotizacion!L:L,ResumenCotizacion!S:S,L169,ResumenCotizacion!C:C,D169) -> 500 | S169: 0
A170: EPP-33MEDIHEALTH DE COLOMBIA SAS | D170: EPP-33 | E170: EPP-33 - TRAJE BIOLÓGICO | F170: ELEMENTOS DE PROTECCION PERSONAL | G170: TRAJE DE PROTECCCIÓN CONTRA AGENTES BIOLÓGICOS Y QUÍMICOS, TAMAÑO (S, M, L, XL, XXL, XXXL) · CAPUCHA, CINTURA Y TOBILLOS ELÁSTICOS, PARA UNA MAYOR SEGURIDAD Y LIBERTAD DE MOVIMIENTOS. · MATERIAL MICROPOROSO LAMINADO, LE BRINDA UNA GRAN RESISTENCIA Y DURACIÓN, LIBRE DE FIBRAS. · CIERRE CUBIERTO PARA MEJOR PROTECCIÓN. | H170: Und | I170: Und | J170: Si | K170: Atención emergencia COVID-19 | L170: MEDIHEALTH DE COLOMBIA SAS | M170: AECovid19-560 | N170: 22000 | O170: COP | P170: 1 | Q170: 3000 | R170: =Q170-SUMIFS(ResumenCotizacion!L:L,ResumenCotizacion!S:S,L170,ResumenCotizacion!C:C,D170) -> 3000 | S170: 0
A171: EPP-35MEDIHEALTH DE COLOMBIA SAS | D171: EPP-35 | E171: EPP-35 - TRAJE KLEENGUAR A35 | F171: ELEMENTOS DE PROTECCION PERSONAL | G171: TRAJE DE PROTECCIÓN PERSONAL. ELABORADO CON TECNOLOGÍA SFL. CAPA INTERNA HECHA CON FIBRAS DE POLIPROPILENO TALLAS: S,M,L,XL | H171: Und | I171: Und | J171: Si | K171: Atención emergencia COVID-19 | L171: MEDIHEALTH DE COLOMBIA SAS | M171: AECovid19-560 | N171: 44000 | O171: COP | P171: 1 | Q171: 1060 | R171: =Q171-SUMIFS(ResumenCotizacion!L:L,ResumenCotizacion!S:S,L171,ResumenCotizacion!C:C,D171) -> 1060 | S171: 0
A172: =D172&L172 -> EPP-1GRUPO KAVAW S.A.S | D172: EPP-1 | E172: EPP-1 - BATA DESECHABLE PARA PACIENTE ADULTO - TALLA S, M , L, XL COMPUESTO POR BATA SIN MANGA CON AMARRADERA POSTERIOR | F172: ELEMENTOS DE PROTECCION PERSONAL | G172: COMPUESTO DE BATA PACIENTE MANGA CIZA, AMARRADERAS EN LA PARTE POSTERIOR 2 A NIVEL DE CUELLO Y 2 A NIVEL DE LA CINTURA EN TELA SMS 35 GRAMOS. | H172: Und | I172: Und | J172: Si | K172: Atención emergencia COVID-19 | L172: GRUPO KAVAW S.A.S | M172: AECovid19-546 | N172: 2500 | O172: COP | P172: 1 | Q172: 10000 | R172: =Q172-SUMIFS(ResumenCotizacion!L:L,ResumenCotizacion!S:S,L172,ResumenCotizacion!C:C,D172) -> 10000 | S172: 0
A173: EPP-2GRUPO KAVAW S.A.S | D173: EPP-2 | E173: EPP-2 - BATA AISLAMIENTO NO ESTERIL MANGA LARGA | F173: ELEMENTOS DE PROTECCION PERSONAL | G173: Debe cumplir la siguiente reglamentación: NTC 5623 - Campos Quirurgicos, Batas y trajes para aire limpio de utilizacion quirurgica como Dispositivos Medicos para pacientes, personal clinico y equipo. Parte 1 Requisitos Generales para los fabricantes procesadores y productos. NTC 5624 - Campos Quirurgicos, Batas y trajes para aire limpio de utilizacion quirurgica como Dispositivos Medicos para pacientes, personal clinico y equipo. Parte 2 Metodos de Ensayo. NTC 5625 - Campos Quirurgicos, Batas y trajes para aire limpio de utilizacion quirurgica como Dispositivos Medicos para pacientes, personal clinico y equipo. Parte 3 Requisitos y niveles de funcionamiento. | H173: Und | I173: Und | J173: Si | K173: Atención emergencia COVID-19 | L173: GRUPO KAVAW S.A.S | M173: AECovid19-546 | N173: 4500 | O173: COP | P173: 2 | Q173: 10000 | R173: =Q173-SUMIFS(ResumenCotizacion!L:L,ResumenCotizacion!S:S,L173,ResumenCotizacion!C:C,D173) -> 10000 | S173: 0
A174: EPP-3GRUPO KAVAW S.A.S | D174: EPP-3 | E174: EPP-3 - BATA CIRUJANO DESECHABLE | F174: ELEMENTOS DE PROTECCION PERSONAL | G174: BATA CIRUJANO DESECHABLE TALLA S, M, L, XL PRESENTACION ESTERIL | H174: Und | I174: Und | J174: Si | K174: Atención emergencia COVID-19 | L174: GRUPO KAVAW S.A.S | M174: AECovid19-546 | N174: 4500 | O174: COP | P174: 2 | Q174: 10000 | R174: =Q174-SUMIFS(ResumenCotizacion!L:L,ResumenCotizacion!S:S,L174,ResumenCotizacion!C:C,D174) -> 10000 | S174: 0
A175: EPP-4GRUPO KAVAW S.A.S | D175: EPP-4 | E175: EPP-4 - BATA DESECHABLE CORTAS CON MANGA RESORTADA | F175: ELEMENTOS DE PROTECCION PERSONAL | G175: BATA DESECHABLE CORTAS CON MANGA RESORTADA CON CIERRE FRONTAL DE CREMALLERA | H175: Und | I175: Und | J175: Si | K175: Atención emergencia COVID-19 | L175: GRUPO KAVAW S.A.S | M175: AECovid19-546 | N175: 5000 | O175: COP | P175: 2 | Q175: 10000 | R175: =Q175-SUMIFS(ResumenCotizacion!L:L,ResumenCotizacion!S:S,L175,ResumenCotizacion!C:C,D175) -> 10000 | S175: 0
A176: EPP-6GRUPO KAVAW S.A.S | D176: EPP-6 | E176: EPP-6 - BATA PUÑO RIB | F176: ELEMENTOS DE PROTECCION PERSONAL | G176: Tela no tejida Desechable Aislante de liquidos Alta transpirabilidad Manga Larga Puño en algodón con resorte Con tiras de amarre en la cintura y cuello | H176: Und | I176: Und | J176: Si | K176: Atención emergencia COVID-19 | L176: GRUPO KAVAW S.A.S | M176: AECovid19-546 | N176: 4500 | O176: COP | P176: 2 | Q176: 10000 | R176: =Q176-SUMIFS(ResumenCotizacion!L:L,ResumenCotizacion!S:S,L176,ResumenCotizacion!C:C,D176) -> 10000 | S176: 0
A177: EPP-7GRUPO KAVAW S.A.S | D177: EPP-7 | E177: EPP-7 - BATA QUIRURGICA ASTOUND | F177: ELEMENTOS DE PROTECCION PERSONAL | G177: ELABORADA EN SMS POLIPROPILENO DE ALTO RENDIMIENTO IMPERMEABLE LIBRE DE PELUSA, POLIREFORSADA EN ZONAS CRÍTICAS, PECHO Y ANTEBRAZO, RESISTENTE A PENETRACIÓN DE FLUIDOS PELIGROSOS, QUE CONSERVA SU INTEGRIDAD A LO LARGO DEL PROCEDIMIENTO QUIRÚRGICO, MANTIENE TEMPERATURA CORPORAL CONFORTABLE, INFLABILIDAD TESTIBLE CPSC 16. | H177: Und | I177: Und | J177: Si | K177: Atención emergencia COVID-19 | L177: GRUPO KAVAW S.A.S | M177: AECovid19-546 | N177: 7000 | O177: COP | P177: 1 | Q177: 5000 | R177: =Q177-SUMIFS(ResumenCotizacion!L:L,ResumenCotizacion!S:S,L177,ResumenCotizacion!C:C,D177) -> 5000 | S177: 0
A178: EPP-10GRUPO KAVAW S.A.S | D178: EPP-10 | E178: EPP-10 - GAFAS PROTECTORAS | F178: ELEMENTOS DE PROTECCION PERSONAL | G178: BUEN SELLO DE ADHERENCIA CON LA PIEL DE LA CARA, MARCO DE PVC FLEXIBLE PARA ADAPTARSE FÁCILMENTE A TODOS LOS CONTORNOS DE LA CARA CON PRESIÓN UNIFORME, ENCERRAR LOS OJOS Y LAS ÁREAS CIRCUNDANTES, USUARIOS DE ALOJAMIENTO CON GAFAS GRADUADAS, LENTE DE PLÁSTICO TRANSPARENTE CON TRATAMIENTOS RESISTENTES A LA NIEBLA Y A LOS ARAÑAZOS, sistema AJUSTABLE PARA ASEGURAR FIRMEMENTE PARA NO LIBERARSE DURANTE LA ACTIVIDAD CLÍNICA, VENTILACIÓN INDIRECTA PARA EVITAR LA NIEBLA, PUEDE SER REUTILIZABLE (SIEMPRE QUE SE DISPONGA DE LAS DISPOSICIONES ADECUADAS PARA LA DESCONTAMINACIÓN) O DESECHABLE. | H178: Und | I178: Und | J178: Si | K178: Atención emergencia COVID-19 | L178: GRUPO KAVAW S.A.S | M178: AECovid19-546 | N178: 45000 | O178: COP | P178: 1 | Q178: 15000 | R178: =Q178-SUMIFS(ResumenCotizacion!L:L,ResumenCotizacion!S:S,L178,ResumenCotizacion!C:C,D178) -> 15000 | S178: 0
A179: EPP-11GRUPO KAVAW S.A.S | D179: EPP-11 | E179: EPP-11 - GORRO DESECHABLE REDONDO ELÁSTICO AZUL | F179: ELEMENTOS DE PROTECCION PERSONAL | G179: GORRO REDONDO DESECHABLE TIPO BAÑO BOLAN 15 A 20 GRAMOS TAMAÑO ESTÁNDAR, ENCAUCHADO PARA AJUSTE SUAVE Y FIRME | H179: Und | I179: Und | J179: Si | K179: Atención emergencia COVID-19 | L179: GRUPO KAVAW S.A.S | M179: AECovid19-546 | N179: 8300 | O179: COP | P179: 1 | Q179: 45000 | R179: =Q179-SUMIFS(ResumenCotizacion!L:L,ResumenCotizacion!S:S,L179,ResumenCotizacion!C:C,D179) -> 45000 | S179: 0
A180: EPP-12GRUPO KAVAW S.A.S | D180: EPP-12 | E180: EPP-12 - GORRO QUIRURJICO | F180: ELEMENTOS DE PROTECCION PERSONAL | G180: Gorro con elástico para adaptarse al entorno craneal que se coloca en la cabeza sin que cubra totalmente la frente, ni los ojos. En Tela polipropileno 100% en spundbounded y el Resorte en Nylon blanco. 15 a 20 gramos. | H180: Und | I180: Und | J180: Si | K180: Atención emergencia COVID-19 | L180: GRUPO KAVAW S.A.S | M180: AECovid19-546 | N180: 7700 | O180: COP | P180: 1 | Q180: 45000 | R180: =Q180-SUMIFS(ResumenCotizacion!L:L,ResumenCotizacion!S:S,L180,ResumenCotizacion!C:C,D180) -> 45000 | S180: 0
A181: EPP-18GRUPO KAVAW S.A.S | D181: EPP-18 | E181: EPP-18 - MASCARILLA FACIAL N95 (TAPA BOCA) | F181: ELEMENTOS DE PROTECCION PERSONAL | G181: DESECHABLE, CON TIRAS PARA AMARRAR, DOBLE FILTRO, ADAPTADOR NASAL AJUSTABLE, EN ALGODÓN, | H181: Und | I181: Und | J181: Si | K181: Atención emergencia COVID-19 | L181: GRUPO KAVAW S.A.S | M181: AECovid19-546 | N181: 85000 | O181: COP | P181: 1 | Q181: 5000 | R181: =Q181-SUMIFS(ResumenCotizacion!L:L,ResumenCotizacion!S:S,L181,ResumenCotizacion!C:C,D181) -> 5000 | S181: 0
A182: EPP-19GRUPO KAVAW S.A.S | D182: EPP-19 | E182: EPP-19 - MASCARILLA FACIAL N95 (TAPA BOCA)- RESORTADA | F182: ELEMENTOS DE PROTECCION PERSONAL | G182: DESECHABLE, CON RESORTE A LA OREJA , DOBLE FILTRO, ADAPTADOR NASAL AJUSTABLE, EN ALGODÓN | H182: Und | I182: Und | J182: Si | K182: Atención emergencia COVID-19 | L182: GRUPO KAVAW S.A.S | M182: AECovid19-546 | N182: 50000 | O182: COP | P182: 1 | Q182: 5000 | R182: =Q182-SUMIFS(ResumenCotizacion!L:L,ResumenCotizacion!S:S,L182,ResumenCotizacion!C:C,D182) -> 5000 | S182: 0
A183: EPP-20GRUPO KAVAW S.A.S | D183: EPP-20 | E183: EPP-20 - MASCARILLA TIPO RESPIRADOR N95 CON VÁLVULA | F183: ELEMENTOS DE PROTECCION PERSONAL | G183: MASCARILLA TIPO RESPIRADOR CON VÁLVULA PARA PARTÍCULAS, CON TECNOLOGÍA MEA, MASCARILLAS QUIRÚRGICAS/RIESGO BIOLÓGICO N95. | H183: Und | I183: Und | J183: Si | K183: Atención emergencia COVID-19 | L183: GRUPO KAVAW S.A.S | M183: AECovid19-546 | N183: 15000 | O183: COP | P183: 1 | Q183: 1000 | R183: =Q183-SUMIFS(ResumenCotizacion!L:L,ResumenCotizacion!S:S,L183,ResumenCotizacion!C:C,D183) -> 1000 | S183: 0
A184: EPP-21GRUPO KAVAW S.A.S | D184: EPP-21 | E184: EPP-21 - POLAINAS | F184: ELEMENTOS DE PROTECCION PERSONAL | G184: Polaina antideslizante, no estéril, no tejida. Libre de hebras, ni partículas volátiles, lisa, sin deformaciones. Sellado con ultrasonido. Con recuento controlado microbiano.En Polipropileno (PP) con elástico de látex natural. Dimensión estándar. De un solo uso. | H184: Und | I184: Und | J184: Si | K184: Atención emergencia COVID-19 | L184: GRUPO KAVAW S.A.S | M184: AECovid19-546 | N184: 12100 | O184: COP | P184: 1 | Q184: 48000 | R184: =Q184-SUMIFS(ResumenCotizacion!L:L,ResumenCotizacion!S:S,L184,ResumenCotizacion!C:C,D184) -> 48000 | S184: 0
A185: EPP-24GRUPO KAVAW S.A.S | D185: EPP-24 | E185: EPP-24 - ROPA POR CAMA DESECHABLE | F185: ELEMENTOS DE PROTECCION PERSONAL | G185: KIT DE JUEGO DE CAMA QUE INCLUYE SABANA, FORRO, SABANA DE MOVIMIENTO | H185: Und | I185: Und | J185: Si | K185: Atención emergencia COVID-19 | L185: GRUPO KAVAW S.A.S | M185: AECovid19-546 | N185: 8200 | O185: COP | P185: 1 | Q185: 200 | R185: =Q185-SUMIFS(ResumenCotizacion!L:L,ResumenCotizacion!S:S,L185,ResumenCotizacion!C:C,D185) -> 200 | S185: 0
A186: EPP-25GRUPO KAVAW S.A.S | D186: EPP-25 | E186: EPP-25 - SABANA DESECHABLE | F186: ELEMENTOS DE PROTECCION PERSONAL | G186: SÁBANA AJUSTABLE DESECHABLE, CONFECCIONADA CON TEJIDO NO TEJIDO DE POLIPROPILENO (PP). CON ELÁSTICOS EN LOS EXTREMOS PARA AJUSTAR A LAS CAMILLAS. | H186: Und | I186: Und | J186: Si | K186: Atención emergencia COVID-19 | L186: GRUPO KAVAW S.A.S | M186: AECovid19-546 | N186: 4000 | O186: COP | P186: 1 | Q186: 200 | R186: =Q186-SUMIFS(ResumenCotizacion!L:L,ResumenCotizacion!S:S,L186,ResumenCotizacion!C:C,D186) -> 200 | S186: 0
A187: EPP-26GRUPO KAVAW S.A.S | D187: EPP-26 | E187: EPP-26 - SABANA NO TEJIDO X100 | F187: ELEMENTOS DE PROTECCION PERSONAL | G187: TELA NO TEJIDO DESECHABLE AISLANTE DE LIQUIDOS ALTA TRANSPIRABILIDAD FABRICADA EN POLIESTER | H187: Und | I187: Und | J187: Si | K187: Atención emergencia COVID-19 | L187: GRUPO KAVAW S.A.S | M187: AECovid19-546 | N187: 4000 | O187: COP | P187: 1 | Q187: 100 | R187: =Q187-SUMIFS(ResumenCotizacion!L:L,ResumenCotizacion!S:S,L187,ResumenCotizacion!C:C,D187) -> 100 | S187: 0
A188: EPP-29GRUPO KAVAW S.A.S | D188: EPP-29 | E188: EPP-29 - TAPABOCA TELA POLYESTER ANTI FLUIDO | F188: ELEMENTOS DE PROTECCION PERSONAL | G188: TAPABOCA DE TELA Y POLYESTER FABRICANDO CON TELA ANTIFLUIDO, CON RESORTE A LA OREJA, AJUSTABLE. | H188: Und | I188: Und | J188: Si | K188: Atención emergencia COVID-19 | L188: GRUPO KAVAW S.A.S | M188: AECovid19-546 | N188: 830 | O188: COP | P188: 1 | Q188: 5000 | R188: =Q188-SUMIFS(ResumenCotizacion!L:L,ResumenCotizacion!S:S,L188,ResumenCotizacion!C:C,D188) -> 5000 | S188: 0
A189: EPP-30GRUPO KAVAW S.A.S | D189: EPP-30 | E189: EPP-30 - TAPABOCAS DESECHABLES | F189: ELEMENTOS DE PROTECCION PERSONAL | G189: TAPABOCAS DESECHABLE, CON RESORTE A LA OREJA , DOBLE FILTRO, ADAPTADOR NASAL AJUSTABLE, TELA NO TEJIDA | H189: Und | I189: Und | J189: Si | K189: Atención emergencia COVID-19 | L189: GRUPO KAVAW S.A.S | M189: AECovid19-546 | N189: 12000 | O189: COP | P189: 2 | Q189: 200000 | R189: =Q189-SUMIFS(ResumenCotizacion!L:L,ResumenCotizacion!S:S,L189,ResumenCotizacion!C:C,D189) -> 200000 | S189: 0
A190: EPP-31GRUPO KAVAW S.A.S | D190: EPP-31 | E190: EPP-31 - TAPABOCAS DOBLE TELA LAVABLE | F190: ELEMENTOS DE PROTECCION PERSONAL | G190: DOBLE TELA. REUTILIZABLE. SOPORTE NASAL. AJUSTABLE | H190: Und | I190: Und | J190: Si | K190: Atención emergencia COVID-19 | L190: GRUPO KAVAW S.A.S | M190: AECovid19-546 | N190: 45000 | O190: COP | P190: 1 | Q190: 5000 | R190: =Q190-SUMIFS(ResumenCotizacion!L:L,ResumenCotizacion!S:S,L190,ResumenCotizacion!C:C,D190) -> 5000 | S190: 0
A191: EPP-32GRUPO KAVAW S.A.S | D191: EPP-32 | E191: EPP-32 - TAPABOCAS QUIRUGICO N95 | F191: ELEMENTOS DE PROTECCION PERSONAL | G191: DEBE CUMPLIR LA SIGUIENTE REGLAMENTACIÓN: NTC 3851 Parte 1 Criterios para la selección y uso de los equipos de protecicion respiratoria. / NTC 3852 Parte 2 Equipos de proteccion respiratoria, proteccion contra particulas. | H191: Und | I191: Und | J191: Si | K191: Atención emergencia COVID-19 | L191: GRUPO KAVAW S.A.S | M191: AECovid19-546 | N191: 172000 | O191: COP | P191: 1 | Q191: 5000 | R191: =Q191-SUMIFS(ResumenCotizacion!L:L,ResumenCotizacion!S:S,L191,ResumenCotizacion!C:C,D191) -> 5000 | S191: 0
A192: EPP-33GRUPO KAVAW S.A.S | D192: EPP-33 | E192: EPP-33 - TRAJE BIOLÓGICO | F192: ELEMENTOS DE PROTECCION PERSONAL | G192: TRAJE DE PROTECCCIÓN CONTRA AGENTES BIOLÓGICOS Y QUÍMICOS, TAMAÑO (S, M, L, XL, XXL, XXXL) · CAPUCHA, CINTURA Y TOBILLOS ELÁSTICOS, PARA UNA MAYOR SEGURIDAD Y LIBERTAD DE MOVIMIENTOS. · MATERIAL MICROPOROSO LAMINADO, LE BRINDA UNA GRAN RESISTENCIA Y DURACIÓN, LIBRE DE FIBRAS. · CIERRE CUBIERTO PARA MEJOR PROTECCIÓN. | H192: Und | I192: Und | J192: Si | K192: Atención emergencia COVID-19 | L192: GRUPO KAVAW S.A.S | M192: AECovid19-546 | N192: 20000 | O192: COP | P192: 2 | Q192: 500 | R192: =Q192-SUMIFS(ResumenCotizacion!L:L,ResumenCotizacion!S:S,L192,ResumenCotizacion!C:C,D192) -> 500 | S192: 0
A193: EPP-34GRUPO KAVAW S.A.S | D193: EPP-34 | E193: EPP-34 - TRAJE DESECHABLE ANTIFLUIDO | F193: ELEMENTOS DE PROTECCION PERSONAL | G193: TALLAS: S,M,L,XL COSTURAS SERIADAS, CON CAPUCHA. CIERRE DE CREMALLERA FRONTAL MUÑECAS Y TOBILLOS ELASTICOS FABRICADO EN TELA ANTIFLUIDO | H193: Und | I193: Und | J193: Si | K193: Atención emergencia COVID-19 | L193: GRUPO KAVAW S.A.S | M193: AECovid19-546 | N193: 15000 | O193: COP | P193: 1 | Q193: 1000 | R193: =Q193-SUMIFS(ResumenCotizacion!L:L,ResumenCotizacion!S:S,L193,ResumenCotizacion!C:C,D193) -> 1000 | S193: 0
A194: EPP-43GRUPO KAVAW S.A.S | D194: EPP-43 | E194: EPP-43 - GORRO QUIRURGICO CON RECUENTO CONTROLADO MICROBIANO | F194: ELEMENTOS DE PROTECCION PERSONAL | G194: Gorro con elástico para adaptarse al entorno craneal, que se coloca en la cabeza y cubre parcialmente la frente. Debe cumplir con la NTC 5623, NTC 5625, NORMA CFR Title 21 Subpart E of part 807 Debe cumplir CON RECUENTO CONTROLADO MICROBIANO, en Tela polipropileno 100% | H194: Und | I194: Und | J194: Si | K194: Atención emergencia COVID-19 | L194: GRUPO KAVAW S.A.S | M194: AECovid19-546 | N194: 11750 | O194: COP | P194: =COUNTIFS(D:D,D194,N:N,N194) -> 1 | Q194: 50000 | R194: =Q194-SUMIFS(ResumenCotizacion!L:L,ResumenCotizacion!S:S,L194,ResumenCotizacion!C:C,D194) -> 50000 | S194: 0
A195: EPP-44GRUPO KAVAW S.A.S | D195: EPP-44 | E195: EPP-44 - OVEROL MULTIPROPOSITO PROTECCION ANTIFLUIDO | F195: ELEMENTOS DE PROTECCION PERSONAL | G195: OVEROL en tela antifluido lavable alta impermeabilidad, liviano, antialérgico evita el contacto con superficies y líquidos, cuello alto para brindar más protección al usuario, con capucha ajustable y resorte en mangas, cintura y tobillos, cremallera para cierre de prenda, incluido polainas con elástico para mayor protección. Materiales: Antifluido Tallas: M, L, XL, XXL Color: De acuerdo con la necesidad de la entidad Inspecciones Físicas: Doblado, costuras, cremallera y presencia de amarres. Inspecciones Visuales: Libre de presencia de partículas removibles, coloraciones y partículas incrustadas. Atributos: Antiestático, Resistencia a las bacterias y Resistencia a los hongos. Método de Esterilización: No aplica producto no estéril. Atoxicidad: Atóxico. Fecha de Vencimiento: ** Tres Años Después de la Fecha de Fabricación. Empaque Primario: Bolsa de Polietileno de Alta Densidad. Tela: Antifluido 100% poliéster Costura interna: filete y punta de seguridad Pespuntes: refuerzo cremallera:1/8”, contorno de capota en escote y pegue elástico. Condiciones de Conservación: Humedad Relativa: Entre 40%RH y 70%RH Temperatura: Entre 4ºC y 32 ºc Área de almacenamiento fresca, seca y protegido de la luz y humedad. Área de almacenamiento que no entre en contacto con aceites, colorantes, detergentes, sustancias de olor fuerte y/o productos químicos que pueden alterar las condiciones del producto. Advertencias y Precauciones: No utilizar si el empaque no está en perfecto estado. Evitar humedad, salpicaduras de agua y contacto con elementos cortopunzantes durante su almacenamiento. Método de Reutilización: Producto Reutilizable. | H195: Und | I195: Und | J195: Si | K195: Atención emergencia COVID-19 | L195: GRUPO KAVAW S.A.S | M195: AECovid19-546 | N195: 29000 | O195: COP | P195: 1 | Q195: 5000 | R195: =Q195-SUMIFS(ResumenCotizacion!L:L,ResumenCotizacion!S:S,L195,ResumenCotizacion!C:C,D195) -> 5000 | S195: 0
A196: =D196&L196 -> EPP-10DELTA PLUS COLOMBIA SAS | D196: EPP-10 | E196: EPP-10 - GAFAS PROTECTORAS | F196: ELEMENTOS DE PROTECCION PERSONAL | G196: BUEN SELLO DE ADHERENCIA CON LA PIEL DE LA CARA, MARCO DE PVC FLEXIBLE PARA ADAPTARSE FÁCILMENTE A TODOS LOS CONTORNOS DE LA CARA CON PRESIÓN UNIFORME, ENCERRAR LOS OJOS Y LAS ÁREAS CIRCUNDANTES, USUARIOS DE ALOJAMIENTO CON GAFAS GRADUADAS, LENTE DE PLÁSTICO TRANSPARENTE CON TRATAMIENTOS RESISTENTES A LA NIEBLA Y A LOS ARAÑAZOS, sistema AJUSTABLE PARA ASEGURAR FIRMEMENTE PARA NO LIBERARSE DURANTE LA ACTIVIDAD CLÍNICA, VENTILACIÓN INDIRECTA PARA EVITAR LA NIEBLA, PUEDE SER REUTILIZABLE (SIEMPRE QUE SE DISPONGA DE LAS DISPOSICIONES ADECUADAS PARA LA DESCONTAMINACIÓN) O DESECHABLE. | H196: Und | I196: Und | J196: Si | K196: Atención emergencia COVID-19 | L196: DELTA PLUS COLOMBIA SAS | M196: AECovid19-583 | N196: 120000 | O196: COP | P196: 1 | Q196: 100 | R196: =Q196-SUMIFS(ResumenCotizacion!L:L,ResumenCotizacion!S:S,L196,ResumenCotizacion!C:C,D196) -> 100 | S196: 0
A197: EPP-19DELTA PLUS COLOMBIA SAS | D197: EPP-19 | E197: EPP-19 - MASCARILLA FACIAL N95 (TAPA BOCA)- RESORTADA | F197: ELEMENTOS DE PROTECCION PERSONAL | G197: DESECHABLE, CON RESORTE A LA OREJA , DOBLE FILTRO, ADAPTADOR NASAL AJUSTABLE, EN ALGODÓN | H197: Und | I197: Und | J197: Si | K197: Atención emergencia COVID-19 | L197: DELTA PLUS COLOMBIA SAS | M197: AECovid19-583 | N197: 409862 | O197: COP | P197: 1 | Q197: 200 | R197: =Q197-SUMIFS(ResumenCotizacion!L:L,ResumenCotizacion!S:S,L197,ResumenCotizacion!C:C,D197) -> 200 | S197: 0
A198: EPP-29DELTA PLUS COLOMBIA SAS | D198: EPP-29 | E198: EPP-29 - TAPABOCA TELA POLYESTER ANTI FLUIDO | F198: ELEMENTOS DE PROTECCION PERSONAL | G198: TAPABOCA DE TELA Y POLYESTER FABRICANDO CON TELA ANTIFLUIDO, CON RESORTE A LA OREJA, AJUSTABLE. | H198: Und | I198: Und | J198: Si | K198: Atención emergencia COVID-19 | L198: DELTA PLUS COLOMBIA SAS | M198: AECovid19-583 | N198: 1300 | O198: COP | P198: 1 | Q198: 2000 | R198: =Q198-SUMIFS(ResumenCotizacion!L:L,ResumenCotizacion!S:S,L198,ResumenCotizacion!C:C,D198) -> 2000 | S198: 0
A199: EPP-30DELTA PLUS COLOMBIA SAS | D199: EPP-30 | E199: EPP-30 - TAPABOCAS DESECHABLES | F199: ELEMENTOS DE PROTECCION PERSONAL | G199: TAPABOCAS DESECHABLE, CON RESORTE A LA OREJA , DOBLE FILTRO, ADAPTADOR NASAL AJUSTABLE, TELA NO TEJIDA | H199: Und | I199: Und | J199: Si | K199: Atención emergencia COVID-19 | L199: DELTA PLUS COLOMBIA SAS | M199: AECovid19-583 | N199: 77000 | O199: COP | P199: 1 | Q199: 1000 | R199: =Q199-SUMIFS(ResumenCotizacion!L:L,ResumenCotizacion!S:S,L199,ResumenCotizacion!C:C,D199) -> 1000 | S199: 0
A200: EPP-31DELTA PLUS COLOMBIA SAS | D200: EPP-31 | E200: EPP-31 - TAPABOCAS DOBLE TELA LAVABLE | F200: ELEMENTOS DE PROTECCION PERSONAL | G200: DOBLE TELA. REUTILIZABLE. SOPORTE NASAL. AJUSTABLE | H200: Und | I200: Und | J200: Si | K200: Atención emergencia COVID-19 | L200: DELTA PLUS COLOMBIA SAS | M200: AECovid19-583 | N200: 138500 | O200: COP | P200: 1 | Q200: 200 | R200: =Q200-SUMIFS(ResumenCotizacion!L:L,ResumenCotizacion!S:S,L200,ResumenCotizacion!C:C,D200) -> 200 | S200: 0
... 393 more rows

Sheet Hoja1 (hidden)
B2: PA-1
B3: PA-2
B4: PA-3
B5: PA-4
B6: PA-17
B7: PA-24
B8: PA-59
B9: PA-60
B10: PA-5
B11: PA-14
B12: PA-15
B13: PA-16
B14: PA-18
B15: PA-30
B16: PA-28
B17: PA-32
B18: PA-33
B19: PA-36
B20: PA-38
B21: PA-52
B22: PA-53
B23: PA-19
B24: PA-20
B25: PA-21
B26: PA-22
B27: PA-23
B28: PA-6
B29: PA-13
B30: PA-26
B31: PA-31
B32: PA-34
B33: PA-45
B34: PA-46
B35: PA-47
B36: PA-51
B37: PA-54
B38: PA-55

Sheet tempListas (hidden)
A1: codigo unico
A2: EPP-1
A3: EPP-3
A4: EPP-4
A5: EPP-5
A6: EPP-6
A7: EPP-24
A8: EPP-27
A9: EPP-11
A10: EPP-21
A11: EPP-30
A12: EPP-9
A13: EPP-29
A14: EPP-19
A15: EPP-31
A16: EPP-34
A17: EPP-17
A18: EPP-36
A19: EPP-37
A20: EPP-12
A21: EPP-10
A22: EPP-2
A23: EPP-33
A24: EPP-32
A25: EPP-25
A26: EPP-44
A27: EPP-18
A28: EPP-20
A29: EPP-14
A30: EPP-35
A31: EPP-7
A32: EPP-26
A33: EPP-43
A34: EPP-38
A35: EPP-13
A36: EPP-45
A37: EPP-42
A38: EPP-39
A39: EPP-40
A40: EPP-41
A41: EPP-46
A42: EPP-8
A43: EPP-16

Sheet Listas (hidden)
A1: GAlimentos | B1: Proveedores | C1: Departamentos | D1: 1Municipios | E1: 2Municipios | F1: 3Municipios | G1: 4Municipios
A2: EPP-1 | B2: proveedor16 | C2: AMAZONAS | G2: ABEJORRAL
A3: EPP-3 | B3: proveedor17 | C3: ANTIOQUIA | G3: ABRIAQUÍ
A4: EPP-4 | C4: ARAUCA | G4: ALEJANDRÍA
A5: EPP-5 | C5: ATLÁNTICO | G5: AMAGÁ
A6: EPP-6 | C6: BOGOTÁ, D.C. | G6: AMALFI
A7: EPP-24 | C7: BOLÍVAR | G7: ANDES
A8: EPP-27 | C8: BOYACÁ | G8: ANGELÓPOLIS
A9: EPP-11 | C9: CALDAS | G9: ANGOSTURA
A10: EPP-21 | C10: CAQUETÁ | G10: ANORÍ
A11: EPP-30 | C11: CASANARE | G11: ANZÁ
A12: EPP-9 | C12: CAUCA | G12: APARTADÓ
A13: EPP-29 | C13: CESAR | G13: ARBOLETES
A14: EPP-19 | C14: CHOCÓ | G14: ARGELIA
A15: EPP-31 | C15: CÓRDOBA | G15: ARMENIA
A16: EPP-34 | C16: CUNDINAMARCA | G16: BARBOSA
A17: EPP-17 | C17: GUAINIA | G17: BELLO
A18: EPP-36 | C18: GUAVIARE | G18: BELMIRA
A19: EPP-37 | C19: HUILA | G19: BETANIA
A20: EPP-12 | C20: LA GUAJIRA | G20: BETULIA
A21: EPP-10 | C21: MAGDALENA | G21: BRICEÑO
A22: EPP-2 | C22: META | G22: BURITICÁ
A23: EPP-33 | C23: NARIÑO | G23: CÁCERES
A24: EPP-32 | C24: NORTE DE SANTANDER | G24: CAICEDO
A25: EPP-25 | C25: PUTUMAYO | G25: CALDAS
A26: EPP-44 | C26: QUINDIO | G26: CAMPAMENTO
A27: EPP-18 | C27: RISARALDA | G27: CAÑASGORDAS
A28: EPP-20 | C28: SAN ANDRES Y PROVIDENCIA | G28: CARACOLÍ
A29: EPP-14 | C29: SANTANDER | G29: CARAMANTA
A30: EPP-35 | C30: SUCRE | G30: CAREPA
A31: EPP-7 | C31: TOLIMA | G31: CARMEN DE VIBORAL
A32: EPP-26 | C32: VALLE DEL CAUCA | G32: CAROLINA
A33: EPP-43 | C33: VAUPES | G33: CAUCASIA
A34: EPP-38 | C34: VICHADA | G34: CHIGORODÓ
A35: EPP-13 | G35: CISNEROS
A36: EPP-45 | G36: CIUDAD BOLÍVAR
A37: EPP-42 | G37: COCORNÁ
A38: EPP-39 | G38: CONCEPCIÓN
A39: EPP-40 | G39: CONCORDIA
A40: EPP-41 | G40: COPACABANA
A41: EPP-46 | G41: DABEIBA
A42: EPP-8 | G42: DON MATÍAS
A43: EPP-16 | G43: EBÉJICO
G44: EL BAGRE
G45: ENTRERRIOS
G46: ENVIGADO
G47: FREDONIA
G48: FRONTINO
G49: GIRALDO
G50: GIRARDOTA
G51: GÓMEZ PLATA
G52: GRANADA
G53: GUADALUPE
G54: GUARNE
G55: GUATAPÉ
G56: HELICONIA
G57: HISPANIA
G58: ITAGÜÍ
G59: ITUANGO
G60: JARDÍN
G61: JERICÓ
G62: LA CEJA
G63: LA ESTRELLA
G64: LA PINTADA
G65: LA UNIÓN
G66: LIBORINA
G67: MACEO
G68: MARINILLA
G69: MEDELLÍN
G70: MONTEBELLO
G71: MURINDÓ
G72: MUTATÁ
G73: NARIÑO
G74: NECHÍ
G75: NECOCLÍ
G76: OLAYA
G77: PEÑOL
G78: PEQUE
G79: PUEBLORRICO
G80: PUERTO BERRÍO
G81: PUERTO NARE
G82: PUERTO TRIUNFO
G83: REMEDIOS
G84: RETIRO
G85: RIONEGRO
G86: SABANALARGA
G87: SABANETA
G88: SALGAR
G89: SAN ANDRÉS
G90: SAN CARLOS
G91: SAN FRANCISCO
G92: SAN JERÓNIMO
G93: SAN JOSÉ DE LA MONTAÑA
G94: SAN JUAN DE URABÁ
G95: SAN LUIS
G96: SAN PEDRO
G97: SAN PEDRO DE URABÁ
G98: SAN RAFAEL
G99: SAN ROQUE
G100: SAN VICENTE
G101: SANTA BÁRBARA
G102: SANTA FE DE ANTIOQUIA
G103: SANTA ROSA DE OSOS
G104: SANTO DOMINGO
G105: SANTUARIO
G106: SEGOVIA
G107: SONSÓN
G108: SOPETRÁN
G109: TÁMESIS
G110: TARAZÁ
G111: TARSO
G112: TITIRIBÍ
G113: TOLEDO
G114: TURBO
G115: URAMITA
G116: URRAO
G117: VALDIVIA
G118: VALPARAISO
G119: VEGACHÍ
G120: VENECIA
G121: VIGIA DEL FUERTE
G122: YALÍ
G123: YARUMAL
G124: YOLOMBÓ
G125: YONDÓ (CASABE)
G126: ZARAGOZA

Sheet Cuadro Totales (hidden)
A1: Valores | H1: Proveedor Ganador
A2: Cantidad Asumida | B2: Valor | C2: Valor Máximo Permitido | D2: Subtotal | E2: % IVA | F2: Valor Iva | G2: Precio Total | H2: Proveedor
E4: Total | F4: =SUM(F$24:F$24) -> 0 | G4: =SUM(G$24:G$24) -> 0
A7: Valores
A8: Precio Unitario GE A | B8: Descuento adicional | C8: Precio con Descuento | D8: Precio Unitario GE B | F8: Descuento adicional | G8: Precio con Descuento | H8: Precio Unitario GE C | I8: Descuento adicional | J8: Precio con Descuento | K8: Precio Unitario GE N | L8: Descuento adicional | M8: Precio con Descuento | N8: Precio Total
M10: Valor Total | N10: =SUM(N9) -> 0
A13: Proveedor | G13: =G16 -> 0
A15: Item | B15: Producto | C15: Departamento | D15: Municipio | E15: Direccón de Entrega | F15: Cantidad Asumida | G15: Valor total de distribución
A17: Cuadro valor de distribucion
